Workbook

Sheet RAPORT_FULL
A2: Raport za okres: | B2: 2013-07-01 - 2013-07-09
A3: Nr rejestracyjny | B3: Data | C3: Start pracy silnika | D3: Koniec pracy silnika | E3: Czas przerw | F3: Czas pracy | G3: I próg | H3: II próg | I3: III próg | J3: IV próg
A4: S-0079 | B4: 2013-07-03 | C4: 2013-07-03 08:38:04.0 | D4: 2013-07-03 08:45:03.0 | E4: 0.0118287037 | F4: 0.004849537037 | G4: 0 | H4: 0 | I4: 0 | J4: 0.004849537037
A5: S-0079 | B5: 2013-07-03 | C5: 2013-07-03 09:02:05.0 | D5: 2013-07-03 09:21:49.0 | E5: 0.09245370371 | F5: 0.0137037037 | G5: 0 | H5: 0 | I5: 0 | J5: 0.0137037037
A6: S-0079 | B6: 2013-07-03 | C6: 2013-07-03 11:34:57.0 | D6: 2013-07-03 11:37:33.0 | E6: 0.07460648148 | F6: 0.001805555556 | G6: 0 | H6: 0 | I6: 0 | J6: 0.001805555556
A7: S-0079 | B7: 2013-07-03 | C7: 2013-07-03 13:24:59.0 | D7: 2013-07-03 13:28:32.0 | E7: 0.006898148145 | F7: 0.002465277778 | G7: 0 | H7: 0 | I7: 0 | J7: 0.002465277778
A8: S-0079 | B8: 2013-07-03 | C8: 2013-07-03 13:38:28.0 | D8: 2013-07-03 13:41:25.0 | E8: 0.045625 | F8: 0.002048611111 | G8: 0 | H8: 0 | I8: 0 | J8: 0.002048611111
A9: S-0079 | B9: 2013-07-03 | C9: 2013-07-03 14:47:07.0 | D9: 2013-07-03 14:51:18.0 | E9: 0 | F9: 0.002905092593 | G9: 0 | H9: 0 | I9: 0 | J9: 0.002905092593
A10: S-0079 | B10: 2013-07-03 | C10: 2013-07-03 14:51:18.0 | D10: 2013-07-03 15:00:58.0 | E10: 0 | F10: 0.006712962963 | G10: 0 | H10: 0 | I10: 0 | J10: 0.006712962963
A11: S-0079 | B11: 2013-07-03 | C11: 2013-07-03 15:00:58.0 | D11: 2013-07-03 16:52:04.0 | E11: 0 | F11: 0.07715277778 | G11: 1.157407407e-05 | H11: 0 | I11: 0 | J11: 0.0771412037
A12: S-0079 | B12: 2013-07-03 | C12: 2013-07-03 16:52:04.0 | D12: 2013-07-03 16:57:37.0 | E12: 0 | F12: 0.003854166667 | G12: 0 | H12: 0 | I12: 0 | J12: 0.003854166667
A13: S-0079 | B13: 2013-07-03 | E13: =SUM(E4:E12) -> 0.231412037 | F13: =SUM(F4:F12) -> 0.1154976852 | G13: =SUM(G4:G12) -> 1.157407407e-05 | H13: =SUM(H4:H12) -> 0 | I13: =SUM(I4:I12) -> 0 | J13: =SUM(J4:J12) -> 0.1154861111
A14: S-0079 | B14: 2013-07-04 | C14: 2013-07-04 07:15:40.0 | D14: 2013-07-04 07:30:45.0 | E14: 0 | F14: 0.01047453704 | G14: 0.01 | H14: 2.314814815e-05 | I14: 0 | J14: 0.0004513888889
A15: S-0079 | B15: 2013-07-04 | C15: 2013-07-04 07:30:45.0 | D15: 2013-07-04 07:38:13.0 | E15: 0 | F15: 0.005185185185 | G15: 0 | H15: 0 | I15: 0 | J15: 0.005185185185
A16: S-0079 | B16: 2013-07-04 | C16: 2013-07-04 07:38:13.0 | D16: 2013-07-04 09:58:23.0 | E16: 0 | F16: 0.09733796296 | G16: 1.157407407e-05 | H16: 0 | I16: 0 | J16: 0.09732638889
A17: S-0079 | B17: 2013-07-04 | C17: 2013-07-04 09:58:23.0 | D17: 2013-07-04 10:02:31.0 | E17: 0.01854166666 | F17: 0.00287037037 | G17: 0 | H17: 0 | I17: 0 | J17: 0.00287037037
A18: S-0079 | B18: 2013-07-04 | C18: 2013-07-04 10:29:13.0 | D18: 2013-07-04 10:33:07.0 | E18: 0 | F18: 0.002708333333 | G18: 0 | H18: 0 | I18: 0 | J18: 0.002708333333
A19: S-0079 | B19: 2013-07-04 | C19: 2013-07-04 10:33:07.0 | D19: 2013-07-04 12:18:55.0 | E19: 0.003877314812 | F19: 0.07347222222 | G19: 1.157407407e-05 | H19: 0 | I19: 0 | J19: 0.07346064815
A20: S-0079 | B20: 2013-07-04 | C20: 2013-07-04 12:24:30.0 | D20: 2013-07-04 13:04:14.0 | E20: 0 | F20: 0.02759259259 | G20: 0 | H20: 0 | I20: 0 | J20: 0.02759259259
A21: S-0079 | B21: 2013-07-04 | C21: 2013-07-04 13:04:14.0 | D21: 2013-07-04 13:07:54.0 | E21: 0 | F21: 0.002546296296 | G21: 0 | H21: 0 | I21: 0 | J21: 0.002546296296
A22: S-0079 | B22: 2013-07-04 | C22: 2013-07-04 13:07:54.0 | D22: 2013-07-04 13:15:39.0 | E22: 0.003553240742 | F22: 0.005381944444 | G22: 1.157407407e-05 | H22: 0 | I22: 0 | J22: 0.00537037037
A23: S-0079 | B23: 2013-07-04 | C23: 2013-07-04 13:20:46.0 | D23: 2013-07-04 13:21:52.0 | E23: 0 | F23: 0.0007638888889 | G23: 0 | H23: 0 | I23: 0 | J23: 0.0007638888889
A24: S-0079 | B24: 2013-07-04 | C24: 2013-07-04 13:21:52.0 | D24: 2013-07-04 16:29:11.0 | E24: 0 | F24: 0.1300810185 | G24: 1.157407407e-05 | H24: 0 | I24: 0 | J24: 0.1300694444
A25: S-0079 | B25: 2013-07-04 | C25: 2013-07-04 16:29:11.0 | D25: 2013-07-04 16:55:48.0 | E25: 0 | F25: 0.0184837963 | G25: 0 | H25: 0 | I25: 0 | J25: 0.0184837963
A26: S-0079 | B26: 2013-07-04 | C26: 2013-07-04 16:55:48.0 | D26: 2013-07-04 16:59:35.0 | E26: 0 | F26: 0.002627314815 | G26: 1.157407407e-05 | H26: 0 | I26: 0 | J26: 0.002615740741
A27: S-0079 | B27: 2013-07-04 | C27: 2013-07-04 16:59:35.0 | D27: 2013-07-04 17:05:39.0 | E27: 0 | F27: 0.004212962963 | G27: 0 | H27: 0 | I27: 0 | J27: 0.004212962963
A28: S-0079 | B28: 2013-07-04 | E28: =SUM(E14:E27) -> 0.02597222222 | F28: =SUM(F14:F27) -> 0.3837384259 | G28: =SUM(G14:G27) -> 0.01005787037 | H28: =SUM(H14:H27) -> 2.314814815e-05 | I28: =SUM(I14:I27) -> 0 | J28: =SUM(J14:J27) -> 0.3736574074
A29: S-0079 | B29: 2013-07-05 | C29: 2013-07-05 07:16:05.0 | D29: 2013-07-05 07:19:17.0 | E29: 0 | F29: 0.002222222222 | G29: 0.002071759259 | H29: 0.0001157407407 | I29: 3.472222222e-05 | J29: 0
A30: S-0079 | B30: 2013-07-05 | C30: 2013-07-05 07:19:17.0 | D30: 2013-07-05 07:26:54.0 | E30: 0 | F30: 0.005289351852 | G30: 0.0009375 | H30: 4.62962963e-05 | I30: 0.001574074074 | J30: 0.002731481481
A31: S-0079 | B31: 2013-07-05 | C31: 2013-07-05 07:26:54.0 | D31: 2013-07-05 08:32:52.0 | E31: 0 | F31: 0.04581018519 | G31: 2.314814815e-05 | H31: 0 | I31: 0 | J31: 0.04578703704
A32: S-0079 | B32: 2013-07-05 | C32: 2013-07-05 08:32:52.0 | D32: 2013-07-05 08:39:34.0 | E32: 0.1902199074 | F32: 0.004652777778 | G32: 0 | H32: 0 | I32: 0 | J32: 0.004652777778
A33: S-0079 | B33: 2013-07-05 | C33: 2013-07-05 13:13:29.0 | D33: 2013-07-05 13:19:08.0 | E33: 0 | F33: 0.003923611111 | G33: 0 | H33: 0 | I33: 0 | J33: 0.003923611111
A34: S-0079 | B34: 2013-07-05 | C34: 2013-07-05 13:19:08.0 | D34: 2013-07-05 13:22:15.0 | E34: 0 | F34: 0.002164351852 | G34: 1.157407407e-05 | H34: 0 | I34: 0 | J34: 0.002152777778
A35: S-0079 | B35: 2013-07-05 | C35: 2013-07-05 13:22:15.0 | D35: 2013-07-05 13:47:08.0 | E35: 0.004861111112 | F35: 0.01728009259 | G35: 0 | H35: 0 | I35: 0 | J35: 0.01728009259
A36: S-0079 | B36: 2013-07-05 | C36: 2013-07-05 13:54:08.0 | D36: 2013-07-05 14:36:31.0 | E36: 0 | F36: 0.02943287037 | G36: 0 | H36: 0 | I36: 0 | J36: 0.02943287037
A37: S-0079 | B37: 2013-07-05 | C37: 2013-07-05 14:36:31.0 | D37: 2013-07-05 14:40:59.0 | E37: 0 | F37: 0.003101851852 | G37: 1.157407407e-05 | H37: 0 | I37: 0 | J37: 0.003090277778
A38: S-0079 | B38: 2013-07-05 | C38: 2013-07-05 14:40:59.0 | D38: 2013-07-05 14:49:16.0 | E38: 0.1067939815 | F38: 0.005752314815 | G38: 0 | H38: 0 | I38: 0 | J38: 0.005752314815
A39: S-0079 | B39: 2013-07-05 | C39: 2013-07-05 17:23:03.0 | D39: 2013-07-05 17:28:07.0 | E39: 0 | F39: 0.003518518519 | G39: 0 | H39: 0 | I39: 0 | J39: 0.003518518519
A40: S-0079 | B40: 2013-07-05 | C40: 2013-07-05 17:28:07.0 | D40: 2013-07-05 18:40:51.0 | E40: 0 | F40: 0.05050925926 | G40: 1.157407407e-05 | H40: 0 | I40: 0 | J40: 0.05049768519
A41: S-0079 | B41: 2013-07-05 | C41: 2013-07-05 18:40:51.0 | D41: 2013-07-05 18:46:53.0 | E41: 0 | F41: 0.004189814815 | G41: 0 | H41: 0 | I41: 0 | J41: 0.004189814815
A42: S-0079 | B42: 2013-07-05 | E42: =SUM(E29:E41) -> 0.301875 | F42: =SUM(F29:F41) -> 0.1778472222 | G42: =SUM(G29:G41) -> 0.00306712963 | H42: =SUM(H29:H41) -> 0.000162037037 | I42: =SUM(I29:I41) -> 0.001608796296 | J42: =SUM(J29:J41) -> 0.1730092593
A43: S-0079 | B43: 2013-07-06 | C43: 2013-07-06 06:50:45.0 | D43: 2013-07-06 07:04:22.0 | E43: 0 | F43: 0.009456018519 | G43: 0.009305555556 | H43: 1.157407407e-05 | I43: 6.944444444e-05 | J43: 6.944444444e-05
A44: S-0079 | B44: 2013-07-06 | C44: 2013-07-06 07:04:22.0 | D44: 2013-07-06 07:09:28.0 | E44: 0 | F44: 0.003541666667 | G44: 0 | H44: 0 | I44: 0 | J44: 0.003541666667
A45: S-0079 | B45: 2013-07-06 | C45: 2013-07-06 07:09:28.0 | D45: 2013-07-06 10:03:25.0 | E45: 0.02034722222 | F45: 0.1207986111 | G45: 1.157407407e-05 | H45: 0 | I45: 0 | J45: 0.120787037
A46: S-0079 | B46: 2013-07-06 | C46: 2013-07-06 10:32:43.0 | D46: 2013-07-06 11:24:45.0 | E46: 0 | F46: 0.03613425926 | G46: 1.157407407e-05 | H46: 0 | I46: 0 | J46: 0.03612268519
A47: S-0079 | B47: 2013-07-06 | C47: 2013-07-06 11:24:45.0 | D47: 2013-07-06 11:29:33.0 | E47: 0 | F47: 0.003333333333 | G47: 0 | H47: 0 | I47: 0 | J47: 0.003333333333
A48: S-0079 | B48: 2013-07-06 | C48: 2013-07-06 11:29:33.0 | D48: 2013-07-06 11:33:13.0 | E48: 0 | F48: 0.002546296296 | G48: 1.157407407e-05 | H48: 0 | I48: 0 | J48: 0.002534722222
A49: S-0079 | B49: 2013-07-06 | C49: 2013-07-06 11:33:13.0 | D49: 2013-07-06 11:36:10.0 | E49: 0 | F49: 0.002048611111 | G49: 0 | H49: 0 | I49: 0 | J49: 0.002048611111
A50: S-0079 | B50: 2013-07-06 | C50: 2013-07-06 11:36:10.0 | D50: 2013-07-06 12:01:11.0 | E50: 0 | F50: 0.01737268519 | G50: 1.157407407e-05 | H50: 0 | I50: 0 | J50: 0.01736111111
A51: S-0079 | B51: 2013-07-06 | C51: 2013-07-06 12:01:11.0 | D51: 2013-07-06 12:05:32.0 | E51: 0 | F51: 0.003020833333 | G51: 0 | H51: 0 | I51: 0 | J51: 0.003020833333
A52: S-0079 | B52: 2013-07-06 | C52: 2013-07-06 12:05:32.0 | D52: 2013-07-06 13:13:47.0 | E52: 0 | F52: 0.04739583333 | G52: 1.157407407e-05 | H52: 0 | I52: 0 | J52: 0.04738425926
A53: S-0079 | B53: 2013-07-06 | C53: 2013-07-06 13:13:47.0 | D53: 2013-07-06 13:14:04.0 | E53: 0 | F53: 0.0001967592593 | G53: 0 | H53: 0 | I53: 0 | J53: 0.0001967592593
A54: S-0079 | B54: 2013-07-06 | C54: 2013-07-06 13:14:04.0 | D54: 2013-07-06 13:44:07.0 | E54: 0 | F54: 0.02086805556 | G54: 1.157407407e-05 | H54: 0 | I54: 0 | J54: 0.02085648148
A55: S-0079 | B55: 2013-07-06 | C55: 2013-07-06 13:44:07.0 | D55: 2013-07-06 13:51:58.0 | E55: 0 | F55: 0.005451388889 | G55: 0 | H55: 0 | I55: 0 | J55: 0.005451388889
A56: S-0079 | B56: 2013-07-06 | E56: =SUM(E43:E55) -> 0.02034722222 | F56: =SUM(F43:F55) -> 0.2721643519 | G56: =SUM(G43:G55) -> 0.009375 | H56: =SUM(H43:H55) -> 1.157407407e-05 | I56: =SUM(I43:I55) -> 6.944444444e-05 | J56: =SUM(J43:J55) -> 0.2627083333
A57: S-0079 | B57: 2013-07-08 | C57: 2013-07-08 07:03:12.0 | D57: 2013-07-08 07:07:53.0 | E57: 0 | F57: 0.003252314815 | G57: 0.003159722222 | H57: 1.157407407e-05 | I57: 8.101851852e-05 | J57: 0
A58: S-0079 | B58: 2013-07-08 | C58: 2013-07-08 07:07:53.0 | D58: 2013-07-08 07:11:46.0 | E58: 0 | F58: 0.002696759259 | G58: 0 | H58: 0 | I58: 0.0003125 | J58: 0.002384259259
A59: S-0079 | B59: 2013-07-08 | C59: 2013-07-08 07:11:46.0 | D59: 2013-07-08 09:59:24.0 | E59: 0.008750000001 | F59: 0.116412037 | G59: 0.003680555556 | H59: 2.314814815e-05 | I59: 2.314814815e-05 | J59: 0.1126851852
A60: S-0079 | B60: 2013-07-08 | C60: 2013-07-08 10:12:00.0 | D60: 2013-07-08 10:17:16.0 | E60: 0 | F60: 0.003657407407 | G60: 0 | H60: 0 | I60: 0 | J60: 0.003657407407
A61: S-0079 | B61: 2013-07-08 | C61: 2013-07-08 10:17:16.0 | D61: 2013-07-08 10:20:27.0 | E61: 0 | F61: 0.002210648148 | G61: 0 | H61: 0 | I61: 0 | J61: 0.002210648148
A62: S-0079 | B62: 2013-07-08 | C62: 2013-07-08 10:20:27.0 | D62: 2013-07-08 11:00:14.0 | E62: 0 | F62: 0.02762731481 | G62: 1.157407407e-05 | H62: 0 | I62: 0 | J62: 0.02761574074
A63: S-0079 | B63: 2013-07-08 | C63: 2013-07-08 11:00:14.0 | D63: 2013-07-08 11:02:56.0 | E63: 0.006736111114 | F63: 0.001875 | G63: 0 | H63: 0 | I63: 0 | J63: 0.001875
A64: S-0079 | B64: 2013-07-08 | C64: 2013-07-08 11:12:38.0 | D64: 2013-07-08 11:13:53.0 | E64: 0 | F64: 0.0008680555556 | G64: 0 | H64: 0 | I64: 0 | J64: 0.0008680555556
A65: S-0079 | B65: 2013-07-08 | C65: 2013-07-08 11:13:53.0 | D65: 2013-07-08 12:39:53.0 | E65: 0 | F65: 0.05972222222 | G65: 1.157407407e-05 | H65: 0 | I65: 0 | J65: 0.05971064815
A66: S-0079 | B66: 2013-07-08 | C66: 2013-07-08 12:39:53.0 | D66: 2013-07-08 12:45:17.0 | E66: 0 | F66: 0.00375 | G66: 0 | H66: 0 | I66: 0 | J66: 0.00375
A67: S-0079 | B67: 2013-07-08 | C67: 2013-07-08 12:45:17.0 | D67: 2013-07-08 12:51:27.0 | E67: 0 | F67: 0.004282407407 | G67: 1.157407407e-05 | H67: 0 | I67: 0 | J67: 0.004270833333
A68: S-0079 | B68: 2013-07-08 | C68: 2013-07-08 12:51:27.0 | D68: 2013-07-08 12:51:42.0 | E68: 0 | F68: 0.0001736111111 | G68: 0 | H68: 0 | I68: 0 | J68: 0.0001736111111
A69: S-0079 | B69: 2013-07-08 | C69: 2013-07-08 12:51:42.0 | D69: 2013-07-08 12:56:04.0 | E69: 0 | F69: 0.003032407407 | G69: 1.157407407e-05 | H69: 0 | I69: 0 | J69: 0.003020833333
A70: S-0079 | B70: 2013-07-08 | C70: 2013-07-08 12:56:04.0 | D70: 2013-07-08 13:00:36.0 | E70: 0.0105787037 | F70: 0.003148148148 | G70: 0 | H70: 0 | I70: 0 | J70: 0.003148148148
A71: S-0079 | B71: 2013-07-08 | C71: 2013-07-08 13:15:50.0 | D71: 2013-07-08 13:33:30.0 | E71: 0 | F71: 0.01226851852 | G71: 0 | H71: 0 | I71: 0 | J71: 0.01226851852
A72: S-0079 | B72: 2013-07-08 | C72: 2013-07-08 13:33:30.0 | D72: 2013-07-08 15:05:00.0 | E72: 0 | F72: 0.06354166667 | G72: 1.157407407e-05 | H72: 0 | I72: 0 | J72: 0.06353009259
A73: S-0079 | B73: 2013-07-08 | C73: 2013-07-08 15:05:00.0 | D73: 2013-07-08 15:05:41.0 | E73: 0 | F73: 0.000474537037 | G73: 0 | H73: 0 | I73: 0 | J73: 0.000474537037
A74: S-0079 | B74: 2013-07-08 | C74: 2013-07-08 15:05:41.0 | D74: 2013-07-08 18:22:22.0 | E74: 0 | F74: 0.1365856481 | G74: 1.157407407e-05 | H74: 0 | I74: 0 | J74: 0.1365740741
A75: S-0079 | B75: 2013-07-08 | C75: 2013-07-08 18:22:22.0 | D75: 2013-07-08 18:34:09.0 | E75: 0 | F75: 0.00818287037 | G75: 0 | H75: 0 | I75: 0 | J75: 0.00818287037
A76: S-0079 | B76: 2013-07-08 | E76: =SUM(E57:E75) -> 0.02606481482 | F76: =SUM(F57:F75) -> 0.4537615741 | G76: =SUM(G57:G75) -> 0.006909722222 | H76: =SUM(H57:H75) -> 3.472222222e-05 | I76: =SUM(I57:I75) -> 0.0004166666667 | J76: =SUM(J57:J75) -> 0.446400463
A77: S-0079 | B77: 2013-07-09 | C77: 2013-07-09 07:11:11.0 | D77: 2013-07-09 07:17:41.0 | E77: 0 | F77: 0.004513888889 | G77: 0.0004398148148 | H77: 0.0004398148148 | I77: 0.0005671296296 | J77: 0.00306712963
A78: S-0079 | B78: 2013-07-09 | C78: 2013-07-09 07:17:41.0 | D78: 2013-07-09 11:48:09.0 | E78: 0 | F78: 0.1878240741 | G78: 0.003206018519 | H78: 5.787037037e-05 | I78: 3.472222222e-05 | J78: 0.184525463
A79: S-0079 | B79: 2013-07-09 | C79: 2013-07-09 11:48:09.0 | D79: 2013-07-09 11:54:29.0 | E79: 0.07263888889 | F79: 0.004398148148 | G79: 0 | H79: 0 | I79: 0 | J79: 0.004398148148
A80: S-0079 | B80: 2013-07-09 | C80: 2013-07-09 13:39:05.0 | D80: 2013-07-09 13:46:11.0 | E80: 0.01152777778 | F80: 0.004930555556 | G80: 0 | H80: 0 | I80: 0 | J80: 0.004930555556
A81: S-0079 | B81: 2013-07-09 | C81: 2013-07-09 14:02:47.0 | D81: 2013-07-09 14:21:52.0 | E81: 0 | F81: 0.01325231481 | G81: 0 | H81: 0 | I81: 0 | J81: 0.01325231481
A82: S-0079 | B82: 2013-07-09 | C82: 2013-07-09 14:21:52.0 | D82: 2013-07-09 14:22:35.0 | E82: 0 | F82: 0.0004976851852 | G82: 0 | H82: 0 | I82: 0 | J82: 0.0004976851852
A83: S-0079 | B83: 2013-07-09 | C83: 2013-07-09 14:22:35.0 | D83: 2013-07-09 14:53:34.0 | E83: 0 | F83: 0.0215162037 | G83: 1.157407407e-05 | H83: 0 | I83: 0 | J83: 0.02150462963
A84: S-0079 | B84: 2013-07-09 | C84: 2013-07-09 14:53:34.0 | D84: 2013-07-09 15:03:06.0 | E84: 0 | F84: 0.00662037037 | G84: 0 | H84: 0 | I84: 0 | J84: 0.00662037037
A85: S-0079 | B85: 2013-07-09 | C85: 2013-07-09 15:03:06.0 | D85: 2013-07-09 15:07:30.0 | E85: 0 | F85: 0.003055555556 | G85: 1.157407407e-05 | H85: 0 | I85: 0 | J85: 0.003043981481
A86: S-0079 | B86: 2013-07-09 | C86: 2013-07-09 15:07:30.0 | D86: 2013-07-09 15:12:05.0 | E86: 0 | F86: 0.00318287037 | G86: 0 | H86: 0 | I86: 0 | J86: 0.00318287037
A87: S-0079 | B87: 2013-07-09 | C87: 2013-07-09 15:12:05.0 | D87: 2013-07-09 15:27:45.0 | E87: 0 | F87: 0.01087962963 | G87: 1.157407407e-05 | H87: 0 | I87: 0 | J87: 0.01086805556
A88: S-0079 | B88: 2013-07-09 | C88: 2013-07-09 15:27:45.0 | D88: 2013-07-09 15:34:14.0 | E88: 0 | F88: 0.004502314815 | G88: 0 | H88: 0 | I88: 0 | J88: 0.004502314815
A89: S-0079 | B89: 2013-07-09 | C89: 2013-07-09 15:34:14.0 | D89: 2013-07-09 15:39:46.0 | E89: 0 | F89: 0.003842592593 | G89: 1.157407407e-05 | H89: 0 | I89: 0 | J89: 0.003831018519
A90: S-0079 | B90: 2013-07-09 | C90: 2013-07-09 15:39:46.0 | D90: 2013-07-09 15:43:51.0 | E90: 0 | F90: 0.002835648148 | G90: 0 | H90: 0 | I90: 0 | J90: 0.002835648148
A91: S-0079 | B91: 2013-07-09 | C91: 2013-07-09 15:43:51.0 | D91: 2013-07-09 15:47:29.0 | E91: 0 | F91: 0.002523148148 | G91: 1.157407407e-05 | H91: 0 | I91: 0 | J91: 0.002511574074
A92: S-0079 | B92: 2013-07-09 | C92: 2013-07-09 15:47:29.0 | D92: 2013-07-09 16:26:57.0 | E92: 0 | F92: 0.02740740741 | G92: 0 | H92: 0 | I92: 0 | J92: 0.02740740741
A93: S-0079 | B93: 2013-07-09 | C93: 2013-07-09 16:26:57.0 | D93: 2013-07-09 17:48:48.0 | E93: 0 | F93: 0.05684027778 | G93: 2.314814815e-05 | H93: 0 | I93: 0 | J93: 0.05681712963
A94: S-0079 | B94: 2013-07-09 | C94: 2013-07-09 17:48:48.0 | D94: 2013-07-09 17:49:25.0 | E94: 0 | F94: 0.0004282407407 | G94: 0 | H94: 0 | I94: 0 | J94: 0.0004282407407
A95: S-0079 | B95: 2013-07-09 | C95: 2013-07-09 17:49:25.0 | D95: 2013-07-09 18:37:24.0 | E95: 0 | F95: 0.03332175926 | G95: 3.472222222e-05 | H95: 0 | I95: 0 | J95: 0.03328703704
A96: S-0079 | B96: 2013-07-09 | C96: 2013-07-09 18:37:24.0 | D96: 2013-07-09 18:48:38.0 | E96: 0 | F96: 0.007800925926 | G96: 0 | H96: 0 | I96: 0 | J96: 0.007800925926
A97: S-0079 | B97: 2013-07-09 | C97: 2013-07-09 18:48:38.0 | D97: 2013-07-09 18:52:37.0 | E97: 0 | F97: 0.002766203704 | G97: 1.157407407e-05 | H97: 0 | I97: 0 | J97: 0.00275462963
A98: S-0079 | B98: 2013-07-09 | E98: =SUM(E77:E97) -> 0.08416666667 | F98: =SUM(F77:F97) -> 0.4029398148 | G98: =SUM(G77:G97) -> 0.003773148148 | H98: =SUM(H77:H97) -> 0.0004976851852 | I98: =SUM(I77:I97) -> 0.0006018518519 | J98: =SUM(J77:J97) -> 0.3980671296
A99: S-0112 | B99: 2013-07-02 | C99: 2013-07-02 06:48:59.0 | D99: 2013-07-02 07:08:33.0 | E99: 0.01206018518 | F99: 0.01358796296 | G99: 0 | H99: 0 | I99: 0 | J99: 0.01358796296
A100: S-0112 | B100: 2013-07-02 | C100: 2013-07-02 07:25:55.0 | D100: 2013-07-02 07:42:04.0 | E100: 0 | F100: 0.01121527778 | G100: 0 | H100: 0 | I100: 0 | J100: 0.01121527778
A101: S-0112 | B101: 2013-07-02 | C101: 2013-07-02 07:42:04.0 | D101: 2013-07-02 07:51:46.0 | E101: 1.157407678e-05 | F101: 0.006736111111 | G101: 0 | H101: 0 | I101: 0 | J101: 0.006736111111
A102: S-0112 | B102: 2013-07-02 | C102: 2013-07-02 07:51:47.0 | D102: 2013-07-02 08:45:59.0 | E102: 0 | F102: 0.03763888889 | G102: 0 | H102: 0 | I102: 0 | J102: 0.03763888889
A103: S-0112 | B103: 2013-07-02 | C103: 2013-07-02 08:45:59.0 | D103: 2013-07-02 08:58:06.0 | E103: 0 | F103: 0.008414351852 | G103: 1.157407407e-05 | H103: 0 | I103: 0 | J103: 0.008402777778
A104: S-0112 | B104: 2013-07-02 | C104: 2013-07-02 08:58:06.0 | D104: 2013-07-02 08:58:55.0 | E104: 0.02083333334 | F104: 0.0005671296296 | G104: 0 | H104: 0 | I104: 0 | J104: 0.0005671296296
A105: S-0112 | B105: 2013-07-02 | C105: 2013-07-02 09:28:55.0 | D105: 2013-07-02 11:10:06.0 | E105: 0 | F105: 0.0702662037 | G105: 0 | H105: 0 | I105: 0 | J105: 0.0702662037
A106: S-0112 | B106: 2013-07-02 | C106: 2013-07-02 11:10:06.0 | D106: 2013-07-02 11:12:51.0 | E106: 0 | F106: 0.001909722222 | G106: 0 | H106: 0 | I106: 0 | J106: 0.001909722222
A107: S-0112 | B107: 2013-07-02 | C107: 2013-07-02 11:12:51.0 | D107: 2013-07-02 11:19:02.0 | E107: 0 | F107: 0.004293981481 | G107: 1.157407407e-05 | H107: 0 | I107: 0 | J107: 0.004282407407
A108: S-0112 | B108: 2013-07-02 | C108: 2013-07-02 11:19:02.0 | D108: 2013-07-02 11:22:14.0 | E108: 0 | F108: 0.002222222222 | G108: 0 | H108: 0 | I108: 0 | J108: 0.002222222222
A109: S-0112 | B109: 2013-07-02 | C109: 2013-07-02 11:22:14.0 | D109: 2013-07-02 11:40:02.0 | E109: 0 | F109: 0.01236111111 | G109: 1.157407407e-05 | H109: 0 | I109: 0 | J109: 0.01234953704
A110: S-0112 | B110: 2013-07-02 | C110: 2013-07-02 11:40:02.0 | D110: 2013-07-02 11:47:45.0 | E110: 0 | F110: 0.005358796296 | G110: 0 | H110: 0 | I110: 0 | J110: 0.005358796296
A111: S-0112 | B111: 2013-07-02 | C111: 2013-07-02 11:47:45.0 | D111: 2013-07-02 12:06:10.0 | E111: 0 | F111: 0.01278935185 | G111: 1.157407407e-05 | H111: 0 | I111: 0 | J111: 0.01277777778
A112: S-0112 | B112: 2013-07-02 | C112: 2013-07-02 12:06:10.0 | D112: 2013-07-02 12:15:29.0 | E112: 0 | F112: 0.006469907407 | G112: 0 | H112: 0 | I112: 0 | J112: 0.006469907407
A113: S-0112 | B113: 2013-07-02 | C113: 2013-07-02 12:15:29.0 | D113: 2013-07-02 13:15:51.0 | E113: 0 | F113: 0.0419212963 | G113: 1.157407407e-05 | H113: 0 | I113: 0 | J113: 0.04190972222
A114: S-0112 | B114: 2013-07-02 | C114: 2013-07-02 13:15:51.0 | D114: 2013-07-02 13:22:33.0 | E114: 0 | F114: 0.004652777778 | G114: 0 | H114: 0 | I114: 0 | J114: 0.004652777778
A115: S-0112 | B115: 2013-07-02 | C115: 2013-07-02 13:22:33.0 | D115: 2013-07-02 13:36:42.0 | E115: 0 | F115: 0.009826388889 | G115: 1.157407407e-05 | H115: 0 | I115: 0 | J115: 0.009814814815
A116: S-0112 | B116: 2013-07-02 | C116: 2013-07-02 13:36:42.0 | D116: 2013-07-02 13:54:01.0 | E116: 0 | F116: 0.01202546296 | G116: 0 | H116: 0 | I116: 0 | J116: 0.01202546296
A117: S-0112 | B117: 2013-07-02 | C117: 2013-07-02 13:54:01.0 | D117: 2013-07-02 13:59:52.0 | E117: 0 | F117: 0.0040625 | G117: 1.157407407e-05 | H117: 0 | I117: 0 | J117: 0.004050925926
A118: S-0112 | B118: 2013-07-02 | C118: 2013-07-02 13:59:52.0 | D118: 2013-07-02 14:45:35.0 | E118: 0 | F118: 0.03174768519 | G118: 0 | H118: 0 | I118: 0 | J118: 0.03174768519
A119: S-0112 | B119: 2013-07-02 | C119: 2013-07-02 14:45:35.0 | D119: 2013-07-02 15:12:27.0 | E119: 0 | F119: 0.01865740741 | G119: 1.157407407e-05 | H119: 0 | I119: 0 | J119: 0.01864583333
A120: S-0112 | B120: 2013-07-02 | C120: 2013-07-02 15:12:27.0 | D120: 2013-07-02 15:48:38.0 | E120: 0 | F120: 0.02512731481 | G120: 0 | H120: 0 | I120: 0 | J120: 0.02512731481
A121: S-0112 | B121: 2013-07-02 | C121: 2013-07-02 15:48:38.0 | D121: 2013-07-02 15:58:03.0 | E121: 0 | F121: 0.006539351852 | G121: 1.157407407e-05 | H121: 0 | I121: 0 | J121: 0.006527777778
A122: S-0112 | B122: 2013-07-02 | C122: 2013-07-02 15:58:03.0 | D122: 2013-07-02 16:04:48.0 | E122: 0.02329861112 | F122: 0.0046875 | G122: 0 | H122: 0 | I122: 0 | J122: 0.0046875
A123: S-0112 | B123: 2013-07-02 | C123: 2013-07-02 16:38:21.0 | D123: 2013-07-02 16:41:57.0 | E123: 0 | F123: 0.0025 | G123: 0 | H123: 0 | I123: 0 | J123: 0.0025
A124: S-0112 | B124: 2013-07-02 | C124: 2013-07-02 16:41:57.0 | D124: 2013-07-02 16:51:04.0 | E124: 0 | F124: 0.006331018519 | G124: 0 | H124: 0 | I124: 0 | J124: 0.006331018519
A125: S-0112 | B125: 2013-07-02 | C125: 2013-07-02 16:51:04.0 | D125: 2013-07-02 17:02:05.0 | E125: 0 | F125: 0.007650462963 | G125: 1.157407407e-05 | H125: 0 | I125: 0 | J125: 0.007638888889
A126: S-0112 | B126: 2013-07-02 | C126: 2013-07-02 17:02:05.0 | D126: 2013-07-02 17:29:35.0 | E126: 0 | F126: 0.01909722222 | G126: 0 | H126: 0 | I126: 0 | J126: 0.01909722222
A127: S-0112 | B127: 2013-07-02 | C127: 2013-07-02 17:29:35.0 | D127: 2013-07-02 17:36:43.0 | E127: 0 | F127: 0.004953703704 | G127: 1.157407407e-05 | H127: 0 | I127: 0 | J127: 0.00494212963
A128: S-0112 | B128: 2013-07-02 | C128: 2013-07-02 17:36:43.0 | D128: 2013-07-02 18:26:31.0 | E128: 0.02532407408 | F128: 0.03458333333 | G128: 0 | H128: 0 | I128: 0 | J128: 0.03458333333
A129: S-0112 | B129: 2013-07-02 | C129: 2013-07-02 19:02:59.0 | D129: 2013-07-02 19:34:27.0 | E129: 0 | F129: 0.02185185185 | G129: 0 | H129: 0 | I129: 0 | J129: 0.02185185185
A130: S-0112 | B130: 2013-07-02 | E130: =SUM(E99:E129) -> 0.08152777779 | F130: =SUM(F99:F129) -> 0.4500462963 | G130: =SUM(G99:G129) -> 0.0001273148148 | H130: =SUM(H99:H129) -> 0 | I130: =SUM(I99:I129) -> 0 | J130: =SUM(J99:J129) -> 0.4499189815
A131: S-0112 | B131: 2013-07-03 | C131: 2013-07-03 08:02:13.0 | D131: 2013-07-03 08:07:02.0 | E131: 0 | F131: 0.003344907407 | G131: 0 | H131: 0 | I131: 0 | J131: 0.003344907407
A132: S-0112 | B132: 2013-07-03 | C132: 2013-07-03 08:07:02.0 | D132: 2013-07-03 08:27:35.0 | E132: 0 | F132: 0.01427083333 | G132: 0 | H132: 0 | I132: 0 | J132: 0.01427083333
A133: S-0112 | B133: 2013-07-03 | C133: 2013-07-03 08:27:35.0 | D133: 2013-07-03 08:34:39.0 | E133: 0.03163194444 | F133: 0.004907407407 | G133: 1.157407407e-05 | H133: 0 | I133: 0 | J133: 0.004895833333
A134: S-0112 | B134: 2013-07-03 | C134: 2013-07-03 09:20:12.0 | D134: 2013-07-03 09:53:44.0 | E134: 0.02195601852 | F134: 0.02328703704 | G134: 0 | H134: 0 | I134: 0 | J134: 0.02328703704
A135: S-0112 | B135: 2013-07-03 | C135: 2013-07-03 10:25:21.0 | D135: 2013-07-03 10:29:31.0 | E135: 0 | F135: 0.002893518519 | G135: 0 | H135: 0 | I135: 0 | J135: 0.002893518519
A136: S-0112 | B136: 2013-07-03 | C136: 2013-07-03 10:29:31.0 | D136: 2013-07-03 11:01:25.0 | E136: 0.01615740741 | F136: 0.02215277778 | G136: 0 | H136: 0 | I136: 0 | J136: 0.02215277778
A137: S-0112 | B137: 2013-07-03 | C137: 2013-07-03 11:24:41.0 | D137: 2013-07-03 11:36:16.0 | E137: 0.01315972222 | F137: 0.008043981481 | G137: 0 | H137: 0 | I137: 0 | J137: 0.008043981481
A138: S-0112 | B138: 2013-07-03 | C138: 2013-07-03 11:55:13.0 | D138: 2013-07-03 11:56:48.0 | E138: 0.00618055556 | F138: 0.001099537037 | G138: 0 | H138: 0 | I138: 0 | J138: 0.001099537037
A139: S-0112 | B139: 2013-07-03 | C139: 2013-07-03 12:05:42.0 | D139: 2013-07-03 12:06:51.0 | E139: 0.02482638889 | F139: 0.0007986111111 | G139: 0 | H139: 0 | I139: 0 | J139: 0.0007986111111
A140: S-0112 | B140: 2013-07-03 | C140: 2013-07-03 12:42:36.0 | D140: 2013-07-03 12:47:38.0 | E140: 0 | F140: 0.00349537037 | G140: 0 | H140: 0 | I140: 0 | J140: 0.00349537037
A141: S-0112 | B141: 2013-07-03 | C141: 2013-07-03 12:47:38.0 | D141: 2013-07-03 12:56:39.0 | E141: 0 | F141: 0.006261574074 | G141: 0 | H141: 0 | I141: 0 | J141: 0.006261574074
A142: S-0112 | B142: 2013-07-03 | C142: 2013-07-03 12:56:39.0 | D142: 2013-07-03 13:08:13.0 | E142: 0 | F142: 0.008032407407 | G142: 1.157407407e-05 | H142: 0 | I142: 0 | J142: 0.008020833333
A143: S-0112 | B143: 2013-07-03 | C143: 2013-07-03 13:08:13.0 | D143: 2013-07-03 13:36:11.0 | E143: 0 | F143: 0.0194212963 | G143: 0 | H143: 0 | I143: 0 | J143: 0.0194212963
A144: S-0112 | B144: 2013-07-03 | C144: 2013-07-03 13:36:11.0 | D144: 2013-07-03 13:40:55.0 | E144: 0 | F144: 0.003287037037 | G144: 1.157407407e-05 | H144: 0 | I144: 0 | J144: 0.003275462963
A145: S-0112 | B145: 2013-07-03 | C145: 2013-07-03 13:40:55.0 | D145: 2013-07-03 13:42:08.0 | E145: 0 | F145: 0.0008449074074 | G145: 0 | H145: 0 | I145: 0 | J145: 0.0008449074074
A146: S-0112 | B146: 2013-07-03 | C146: 2013-07-03 13:42:08.0 | D146: 2013-07-03 13:47:28.0 | E146: 0 | F146: 0.003703703704 | G146: 1.157407407e-05 | H146: 0 | I146: 0 | J146: 0.00369212963
A147: S-0112 | B147: 2013-07-03 | C147: 2013-07-03 13:47:28.0 | D147: 2013-07-03 13:55:09.0 | E147: 0 | F147: 0.005335648148 | G147: 0 | H147: 0 | I147: 0 | J147: 0.005335648148
A148: S-0112 | B148: 2013-07-03 | C148: 2013-07-03 13:55:09.0 | D148: 2013-07-03 14:08:47.0 | E148: 0 | F148: 0.009467592593 | G148: 1.157407407e-05 | H148: 0 | I148: 0 | J148: 0.009456018519
A149: S-0112 | B149: 2013-07-03 | C149: 2013-07-03 14:08:47.0 | D149: 2013-07-03 14:19:19.0 | E149: 0 | F149: 0.007314814815 | G149: 0 | H149: 0 | I149: 0 | J149: 0.007314814815
A150: S-0112 | B150: 2013-07-03 | C150: 2013-07-03 14:19:19.0 | D150: 2013-07-03 14:37:15.0 | E150: 0 | F150: 0.0124537037 | G150: 2.314814815e-05 | H150: 0 | I150: 0 | J150: 0.01243055556
A151: S-0112 | B151: 2013-07-03 | C151: 2013-07-03 14:37:15.0 | D151: 2013-07-03 14:52:59.0 | E151: 0 | F151: 0.01092592593 | G151: 0 | H151: 0 | I151: 0 | J151: 0.01092592593
A152: S-0112 | B152: 2013-07-03 | C152: 2013-07-03 14:52:59.0 | D152: 2013-07-03 15:17:49.0 | E152: 0 | F152: 0.01724537037 | G152: 1.157407407e-05 | H152: 0 | I152: 0 | J152: 0.0172337963
A153: S-0112 | B153: 2013-07-03 | C153: 2013-07-03 15:17:49.0 | D153: 2013-07-03 15:19:19.0 | E153: 0 | F153: 0.001041666667 | G153: 0 | H153: 0 | I153: 0 | J153: 0.001041666667
A154: S-0112 | B154: 2013-07-03 | C154: 2013-07-03 15:19:19.0 | D154: 2013-07-03 15:26:51.0 | E154: 0.05425925926 | F154: 0.005231481481 | G154: 1.157407407e-05 | H154: 0 | I154: 0 | J154: 0.005219907407
A155: S-0112 | B155: 2013-07-03 | C155: 2013-07-03 16:44:59.0 | D155: 2013-07-03 16:50:13.0 | E155: 0 | F155: 0.003634259259 | G155: 0 | H155: 0 | I155: 0 | J155: 0.003634259259
A156: S-0112 | B156: 2013-07-03 | C156: 2013-07-03 16:50:13.0 | D156: 2013-07-03 17:04:28.0 | E156: 0 | F156: 0.009895833333 | G156: 0 | H156: 0 | I156: 0 | J156: 0.009895833333
A157: S-0112 | B157: 2013-07-03 | C157: 2013-07-03 17:04:28.0 | D157: 2013-07-03 17:26:27.0 | E157: 0 | F157: 0.0152662037 | G157: 1.157407407e-05 | H157: 0 | I157: 0 | J157: 0.01525462963
A158: S-0112 | B158: 2013-07-03 | C158: 2013-07-03 17:26:27.0 | D158: 2013-07-03 17:37:49.0 | E158: 0 | F158: 0.007893518519 | G158: 0 | H158: 0 | I158: 0 | J158: 0.007893518519
A159: S-0112 | B159: 2013-07-03 | C159: 2013-07-03 17:37:49.0 | D159: 2013-07-03 17:41:19.0 | E159: 0 | F159: 0.002430555556 | G159: 1.157407407e-05 | H159: 0 | I159: 0 | J159: 0.002418981481
A160: S-0112 | B160: 2013-07-03 | C160: 2013-07-03 17:41:19.0 | D160: 2013-07-03 17:48:17.0 | E160: 0 | F160: 0.004837962963 | G160: 0 | H160: 0 | I160: 0 | J160: 0.004837962963
A161: S-0112 | B161: 2013-07-03 | C161: 2013-07-03 17:48:17.0 | D161: 2013-07-03 17:54:59.0 | E161: 0 | F161: 0.004652777778 | G161: 1.157407407e-05 | H161: 0 | I161: 0 | J161: 0.004641203704
A162: S-0112 | B162: 2013-07-03 | C162: 2013-07-03 17:54:59.0 | D162: 2013-07-03 18:02:11.0 | E162: 0 | F162: 0.005 | G162: 0 | H162: 0 | I162: 0 | J162: 0.005
A163: S-0112 | B163: 2013-07-03 | C163: 2013-07-03 18:02:11.0 | D163: 2013-07-03 18:11:58.0 | E163: 0 | F163: 0.006793981481 | G163: 1.157407407e-05 | H163: 0 | I163: 0 | J163: 0.006782407407
A164: S-0112 | B164: 2013-07-03 | E164: =SUM(E131:E163) -> 0.1681712963 | F164: =SUM(F131:F163) -> 0.2552662037 | G164: =SUM(G131:G163) -> 0.000150462963 | H164: =SUM(H131:H163) -> 0 | I164: =SUM(I131:I163) -> 0 | J164: =SUM(J131:J163) -> 0.2551157407
A165: S-0112 | B165: 2013-07-04 | C165: 2013-07-04 08:33:01.0 | D165: 2013-07-04 08:36:08.0 | E165: 0.02849537037 | F165: 0.002164351852 | G165: 0 | H165: 0 | I165: 0 | J165: 0.002164351852
A166: S-0112 | B166: 2013-07-04 | C166: 2013-07-04 09:17:10.0 | D166: 2013-07-04 09:31:29.0 | E166: 0 | F166: 0.00994212963 | G166: 0 | H166: 0 | I166: 0 | J166: 0.00994212963
A167: S-0112 | B167: 2013-07-04 | C167: 2013-07-04 09:31:29.0 | D167: 2013-07-04 09:38:10.0 | E167: 0 | F167: 0.004641203704 | G167: 1.157407407e-05 | H167: 0 | I167: 0 | J167: 0.00462962963
A168: S-0112 | B168: 2013-07-04 | C168: 2013-07-04 09:38:10.0 | D168: 2013-07-04 09:51:10.0 | E168: 0 | F168: 0.009027777778 | G168: 0 | H168: 0 | I168: 0 | J168: 0.009027777778
A169: S-0112 | B169: 2013-07-04 | C169: 2013-07-04 09:51:10.0 | D169: 2013-07-04 10:05:45.0 | E169: 0.01376157408 | F169: 0.01012731481 | G169: 1.157407407e-05 | H169: 0 | I169: 0 | J169: 0.01011574074
A170: S-0112 | B170: 2013-07-04 | C170: 2013-07-04 10:25:34.0 | D170: 2013-07-04 10:36:17.0 | E170: 0.01188657407 | F170: 0.00744212963 | G170: 0 | H170: 0 | I170: 0 | J170: 0.00744212963
A171: S-0112 | B171: 2013-07-04 | C171: 2013-07-04 10:53:24.0 | D171: 2013-07-04 11:05:03.0 | E171: 0 | F171: 0.008090277778 | G171: 0 | H171: 0 | I171: 0 | J171: 0.008090277778
A172: S-0112 | B172: 2013-07-04 | C172: 2013-07-04 11:05:03.0 | D172: 2013-07-04 11:08:38.0 | E172: 0 | F172: 0.002488425926 | G172: 0 | H172: 0 | I172: 0 | J172: 0.002488425926
A173: S-0112 | B173: 2013-07-04 | C173: 2013-07-04 11:08:38.0 | D173: 2013-07-04 11:11:54.0 | E173: 0 | F173: 0.002268518519 | G173: 1.157407407e-05 | H173: 0 | I173: 0 | J173: 0.002256944444
A174: S-0112 | B174: 2013-07-04 | C174: 2013-07-04 11:11:54.0 | D174: 2013-07-04 11:17:15.0 | E174: 0 | F174: 0.003715277778 | G174: 0 | H174: 0 | I174: 0 | J174: 0.003715277778
A175: S-0112 | B175: 2013-07-04 | C175: 2013-07-04 11:17:15.0 | D175: 2013-07-04 11:20:59.0 | E175: 0 | F175: 0.002592592593 | G175: 1.157407407e-05 | H175: 0 | I175: 0 | J175: 0.002581018519
A176: S-0112 | B176: 2013-07-04 | C176: 2013-07-04 11:20:59.0 | D176: 2013-07-04 11:47:19.0 | E176: 0 | F176: 0.01828703704 | G176: 0 | H176: 0 | I176: 0 | J176: 0.01828703704
A177: S-0112 | B177: 2013-07-04 | C177: 2013-07-04 11:47:19.0 | D177: 2013-07-04 12:46:01.0 | E177: 0 | F177: 0.04076388889 | G177: 1.157407407e-05 | H177: 0 | I177: 0 | J177: 0.04075231481
A178: S-0112 | B178: 2013-07-04 | C178: 2013-07-04 12:46:01.0 | D178: 2013-07-04 12:58:32.0 | E178: 0.0004050925927 | F178: 0.00869212963 | G178: 0 | H178: 0 | I178: 0 | J178: 0.00869212963
A179: S-0112 | B179: 2013-07-04 | C179: 2013-07-04 12:59:07.0 | D179: 2013-07-04 13:14:37.0 | E179: 0.0207175926 | F179: 0.01076388889 | G179: 0 | H179: 0 | I179: 0 | J179: 0.01076388889
A180: S-0112 | B180: 2013-07-04 | C180: 2013-07-04 13:44:27.0 | D180: 2013-07-04 13:47:56.0 | E180: 0 | F180: 0.002418981481 | G180: 0 | H180: 0 | I180: 0 | J180: 0.002418981481
A181: S-0112 | B181: 2013-07-04 | C181: 2013-07-04 13:47:56.0 | D181: 2013-07-04 13:49:37.0 | E181: 0 | F181: 0.001168981481 | G181: 0 | H181: 0 | I181: 0 | J181: 0.001168981481
A182: S-0112 | B182: 2013-07-04 | C182: 2013-07-04 13:49:37.0 | D182: 2013-07-04 13:55:08.0 | E182: 0.05565972222 | F182: 0.003831018519 | G182: 1.157407407e-05 | H182: 0 | I182: 0 | J182: 0.003819444444
A183: S-0112 | B183: 2013-07-04 | C183: 2013-07-04 15:15:17.0 | D183: 2013-07-04 15:59:36.0 | E183: 0 | F183: 0.03077546296 | G183: 0 | H183: 0 | I183: 0 | J183: 0.03077546296
A184: S-0112 | B184: 2013-07-04 | C184: 2013-07-04 15:59:36.0 | D184: 2013-07-04 16:05:55.0 | E184: 0 | F184: 0.004386574074 | G184: 0 | H184: 0 | I184: 0 | J184: 0.004386574074
A185: S-0112 | B185: 2013-07-04 | C185: 2013-07-04 16:05:55.0 | D185: 2013-07-04 16:13:34.0 | E185: 0 | F185: 0.0053125 | G185: 1.157407407e-05 | H185: 0 | I185: 0 | J185: 0.005300925926
A186: S-0112 | B186: 2013-07-04 | C186: 2013-07-04 16:13:34.0 | D186: 2013-07-04 16:17:58.0 | E186: 0 | F186: 0.003055555556 | G186: 0 | H186: 0 | I186: 0 | J186: 0.003055555556
A187: S-0112 | B187: 2013-07-04 | C187: 2013-07-04 16:17:58.0 | D187: 2013-07-04 16:57:08.0 | E187: 0 | F187: 0.02719907407 | G187: 1.157407407e-05 | H187: 0 | I187: 0 | J187: 0.0271875
A188: S-0112 | B188: 2013-07-04 | C188: 2013-07-04 16:57:08.0 | D188: 2013-07-04 17:14:16.0 | E188: 0 | F188: 0.01189814815 | G188: 0 | H188: 0 | I188: 0 | J188: 0.01189814815
A189: S-0112 | B189: 2013-07-04 | E189: =SUM(E165:E188) -> 0.1309259259 | F189: =SUM(F165:F188) -> 0.2310532407 | G189: =SUM(G165:G188) -> 9.259259259e-05 | H189: =SUM(H165:H188) -> 0 | I189: =SUM(I165:I188) -> 0 | J189: =SUM(J165:J188) -> 0.2309606481
A190: S-0112 | B190: 2013-07-05 | C190: 2013-07-05 08:25:33.0 | D190: 2013-07-05 08:35:39.0 | E190: 0 | F190: 0.007013888889 | G190: 1.157407407e-05 | H190: 0 | I190: 0 | J190: 0.007002314815
A191: S-0112 | B191: 2013-07-05 | C191: 2013-07-05 08:35:39.0 | D191: 2013-07-05 08:36:10.0 | E191: 0 | F191: 0.0003587962963 | G191: 0 | H191: 0 | I191: 0 | J191: 0.0003587962963
A192: S-0112 | B192: 2013-07-05 | E192: =SUM(E190:E191) -> 0 | F192: =SUM(F190:F191) -> 0.007372685185 | G192: =SUM(G190:G191) -> 1.157407407e-05 | H192: =SUM(H190:H191) -> 0 | I192: =SUM(I190:I191) -> 0 | J192: =SUM(J190:J191) -> 0.007361111111
A193: S-0117 | B193: 2013-07-01 | C193: 2013-07-01 05:19:39.0 | D193: 2013-07-01 05:34:17.0 | E193: 0.0119212963 | F193: 0.01016203704 | G193: 0.0002662037037 | H193: 0.001909722222 | I193: 0.007175925926 | J193: 0.0008101851852
A194: S-0117 | B194: 2013-07-01 | C194: 2013-07-01 05:51:27.0 | D194: 2013-07-01 06:03:33.0 | E194: 0 | F194: 0.008402777778 | G194: 0.0006481481481 | H194: 0.003738425926 | I194: 0.003090277778 | J194: 0.0009259259259
A195: S-0117 | B195: 2013-07-01 | C195: 2013-07-01 06:03:33.0 | D195: 2013-07-01 06:12:40.0 | E195: 0 | F195: 0.006331018519 | G195: 0.003171296296 | H195: 0.003159722222 | I195: 0 | J195: 0
A196: S-0117 | B196: 2013-07-01 | C196: 2013-07-01 06:12:40.0 | D196: 2013-07-01 06:42:10.0 | E196: 0 | F196: 0.02048611111 | G196: 0.001261574074 | H196: 0.008657407407 | I196: 0.009444444444 | J196: 0.001122685185
A197: S-0117 | B197: 2013-07-01 | C197: 2013-07-01 06:42:10.0 | D197: 2013-07-01 06:48:40.0 | E197: 0 | F197: 0.004513888889 | G197: 0.004097222222 | H197: 0.0004166666667 | I197: 0 | J197: 0
A198: S-0117 | B198: 2013-07-01 | C198: 2013-07-01 06:48:40.0 | D198: 2013-07-01 07:27:06.0 | E198: 0 | F198: 0.02668981481 | G198: 0.0003240740741 | H198: 0.004768518519 | I198: 0.01335648148 | J198: 0.008240740741
A199: S-0117 | B199: 2013-07-01 | C199: 2013-07-01 07:27:06.0 | D199: 2013-07-01 07:41:05.0 | E199: 0 | F199: 0.009710648148 | G199: 0.002615740741 | H199: 0.007083333333 | I199: 1.157407407e-05 | J199: 0
A200: S-0117 | B200: 2013-07-01 | C200: 2013-07-01 07:41:05.0 | D200: 2013-07-01 07:53:52.0 | E200: 0.00813657407 | F200: 0.008877314815 | G200: 1.157407407e-05 | H200: 0.003865740741 | I200: 0.004490740741 | J200: 0.0005092592593
A201: S-0117 | B201: 2013-07-01 | C201: 2013-07-01 08:05:35.0 | D201: 2013-07-01 08:08:54.0 | E201: 0 | F201: 0.002303240741 | G201: 5.787037037e-05 | H201: 0.001111111111 | I201: 0.0009143518519 | J201: 0.0002199074074
... 1833 more rows

Sheet RAPORT
A2: Raport za okres: | B2: 2013-07-01 - 2013-07-09
A3: Nr rejestracyjny | B3: Data | C3: Czas pracy | D3: I próg | E3: II próg | F3: III próg | G3: IV próg
A4: S-0079 | B4: 2013-07-03 | C4: 0.1154976852 | D4: 1.157407407e-05 | E4: 0 | F4: 0 | G4: 0.1154861111
A5: S-0079 | B5: 2013-07-04 | C5: 0.3837384259 | D5: 0.01005787037 | E5: 2.314814815e-05 | F5: 0 | G5: 0.3736574074
A6: S-0079 | B6: 2013-07-05 | C6: 0.1778472222 | D6: 0.00306712963 | E6: 0.000162037037 | F6: 0.001608796296 | G6: 0.1730092593
A7: S-0079 | B7: 2013-07-06 | C7: 0.2721643519 | D7: 0.009375 | E7: 1.157407407e-05 | F7: 6.944444444e-05 | G7: 0.2627083333
A8: S-0079 | B8: 2013-07-08 | C8: 0.4537615741 | D8: 0.006909722222 | E8: 3.472222222e-05 | F8: 0.0004166666667 | G8: 0.446400463
A9: S-0079 | B9: 2013-07-09 | C9: 0.4029398148 | D9: 0.003773148148 | E9: 0.0004976851852 | F9: 0.0006018518519 | G9: 0.3980671296
A10: S-0112 | B10: 2013-07-02 | C10: 0.4500462963 | D10: 0.0001273148148 | E10: 0 | F10: 0 | G10: 0.4499189815
A11: S-0112 | B11: 2013-07-03 | C11: 0.2552662037 | D11: 0.000150462963 | E11: 0 | F11: 0 | G11: 0.2551157407
A12: S-0112 | B12: 2013-07-04 | C12: 0.2310532407 | D12: 9.259259259e-05 | E12: 0 | F12: 0 | G12: 0.2309606481
A13: S-0112 | B13: 2013-07-05 | C13: 0.007372685185 | D13: 1.157407407e-05 | E13: 0 | F13: 0 | G13: 0.007361111111
A14: S-0117 | B14: 2013-07-01 | C14: 0.3720023148 | D14: 0.02679398148 | E14: 0.1781944444 | F14: 0.1429513889 | G14: 0.0240625
A15: S-0117 | B15: 2013-07-02 | C15: 0.3973611111 | D15: 0.02284722222 | E15: 0.2467476852 | F15: 0.1225231481 | G15: 0.005243055556
A16: S-0117 | B16: 2013-07-03 | C16: 0.4116203704 | D16: 0.03222222222 | E16: 0.2066782407 | F16: 0.1622222222 | G16: 0.01049768519
A17: S-0117 | B17: 2013-07-04 | C17: 0.1939467593 | D17: 0.007106481481 | E17: 0.1059259259 | F17: 0.0766087963 | G17: 0.004305555556
A18: S-0117 | B18: 2013-07-05 | C18: 0.1929976852 | D18: 0.01083333333 | E18: 0.1044907407 | F18: 0.07180555556 | G18: 0.005868055556
A19: S-0117 | B19: 2013-07-08 | C19: 0.04880787037 | D19: 0.001759259259 | E19: 0.01694444444 | F19: 0.02859953704 | G19: 0.00150462963
A20: S-0117 | B20: 2013-07-09 | C20: 0.08402777778 | D20: 0.003865740741 | E20: 0.02497685185 | F20: 0.05045138889 | G20: 0.004733796296
A21: S-0137 | B21: 2013-07-01 | C21: 0.09940972222 | D21: 0.002071759259 | E21: 0.0005324074074 | F21: 0.09680555556 | G21: 0
A22: S-0137 | B22: 2013-07-02 | C22: 0.1631597222 | D22: 0.002858796296 | E22: 0.0009953703704 | F22: 0.1593055556 | G22: 0
A23: S-0137 | B23: 2013-07-03 | C23: 0.07391203704 | D23: 0.003888888889 | E23: 0.000625 | F23: 0.0684837963 | G23: 0.0009143518519
A24: S-0137 | B24: 2013-07-04 | C24: 0.1546759259 | D24: 0.001122685185 | E24: 0.001296296296 | F24: 0.1522569444 | G24: 0
A25: S-0137 | B25: 2013-07-05 | C25: 0.1134837963 | D25: 0.001574074074 | E25: 0.0005671296296 | F25: 0.1113425926 | G25: 0
A26: S-0137 | B26: 2013-07-08 | C26: 0.09914351852 | D26: 0.001921296296 | E26: 0.0004398148148 | F26: 0.09678240741 | G26: 0
A27: S-0137 | B27: 2013-07-09 | C27: 0.03903935185 | D27: 0.0001157407407 | E27: 0.0002546296296 | F27: 0.03866898148 | G27: 0
A28: S-0137 | B28: 2013-07-09 | C28: 0 | D28: 0 | E28: 0 | F28: 0 | G28: 0
A29: S-0143 | B29: 2013-07-02 | C29: 0.2784259259 | D29: 0.09625 | E29: 0.06491898148 | F29: 0.0721875 | G29: 0.04506944444
A30: S-0143 | B30: 2013-07-03 | C30: 0.3682060185 | D30: 0.09803240741 | E30: 0.07599537037 | F30: 0.1135185185 | G30: 0.08065972222
A31: S-0143 | B31: 2013-07-04 | C31: 0.02233796296 | D31: 0.00474537037 | E31: 0.002488425926 | F31: 0.003460648148 | G31: 0.01164351852
A32: S-0151 | B32: 2013-07-04 | C32: 0.01284722222 | D32: 0.01284722222 | E32: 0 | F32: 0 | G32: 0
A33: S-0165 | B33: 2013-07-01 | C33: 0.3355208333 | D33: 0.0005324074074 | E33: 0.1342361111 | F33: 0.08555555556 | G33: 0.1151967593
A34: S-0165 | B34: 2013-07-02 | C34: 0.3707523148 | D34: 0.001481481481 | E34: 0.1735300926 | F34: 0.1354282407 | G34: 0.0603125
A35: S-0165 | B35: 2013-07-03 | C35: 0.3865277778 | D35: 0.001631944444 | E35: 0.1905324074 | F35: 0.1428703704 | G35: 0.05149305556
A36: S-0165 | B36: 2013-07-04 | C36: 0.002951388889 | D36: 8.101851852e-05 | E36: 0.001354166667 | F36: 0.001006944444 | G36: 0.0005092592593
A37: S-0170 | B37: 2013-07-01 | C37: 0.004282407407 | D37: 0.002847222222 | E37: 0.00125 | F37: 0.0001736111111 | G37: 1.157407407e-05
A38: S-0170 | B38: 2013-07-02 | C38: 0.04055555556 | D38: 0.02482638889 | E38: 0.01211805556 | F38: 0.002916666667 | G38: 0.0006944444444
A39: S-0170 | B39: 2013-07-03 | C39: 0.3246990741 | D39: 0.0497337963 | E39: 0.1054976852 | F39: 0.151099537 | G39: 0.01836805556
A40: S-0170 | B40: 2013-07-04 | C40: 0.3471180556 | D40: 0.07601851852 | E40: 0.1030555556 | F40: 0.137962963 | G40: 0.03008101852
A41: S-0170 | B41: 2013-07-05 | C41: 0.01303240741 | D41: 0.01013888889 | E41: 0.002893518519 | F41: 0 | G41: 0
A42: S-0173 | B42: 2013-07-05 | C42: 0.2636805556 | D42: 0.1559143519 | E42: 0.0559375 | F42: 0.03554398148 | G42: 0.01628472222
A43: S-0173 | B43: 2013-07-06 | C43: 0.1718865741 | D43: 0.1392939815 | E43: 0.02385416667 | F43: 0.007025462963 | G43: 0.001712962963
A44: S-0173 | B44: 2013-07-08 | C44: 0.3357060185 | D44: 0.1559490741 | E44: 0.09303240741 | F44: 0.06180555556 | G44: 0.02491898148
A45: S-0173 | B45: 2013-07-09 | C45: 0.3254050926 | D45: 0.08108796296 | E45: 0.1604976852 | F45: 0.04372685185 | G45: 0.04009259259
A46: S-0175 | B46: 2013-07-01 | C46: 0.3461458333 | D46: 0.07024305556 | E46: 0.002326388889 | F46: 0.1048958333 | G46: 0.1686805556
A47: S-0175 | B47: 2013-07-02 | C47: 0.0001388888889 | D47: 0 | E47: 0 | F47: 4.62962963e-05 | G47: 9.259259259e-05
A48: S-0176 | B48: 2013-07-02 | C48: 0.0203125 | D48: 0.01043981481 | E48: 0.008217592593 | F48: 0.001655092593 | G48: 0
A49: S-0176 | B49: 2013-07-03 | C49: 0.3389699074 | D49: 0.1891203704 | E49: 0.02533564815 | F49: 0.0180787037 | G49: 0.1064351852
A50: S-0176 | B50: 2013-07-04 | C50: 0.3923611111 | D50: 0.1990740741 | E50: 0.04665509259 | F50: 0.01704861111 | G50: 0.1295833333
A51: S-0176 | B51: 2013-07-05 | C51: 0.1221990741 | D51: 0.07422453704 | E51: 0.008055555556 | F51: 0.003310185185 | G51: 0.0366087963
A52: S-0176 | B52: 2013-07-08 | C52: 0.02202546296 | D52: 0.001134259259 | E52: 0.02083333333 | F52: 5.787037037e-05 | G52: 0
A53: S-0176 | B53: 2013-07-09 | C53: 0.3527546296 | D53: 0.1663078704 | E53: 0.02753472222 | F53: 0.03369212963 | G53: 0.1252199074
A54: S-0180 | B54: 2013-07-02 | C54: 0.6350347222 | D54: 0.2521180556 | E54: 0.001550925926 | F54: 0.3356712963 | G54: 0.04569444444
A55: S-0180 | B55: 2013-07-03 | C55: 0.1764699074 | D55: 0.04092592593 | E55: 0.0028125 | F55: 0.1246527778 | G55: 0.008078703704
A56: S-0180 | B56: 2013-07-04 | C56: 0.006574074074 | D56: 0.00162037037 | E56: 0.0001736111111 | F56: 0.0001736111111 | G56: 0.004606481481
A57: S-0180 | B57: 2013-07-09 | C57: 0.01180555556 | D57: 0.006331018519 | E57: 0.000162037037 | F57: 0.0001388888889 | G57: 0.005173611111
A58: S-0218 | B58: 2013-07-01 | C58: 0.3149884259 | D58: 0.002384259259 | E58: 0.01547453704 | F58: 0.00962962963 | G58: 0.2875
A59: S-0218 | B59: 2013-07-02 | C59: 0.2618402778 | D59: 0.02008101852 | E59: 0.0233912037 | F59: 0.03024305556 | G59: 0.188125
A60: S-0218 | B60: 2013-07-03 | C60: 0.01559027778 | D60: 0.0075 | E60: 0.003414351852 | F60: 0.0008680555556 | G60: 0.00380787037
A61: S-0218 | B61: 2013-07-05 | C61: 0.1616782407 | D61: 0.007569444444 | E61: 0.01587962963 | F61: 0.008645833333 | G61: 0.1295833333
A62: S-0218 | B62: 2013-07-09 | C62: 0.02347222222 | D62: 0.007777777778 | E62: 0.007581018519 | F62: 0.004583333333 | G62: 0.003530092593
A63: S-0331 | B63: 2013-07-01 | C63: 0.03107638889 | D63: 0.01844907407 | E63: 0.0001967592593 | F63: 0.0001273148148 | G63: 0.01230324074
A64: S-0331 | B64: 2013-07-02 | C64: 0.01761574074 | D64: 0.002361111111 | E64: 2.314814815e-05 | F64: 8.101851852e-05 | G64: 0.01515046296
A65: S-0331 | B65: 2013-07-03 | C65: 0.3071180556 | D65: 0.05145833333 | E65: 0.001006944444 | F65: 0.00130787037 | G65: 0.2533449074
A66: S-0331 | B66: 2013-07-04 | C66: 0.2572800926 | D66: 0.02722222222 | E66: 0.002951388889 | F66: 0.07407407407 | G66: 0.1530324074
A67: S-0331 | B67: 2013-07-05 | C67: 0.2299652778 | D67: 0.02258101852 | E67: 0.0008333333333 | F67: 0.03309027778 | G67: 0.1734606481
A68: S-0331 | B68: 2013-07-08 | C68: 0.2127893519 | D68: 0.04283564815 | E68: 0.0007407407407 | F68: 0.01199074074 | G68: 0.1572222222
A69: S-0331 | B69: 2013-07-09 | C69: 0.1852777778 | D69: 0.01612268519 | E69: 0.0006712962963 | F69: 0.01821759259 | G69: 0.1502662037
A70: S-0332 | B70: 2013-07-01 | C70: 0.2197800926 | D70: 0.01259259259 | E70: 0.07935185185 | F70: 0.04298611111 | G70: 0.08484953704
A71: S-0332 | B71: 2013-07-02 | C71: 0.2985416667 | D71: 0.02760416667 | E71: 0.07799768519 | F71: 0.05891203704 | G71: 0.1340277778
A72: S-0332 | B72: 2013-07-03 | C72: 0.3078009259 | D72: 0.02974537037 | E72: 0.09924768519 | F72: 0.08512731481 | G72: 0.09368055556
A73: S-0332 | B73: 2013-07-04 | C73: 0.2821296296 | D73: 0.02445601852 | E73: 0.1201273148 | F73: 0.09321759259 | G73: 0.0443287037
A74: S-0332 | B74: 2013-07-05 | C74: 0.2207291667 | D74: 0.02077546296 | E74: 0.08172453704 | F74: 0.06952546296 | G74: 0.0487037037
A75: S-0332 | B75: 2013-07-08 | C75: 0.1775462963 | D75: 0.01173611111 | E75: 0.09809027778 | F75: 0.04630787037 | G75: 0.02141203704
A76: S-0332 | B76: 2013-07-09 | C76: 0.2411342593 | D76: 0.01313657407 | E76: 0.1099074074 | F76: 0.06521990741 | G76: 0.05287037037
A77: S-0333 | B77: 2013-07-09 | C77: 0.07525462963 | D77: 6.944444444e-05 | E77: 0 | F77: 0 | G77: 0.07518518519
A78: S-0354 | B78: 2013-07-03 | C78: 0.03150462963 | D78: 0.02814814815 | E78: 0.003194444444 | F78: 0.000162037037 | G78: 0
A79: S-0354 | B79: 2013-07-04 | C79: 0.3735648148 | D79: 0.2384606481 | E79: 0.08710648148 | F79: 0.04700231481 | G79: 0.0009953703704
A80: S-0354 | B80: 2013-07-06 | C80: 0.1983333333 | D80: 0.1315393519 | E80: 0.03402777778 | F80: 0.03052083333 | G80: 0.00224537037
A81: S-0354 | B81: 2013-07-08 | C81: 0.3590046296 | D81: 0.1821643519 | E81: 0.09128472222 | F81: 0.06753472222 | G81: 0.01802083333
A82: S-0354 | B82: 2013-07-09 | C82: 0.3888078704 | D82: 0.2004282407 | E82: 0.1100462963 | F82: 0.07641203704 | G82: 0.001921296296
A83: S-0365 | B83: 2013-07-03 | C83: 0.05849537037 | D83: 0.006828703704 | E83: 0.039375 | F83: 0.0118287037 | G83: 0.000462962963
A84: S-0365 | B84: 2013-07-04 | C84: 0.06077546296 | D84: 0.002523148148 | E84: 0.03027777778 | F84: 0.01672453704 | G84: 0.01125
A85: S-0365 | B85: 2013-07-09 | C85: 0.0487962963 | D85: 0.002337962963 | E85: 0.0247337963 | F85: 0.0137962963 | G85: 0.007928240741
A86: S-0378 | B86: 2013-07-01 | C86: 0.2430439815 | D86: 0.01331018519 | E86: 0.2232986111 | F86: 0.002685185185 | G86: 0.00375
A87: S-0378 | B87: 2013-07-02 | C87: 0.3846527778 | D87: 0.05256944444 | E87: 0.3210763889 | F87: 0.002222222222 | G87: 0.008784722222
A88: S-0378 | B88: 2013-07-03 | C88: 0.3857523148 | D88: 0.06581018519 | E88: 0.3121990741 | F88: 0.003657407407 | G88: 0.004085648148
A89: S-0378 | B89: 2013-07-04 | C89: 0.3650462963 | D89: 0.1003472222 | E89: 0.2483217593 | F89: 0.0009837962963 | G89: 0.01539351852
A90: S-0378 | B90: 2013-07-05 | C90: 0.2345138889 | D90: 0.02991898148 | E90: 0.1990277778 | F90: 0.003784722222 | G90: 0.001782407407
A91: S-0378 | B91: 2013-07-08 | C91: 0.3152314815 | D91: 0.124849537 | E91: 0.1506944444 | F91: 0.02604166667 | G91: 0.01364583333
A92: S-0378 | B92: 2013-07-09 | C92: 0.3426157407 | D92: 0.05611111111 | E92: 0.2180439815 | F92: 0.05128472222 | G92: 0.01717592593
A93: S-0380 | B93: 2013-07-01 | C93: 0.1118402778 | D93: 0.004398148148 | E93: 0.002951388889 | F93: 0.08696759259 | G93: 0.01752314815
A94: S-0380 | B94: 2013-07-04 | C94: 0.005613425926 | D94: 0.003518518519 | E94: 9.259259259e-05 | F94: 0.001759259259 | G94: 0.0002430555556
A95: S-0380 | B95: 2013-07-05 | C95: 0.285 | D95: 0.00244212963 | E95: 0.01766203704 | F95: 0.2420949074 | G95: 0.02280092593
A96: S-0380 | B96: 2013-07-06 | C96: 0.1029861111 | D96: 0.0003009259259 | E96: 0.01101851852 | F96: 0.0878125 | G96: 0.003854166667
A97: S-0380 | B97: 2013-07-08 | C97: 0.2392476852 | D97: 0.008993055556 | E97: 0.02457175926 | F97: 0.1885416667 | G97: 0.0171412037
A98: S-0380 | B98: 2013-07-09 | C98: 0.2200462963 | D98: 0.004340277778 | E98: 0.01568287037 | F98: 0.1525925926 | G98: 0.04743055556
A99: S-0435 | B99: 2013-07-02 | C99: 0.5050231481 | D99: 0.04381944444 | E99: 0.2421412037 | F99: 0.1241087963 | G99: 0.0949537037
A100: S-0435 | B100: 2013-07-03 | C100: 0.2233101852 | D100: 0.02840277778 | E100: 0.05115740741 | F100: 0.08298611111 | G100: 0.06076388889
A101: S-0435 | B101: 2013-07-04 | C101: 0.3247222222 | D101: 0.03467592593 | E101: 0.03741898148 | F101: 0.1250347222 | G101: 0.1275925926
A102: S-0435 | B102: 2013-07-05 | C102: 0.1806597222 | D102: 0.05729166667 | E102: 0.01755787037 | F102: 0.06329861111 | G102: 0.04251157407
A103: SUMA | C103: =SUM(C4:C102) -> 21.05219907 | D103: =SUM(D4:D102) -> 3.865497685 | E103: =SUM(E4:E102) -> 5.485821759 | F103: =SUM(F4:F102) -> 5.179201389 | G103: =SUM(G4:G102) -> 6.521678241

Sheet _Zdarzenia
A1: id | B1: numerRejestracyjny | C1: zdarzenie | D1: dataCzasPoczatku | E1: dataCzasKonca | F1: lostSignalTime | G1: fuelAtStart | H1: fuelAtStop | I1: startLongitude | J1: startLatitude | K1: startStreet | L1: startCountry | M1: startCounty | N1: startCity | O1: startZip | P1: endLongitude | Q1: endLatitude | R1: endStreet | S1: endCountry | T1: endCounty | U1: endCity | V1: endZip | W1: driver | X1: czasTrwaniaSek | Y1: dystans | Z1: vMax | AA1: vGr | AB1: vSr | AC1: czasProg1 | AD1: czasProg2 | AE1: czasProg3 | AF1: poiStart | AG1: poiEnd
A2: 110868251 | B2: S-0079 | C2: Obroty | D2: 2013-07-03 08:38:04.0 | E2: "" | F2: 0 | G2: "" | H2: "" | I2: "" | J2: "" | K2: "" | L2: "" | M2: "" | N2: "" | O2: "" | P2: "" | Q2: "" | R2: "" | S2: "" | T2: "" | U2: "" | V2: "" | W2: "" | X2: 0 | Y2: 0 | Z2: 0 | AA2: 0 | AB2: 0.0 | AC2: 0 | AD2: 0 | AE2: 419 | AF2: "" | AG2: ""
A3: 110868253 | B3: S-0079 | C3: Postój | D3: 2013-07-03 08:38:04.0 | E3: 2013-07-03 08:45:03.0 | F3: 0 | G3: 56.52173913043478 | H3: 56.52173913043478 | I3: 18.6406 | J3: 53.03816666666667 | K3: Polna | L3: Polska | M3: Kujawsko-Pomorskie | N3: Toruń | O3: 87-100 | P3: 18.6406 | Q3: 53.03816666666667 | R3: Polna | S3: Polska | T3: Kujawsko-Pomorskie | U3: Toruń | V3: 87-100 | W3: "" | X3: 419 | Y3: 0 | Z3: 0 | AA3: 0 | AB3: 0.0 | AC3: "" | AD3: "" | AE3: "" | AF3: "" | AG3: ""
A4: 110868257 | B4: S-0079 | C4: Obroty | D4: 2013-07-03 09:02:05.0 | E4: "" | F4: 0 | G4: "" | H4: "" | I4: "" | J4: "" | K4: "" | L4: "" | M4: "" | N4: "" | O4: "" | P4: "" | Q4: "" | R4: "" | S4: "" | T4: "" | U4: "" | V4: "" | W4: "" | X4: 0 | Y4: 0 | Z4: 0 | AA4: 0 | AB4: 0.0 | AC4: 0 | AD4: 0 | AE4: 1184 | AF4: "" | AG4: ""
A5: 110868259 | B5: S-0079 | C5: Postój | D5: 2013-07-03 09:02:05.0 | E5: 2013-07-03 09:21:49.0 | F5: 0 | G5: 56.52173913043478 | H5: 55.65217391304348 | I5: 18.640983333333335 | J5: 53.03788333333333 | K5: Polna | L5: Polska | M5: Kujawsko-Pomorskie | N5: Toruń | O5: 87-100 | P5: 18.640983333333335 | Q5: 53.03788333333333 | R5: Polna | S5: Polska | T5: Kujawsko-Pomorskie | U5: Toruń | V5: 87-100 | W5: "" | X5: 1184 | Y5: 0 | Z5: 0 | AA5: 0 | AB5: 0.0 | AC5: "" | AD5: "" | AE5: "" | AF5: "" | AG5: ""
A6: 110868266 | B6: S-0079 | C6: Obroty | D6: 2013-07-03 11:34:57.0 | E6: "" | F6: 0 | G6: "" | H6: "" | I6: "" | J6: "" | K6: "" | L6: "" | M6: "" | N6: "" | O6: "" | P6: "" | Q6: "" | R6: "" | S6: "" | T6: "" | U6: "" | V6: "" | W6: "" | X6: 0 | Y6: 0 | Z6: 0 | AA6: 0 | AB6: 0.0 | AC6: 0 | AD6: 0 | AE6: 156 | AF6: "" | AG6: ""
A7: 110868269 | B7: S-0079 | C7: Jazda | D7: 2013-07-03 11:34:57.0 | E7: 2013-07-03 11:37:33.0 | F7: 0 | G7: 53.04347826086957 | H7: 53.04347826086957 | I7: 18.640883333333335 | J7: 53.038 | K7: Polna | L7: Polska | M7: Kujawsko-Pomorskie | N7: Toruń | O7: 87-100 | P7: 18.640583333333332 | Q7: 53.038133333333334 | R7: Polna | S7: Polska | T7: Kujawsko-Pomorskie | U7: Toruń | V7: 87-100 | W7: "" | X7: 156 | Y7: 64 | Z7: 5 | AA7: 0 | AB7: 1.47692311 | AC7: "" | AD7: "" | AE7: "" | AF7: "" | AG7: ""
A8: 110868274 | B8: S-0079 | C8: Obroty | D8: 2013-07-03 13:24:59.0 | E8: "" | F8: 0 | G8: "" | H8: "" | I8: "" | J8: "" | K8: "" | L8: "" | M8: "" | N8: "" | O8: "" | P8: "" | Q8: "" | R8: "" | S8: "" | T8: "" | U8: "" | V8: "" | W8: "" | X8: 0 | Y8: 0 | Z8: 0 | AA8: 0 | AB8: 0.0 | AC8: 0 | AD8: 0 | AE8: 213 | AF8: "" | AG8: ""
A9: 110868277 | B9: S-0079 | C9: Jazda | D9: 2013-07-03 13:24:59.0 | E9: 2013-07-03 13:28:32.0 | F9: 0 | G9: 53.04347826086957 | H9: 46.95652173913044 | I9: 18.64065 | J9: 53.03815 | K9: Polna | L9: Polska | M9: Kujawsko-Pomorskie | N9: Toruń | O9: 87-100 | P9: 18.641183333333334 | Q9: 53.03805 | R9: Polna | S9: Polska | T9: Kujawsko-Pomorskie | U9: Toruń | V9: 87-100 | W9: "" | X9: 213 | Y9: 70 | Z9: 6 | AA9: 0 | AB9: 1.18309855 | AC9: "" | AD9: "" | AE9: "" | AF9: "" | AG9: ""
A10: 110868282 | B10: S-0079 | C10: Obroty | D10: 2013-07-03 13:38:28.0 | E10: "" | F10: 0 | G10: "" | H10: "" | I10: "" | J10: "" | K10: "" | L10: "" | M10: "" | N10: "" | O10: "" | P10: "" | Q10: "" | R10: "" | S10: "" | T10: "" | U10: "" | V10: "" | W10: "" | X10: 0 | Y10: 0 | Z10: 0 | AA10: 0 | AB10: 0.0 | AC10: 0 | AD10: 0 | AE10: 177 | AF10: "" | AG10: ""
A11: 110868285 | B11: S-0079 | C11: Jazda | D11: 2013-07-03 13:38:28.0 | E11: 2013-07-03 13:41:25.0 | F11: 0 | G11: 100.0 | H11: 100.0 | I11: 18.64115 | J11: 53.03808333333333 | K11: Polna | L11: Polska | M11: Kujawsko-Pomorskie | N11: Toruń | O11: 87-100 | P11: 18.640966666666667 | Q11: 53.03831666666667 | R11: Polna | S11: Polska | T11: Kujawsko-Pomorskie | U11: Toruń | V11: 87-100 | W11: "" | X11: 177 | Y11: 88 | Z11: 8 | AA11: 0 | AB11: 1.78983057 | AC11: "" | AD11: "" | AE11: "" | AF11: "" | AG11: ""
A12: 110868289 | B12: S-0079 | C12: Obroty | D12: 2013-07-03 14:47:07.0 | E12: "" | F12: 0 | G12: "" | H12: "" | I12: "" | J12: "" | K12: "" | L12: "" | M12: "" | N12: "" | O12: "" | P12: "" | Q12: "" | R12: "" | S12: "" | T12: "" | U12: "" | V12: "" | W12: "" | X12: 0 | Y12: 0 | Z12: 0 | AA12: 0 | AB12: 0.0 | AC12: 0 | AD12: 0 | AE12: 251 | AF12: "" | AG12: ""
A13: 110868290 | B13: S-0079 | C13: Postój | D13: 2013-07-03 14:47:07.0 | E13: 2013-07-03 14:51:18.0 | F13: 0 | G13: 100.0 | H13: 120.0 | I13: 18.723783333333333 | J13: 52.89915 | L13: Polska | M13: Kujawsko-Pomorskie | O13: 87-700 | P13: 18.723783333333333 | Q13: 52.89915 | S13: Polska | T13: Kujawsko-Pomorskie | V13: 87-700 | W13: "" | X13: 251 | Y13: 0 | Z13: 0 | AA13: 0 | AB13: 0.0 | AC13: "" | AD13: "" | AE13: "" | AF13: "" | AG13: ""
A14: 110868293 | B14: S-0079 | C14: Obroty | D14: 2013-07-03 14:51:18.0 | E14: "" | F14: 0 | G14: "" | H14: "" | I14: "" | J14: "" | K14: "" | L14: "" | M14: "" | N14: "" | O14: "" | P14: "" | Q14: "" | R14: "" | S14: "" | T14: "" | U14: "" | V14: "" | W14: "" | X14: 0 | Y14: 0 | Z14: 0 | AA14: 0 | AB14: 0.0 | AC14: 0 | AD14: 0 | AE14: 580 | AF14: "" | AG14: ""
A15: 110868294 | B15: S-0079 | C15: Jazda | D15: 2013-07-03 14:51:18.0 | E15: 2013-07-03 15:00:58.0 | F15: 0 | G15: 100.0 | H15: 100.0 | I15: 18.724233333333334 | J15: 52.8988 | L15: Polska | M15: Kujawsko-Pomorskie | O15: 87-700 | P15: 18.722616666666667 | Q15: 52.90246666666667 | S15: Polska | T15: Kujawsko-Pomorskie | V15: 87-700 | W15: "" | X15: 580 | Y15: 324 | Z15: 5 | AA15: 0 | AB15: 2.01103449 | AC15: "" | AD15: "" | AE15: "" | AF15: "" | AG15: ""
A16: 110868296 | B16: S-0079 | C16: Obroty | D16: 2013-07-03 15:00:58.0 | E16: "" | F16: 0 | G16: "" | H16: "" | I16: "" | J16: "" | K16: "" | L16: "" | M16: "" | N16: "" | O16: "" | P16: "" | Q16: "" | R16: "" | S16: "" | T16: "" | U16: "" | V16: "" | W16: "" | X16: 0 | Y16: 0 | Z16: 0 | AA16: 0 | AB16: 0.0 | AC16: 0 | AD16: 0 | AE16: 6665 | AF16: "" | AG16: ""
A17: 110868297 | B17: S-0079 | C17: Postój | D17: 2013-07-03 15:00:58.0 | E17: 2013-07-03 16:52:04.0 | F17: 0 | G17: 120.0 | H17: 120.0 | I17: 18.722716666666667 | J17: 52.90225 | L17: Polska | M17: Kujawsko-Pomorskie | O17: 87-700 | P17: 18.722716666666667 | Q17: 52.90225 | S17: Polska | T17: Kujawsko-Pomorskie | V17: 87-700 | W17: "" | X17: 6666 | Y17: 0 | Z17: 0 | AA17: 0 | AB17: 0.0 | AC17: "" | AD17: "" | AE17: "" | AF17: "" | AG17: ""
A18: 110868299 | B18: S-0079 | C18: Obroty | D18: 2013-07-03 16:52:04.0 | E18: "" | F18: 0 | G18: "" | H18: "" | I18: "" | J18: "" | K18: "" | L18: "" | M18: "" | N18: "" | O18: "" | P18: "" | Q18: "" | R18: "" | S18: "" | T18: "" | U18: "" | V18: "" | W18: "" | X18: 0 | Y18: 0 | Z18: 0 | AA18: 0 | AB18: 0.0 | AC18: 0 | AD18: 0 | AE18: 333 | AF18: "" | AG18: ""
A19: 110868302 | B19: S-0079 | C19: Jazda | D19: 2013-07-03 16:52:04.0 | E19: 2013-07-03 16:57:37.0 | F19: 0 | G19: 93.47826086956522 | H19: 86.52173913043478 | I19: 18.723316666666665 | J19: 52.90095 | L19: Polska | M19: Kujawsko-Pomorskie | O19: 87-700 | P19: 18.724766666666667 | Q19: 52.8986 | S19: Polska | T19: Kujawsko-Pomorskie | V19: 87-700 | W19: "" | X19: 333 | Y19: 288 | Z19: 5 | AA19: 0 | AB19: 3.11351347 | AC19: "" | AD19: "" | AE19: "" | AF19: "" | AG19: ""
A20: 110961734 | B20: S-0079 | C20: Obroty | D20: 2013-07-04 07:15:40.0 | E20: "" | F20: 0 | G20: "" | H20: "" | I20: "" | J20: "" | K20: "" | L20: "" | M20: "" | N20: "" | O20: "" | P20: "" | Q20: "" | R20: "" | S20: "" | T20: "" | U20: "" | V20: "" | W20: "" | X20: 0 | Y20: 0 | Z20: 0 | AA20: 0 | AB20: 0.0 | AC20: 2 | AD20: 0 | AE20: 39 | AF20: "" | AG20: ""
A21: 110961735 | B21: S-0079 | C21: Postój | D21: 2013-07-04 07:15:40.0 | E21: 2013-07-04 07:30:45.0 | F21: 0 | G21: 85.21739130434783 | H21: 120.0 | I21: 18.724783333333335 | J21: 52.8986 | L21: Polska | M21: Kujawsko-Pomorskie | O21: 87-700 | P21: 18.724783333333335 | Q21: 52.8986 | S21: Polska | T21: Kujawsko-Pomorskie | V21: 87-700 | W21: "" | X21: 905 | Y21: 0 | Z21: 0 | AA21: 0 | AB21: 0.0 | AC21: "" | AD21: "" | AE21: "" | AF21: "" | AG21: ""
A22: 110961738 | B22: S-0079 | C22: Obroty | D22: 2013-07-04 07:30:45.0 | E22: "" | F22: 0 | G22: "" | H22: "" | I22: "" | J22: "" | K22: "" | L22: "" | M22: "" | N22: "" | O22: "" | P22: "" | Q22: "" | R22: "" | S22: "" | T22: "" | U22: "" | V22: "" | W22: "" | X22: 0 | Y22: 0 | Z22: 0 | AA22: 0 | AB22: 0.0 | AC22: 0 | AD22: 0 | AE22: 448 | AF22: "" | AG22: ""
A23: 110961739 | B23: S-0079 | C23: Jazda | D23: 2013-07-04 07:30:45.0 | E23: 2013-07-04 07:38:13.0 | F23: 0 | G23: 88.69565217391305 | H23: 87.39130434782608 | I23: 18.724716666666666 | J23: 52.89868333333333 | L23: Polska | M23: Kujawsko-Pomorskie | O23: 87-700 | P23: 18.722433333333335 | Q23: 52.903083333333335 | S23: Polska | T23: Kujawsko-Pomorskie | V23: 87-700 | W23: "" | X23: 448 | Y23: 526 | Z23: 5 | AA23: 0 | AB23: 4.22678566 | AC23: "" | AD23: "" | AE23: "" | AF23: "" | AG23: ""
A24: 110961741 | B24: S-0079 | C24: Obroty | D24: 2013-07-04 07:38:13.0 | E24: "" | F24: 0 | G24: "" | H24: "" | I24: "" | J24: "" | K24: "" | L24: "" | M24: "" | N24: "" | O24: "" | P24: "" | Q24: "" | R24: "" | S24: "" | T24: "" | U24: "" | V24: "" | W24: "" | X24: 0 | Y24: 0 | Z24: 0 | AA24: 0 | AB24: 0.0 | AC24: 0 | AD24: 0 | AE24: 8409 | AF24: "" | AG24: ""
A25: 110961742 | B25: S-0079 | C25: Postój | D25: 2013-07-04 07:38:13.0 | E25: 2013-07-04 09:58:23.0 | F25: 0 | G25: 120.0 | H25: 120.0 | I25: 18.722433333333335 | J25: 52.90311666666667 | L25: Polska | M25: Kujawsko-Pomorskie | O25: 87-700 | P25: 18.722433333333335 | Q25: 52.90311666666667 | S25: Polska | T25: Kujawsko-Pomorskie | V25: 87-700 | W25: "" | X25: 8410 | Y25: 0 | Z25: 0 | AA25: 0 | AB25: 0.0 | AC25: "" | AD25: "" | AE25: "" | AF25: "" | AG25: ""
A26: 110961744 | B26: S-0079 | C26: Obroty | D26: 2013-07-04 09:58:23.0 | E26: "" | F26: 0 | G26: "" | H26: "" | I26: "" | J26: "" | K26: "" | L26: "" | M26: "" | N26: "" | O26: "" | P26: "" | Q26: "" | R26: "" | S26: "" | T26: "" | U26: "" | V26: "" | W26: "" | X26: 0 | Y26: 0 | Z26: 0 | AA26: 0 | AB26: 0.0 | AC26: 0 | AD26: 0 | AE26: 248 | AF26: "" | AG26: ""
A27: 110961747 | B27: S-0079 | C27: Jazda | D27: 2013-07-04 09:58:23.0 | E27: 2013-07-04 10:02:31.0 | F27: 0 | G27: 75.21739130434783 | H27: 75.21739130434783 | I27: 18.7231 | J27: 52.9016 | L27: Polska | M27: Kujawsko-Pomorskie | O27: 87-700 | P27: 18.724683333333335 | Q27: 52.89861666666667 | S27: Polska | T27: Kujawsko-Pomorskie | V27: 87-700 | W27: "" | X27: 248 | Y27: 358 | Z27: 7 | AA27: 0 | AB27: 5.19677401 | AC27: "" | AD27: "" | AE27: "" | AF27: "" | AG27: ""
A28: 110961753 | B28: S-0079 | C28: Obroty | D28: 2013-07-04 10:29:13.0 | E28: "" | F28: 0 | G28: "" | H28: "" | I28: "" | J28: "" | K28: "" | L28: "" | M28: "" | N28: "" | O28: "" | P28: "" | Q28: "" | R28: "" | S28: "" | T28: "" | U28: "" | V28: "" | W28: "" | X28: 0 | Y28: 0 | Z28: 0 | AA28: 0 | AB28: 0.0 | AC28: 0 | AD28: 0 | AE28: 234 | AF28: "" | AG28: ""
A29: 110961754 | B29: S-0079 | C29: Jazda | D29: 2013-07-04 10:29:13.0 | E29: 2013-07-04 10:33:07.0 | F29: 0 | G29: 76.52173913043478 | H29: 75.21739130434783 | I29: 18.724716666666666 | J29: 52.89865 | L29: Polska | M29: Kujawsko-Pomorskie | O29: 87-700 | P29: 18.723333333333333 | Q29: 52.90121666666667 | S29: Polska | T29: Kujawsko-Pomorskie | V29: 87-700 | W29: "" | X29: 234 | Y29: 302 | Z29: 7 | AA29: 0 | AB29: 4.64615393 | AC29: "" | AD29: "" | AE29: "" | AF29: "" | AG29: ""
A30: 110961755 | B30: S-0079 | C30: Obroty | D30: 2013-07-04 10:33:07.0 | E30: "" | F30: 0 | G30: "" | H30: "" | I30: "" | J30: "" | K30: "" | L30: "" | M30: "" | N30: "" | O30: "" | P30: "" | Q30: "" | R30: "" | S30: "" | T30: "" | U30: "" | V30: "" | W30: "" | X30: 0 | Y30: 0 | Z30: 0 | AA30: 0 | AB30: 0.0 | AC30: 0 | AD30: 0 | AE30: 6347 | AF30: "" | AG30: ""
A31: 110961758 | B31: S-0079 | C31: Postój | D31: 2013-07-04 10:33:07.0 | E31: 2013-07-04 12:18:55.0 | F31: 0 | G31: 120.0 | H31: 66.52173913043478 | I31: 18.722833333333334 | J31: 52.9022 | L31: Polska | M31: Kujawsko-Pomorskie | O31: 87-700 | P31: 18.722833333333334 | Q31: 52.9022 | S31: Polska | T31: Kujawsko-Pomorskie | V31: 87-700 | W31: "" | X31: 6348 | Y31: 0 | Z31: 0 | AA31: 0 | AB31: 0.0 | AC31: "" | AD31: "" | AE31: "" | AF31: "" | AG31: ""
A32: 110961762 | B32: S-0079 | C32: Obroty | D32: 2013-07-04 12:24:30.0 | E32: "" | F32: 0 | G32: "" | H32: "" | I32: "" | J32: "" | K32: "" | L32: "" | M32: "" | N32: "" | O32: "" | P32: "" | Q32: "" | R32: "" | S32: "" | T32: "" | U32: "" | V32: "" | W32: "" | X32: 0 | Y32: 0 | Z32: 0 | AA32: 0 | AB32: 0.0 | AC32: 0 | AD32: 0 | AE32: 2384 | AF32: "" | AG32: ""
A33: 110961763 | B33: S-0079 | C33: Postój | D33: 2013-07-04 12:24:30.0 | E33: 2013-07-04 13:04:14.0 | F33: 0 | G33: 66.52173913043478 | H33: 120.0 | I33: 18.72285 | J33: 52.902033333333335 | L33: Polska | M33: Kujawsko-Pomorskie | O33: 87-700 | P33: 18.72285 | Q33: 52.902033333333335 | S33: Polska | T33: Kujawsko-Pomorskie | V33: 87-700 | W33: "" | X33: 2384 | Y33: 0 | Z33: 0 | AA33: 0 | AB33: 0.0 | AC33: "" | AD33: "" | AE33: "" | AF33: "" | AG33: ""
A34: 110961766 | B34: S-0079 | C34: Obroty | D34: 2013-07-04 13:04:14.0 | E34: "" | F34: 0 | G34: "" | H34: "" | I34: "" | J34: "" | K34: "" | L34: "" | M34: "" | N34: "" | O34: "" | P34: "" | Q34: "" | R34: "" | S34: "" | T34: "" | U34: "" | V34: "" | W34: "" | X34: 0 | Y34: 0 | Z34: 0 | AA34: 0 | AB34: 0.0 | AC34: 0 | AD34: 0 | AE34: 220 | AF34: "" | AG34: ""
A35: 110961767 | B35: S-0079 | C35: Jazda | D35: 2013-07-04 13:04:14.0 | E35: 2013-07-04 13:07:54.0 | F35: 0 | G35: 63.04347826086957 | H35: 60.86956521739131 | I35: 18.7227 | J35: 52.902483333333336 | L35: Polska | M35: Kujawsko-Pomorskie | O35: 87-700 | P35: 18.72295 | Q35: 52.90085 | S35: Polska | T35: Kujawsko-Pomorskie | V35: 87-700 | W35: "" | X35: 220 | Y35: 209 | Z35: 4 | AA35: 0 | AB35: 3.42000008 | AC35: "" | AD35: "" | AE35: "" | AF35: "" | AG35: ""
A36: 110961768 | B36: S-0079 | C36: Obroty | D36: 2013-07-04 13:07:54.0 | E36: "" | F36: 0 | G36: "" | H36: "" | I36: "" | J36: "" | K36: "" | L36: "" | M36: "" | N36: "" | O36: "" | P36: "" | Q36: "" | R36: "" | S36: "" | T36: "" | U36: "" | V36: "" | W36: "" | X36: 0 | Y36: 0 | Z36: 0 | AA36: 0 | AB36: 0.0 | AC36: 0 | AD36: 0 | AE36: 464 | AF36: "" | AG36: ""
A37: 110961771 | B37: S-0079 | C37: Postój | D37: 2013-07-04 13:07:54.0 | E37: 2013-07-04 13:15:39.0 | F37: 0 | G37: 120.0 | H37: 60.0 | I37: 18.722966666666668 | J37: 52.900816666666664 | L37: Polska | M37: Kujawsko-Pomorskie | O37: 87-700 | P37: 18.722966666666668 | Q37: 52.900816666666664 | S37: Polska | T37: Kujawsko-Pomorskie | V37: 87-700 | W37: "" | X37: 465 | Y37: 0 | Z37: 0 | AA37: 0 | AB37: 0.0 | AC37: "" | AD37: "" | AE37: "" | AF37: "" | AG37: ""
A38: 110961777 | B38: S-0079 | C38: Obroty | D38: 2013-07-04 13:20:46.0 | E38: "" | F38: 0 | G38: "" | H38: "" | I38: "" | J38: "" | K38: "" | L38: "" | M38: "" | N38: "" | O38: "" | P38: "" | Q38: "" | R38: "" | S38: "" | T38: "" | U38: "" | V38: "" | W38: "" | X38: 0 | Y38: 0 | Z38: 0 | AA38: 0 | AB38: 0.0 | AC38: 0 | AD38: 0 | AE38: 66 | AF38: "" | AG38: ""
A39: 110961778 | B39: S-0079 | C39: Jazda | D39: 2013-07-04 13:20:46.0 | E39: 2013-07-04 13:21:52.0 | F39: 0 | G39: 100.0 | H39: 100.0 | I39: 18.723 | J39: 52.900816666666664 | L39: Polska | M39: Kujawsko-Pomorskie | O39: 87-700 | P39: 18.72335 | Q39: 52.90101666666666 | S39: Polska | T39: Kujawsko-Pomorskie | V39: 87-700 | W39: "" | X39: 66 | Y39: 27 | Z39: 3 | AA39: 0 | AB39: 1.4727273 | AC39: "" | AD39: "" | AE39: "" | AF39: "" | AG39: ""
A40: 110961780 | B40: S-0079 | C40: Obroty | D40: 2013-07-04 13:21:52.0 | E40: "" | F40: 0 | G40: "" | H40: "" | I40: "" | J40: "" | K40: "" | L40: "" | M40: "" | N40: "" | O40: "" | P40: "" | Q40: "" | R40: "" | S40: "" | T40: "" | U40: "" | V40: "" | W40: "" | X40: 0 | Y40: 0 | Z40: 0 | AA40: 0 | AB40: 0.0 | AC40: 0 | AD40: 0 | AE40: 11238 | AF40: "" | AG40: ""
A41: 110961781 | B41: S-0079 | C41: Postój | D41: 2013-07-04 13:21:52.0 | E41: 2013-07-04 16:29:11.0 | F41: 0 | G41: 120.0 | H41: 120.0 | I41: 18.723166666666668 | J41: 52.90165 | L41: Polska | M41: Kujawsko-Pomorskie | O41: 87-700 | P41: 18.723166666666668 | Q41: 52.90165 | S41: Polska | T41: Kujawsko-Pomorskie | V41: 87-700 | W41: "" | X41: 11239 | Y41: 0 | Z41: 0 | AA41: 0 | AB41: 0.0 | AC41: "" | AD41: "" | AE41: "" | AF41: "" | AG41: ""
A42: 110961784 | B42: S-0079 | C42: Obroty | D42: 2013-07-04 16:29:11.0 | E42: "" | F42: 0 | G42: "" | H42: "" | I42: "" | J42: "" | K42: "" | L42: "" | M42: "" | N42: "" | O42: "" | P42: "" | Q42: "" | R42: "" | S42: "" | T42: "" | U42: "" | V42: "" | W42: "" | X42: 0 | Y42: 0 | Z42: 0 | AA42: 0 | AB42: 0.0 | AC42: 0 | AD42: 0 | AE42: 1597 | AF42: "" | AG42: ""
A43: 110961785 | B43: S-0079 | C43: Jazda | D43: 2013-07-04 16:29:11.0 | E43: 2013-07-04 16:55:48.0 | F43: 0 | G43: 85.21739130434783 | H43: 81.30434782608695 | I43: 18.723433333333332 | J43: 52.901183333333336 | L43: Polska | M43: Kujawsko-Pomorskie | O43: 87-700 | P43: 18.722883333333332 | Q43: 52.90246666666667 | S43: Polska | T43: Kujawsko-Pomorskie | V43: 87-700 | W43: "" | X43: 1597 | Y43: 774 | Z43: 4 | AA43: 0 | AB43: 1.74477148 | AC43: "" | AD43: "" | AE43: "" | AF43: "" | AG43: ""
A44: 110961787 | B44: S-0079 | C44: Obroty | D44: 2013-07-04 16:55:48.0 | E44: "" | F44: 0 | G44: "" | H44: "" | I44: "" | J44: "" | K44: "" | L44: "" | M44: "" | N44: "" | O44: "" | P44: "" | Q44: "" | R44: "" | S44: "" | T44: "" | U44: "" | V44: "" | W44: "" | X44: 0 | Y44: 0 | Z44: 0 | AA44: 0 | AB44: 0.0 | AC44: 0 | AD44: 0 | AE44: 226 | AF44: "" | AG44: ""
A45: 110961788 | B45: S-0079 | C45: Postój | D45: 2013-07-04 16:55:48.0 | E45: 2013-07-04 16:59:35.0 | F45: 0 | G45: 120.0 | H45: 120.0 | I45: 18.72345 | J45: 52.90136666666667 | L45: Polska | M45: Kujawsko-Pomorskie | O45: 87-700 | P45: 18.72345 | Q45: 52.90136666666667 | S45: Polska | T45: Kujawsko-Pomorskie | V45: 87-700 | W45: "" | X45: 227 | Y45: 0 | Z45: 0 | AA45: 0 | AB45: 0.0 | AC45: "" | AD45: "" | AE45: "" | AF45: "" | AG45: ""
A46: 110961790 | B46: S-0079 | C46: Obroty | D46: 2013-07-04 16:59:35.0 | E46: "" | F46: 0 | G46: "" | H46: "" | I46: "" | J46: "" | K46: "" | L46: "" | M46: "" | N46: "" | O46: "" | P46: "" | Q46: "" | R46: "" | S46: "" | T46: "" | U46: "" | V46: "" | W46: "" | X46: 0 | Y46: 0 | Z46: 0 | AA46: 0 | AB46: 0.0 | AC46: 0 | AD46: 0 | AE46: 364 | AF46: "" | AG46: ""
A47: 110961793 | B47: S-0079 | C47: Jazda | D47: 2013-07-04 16:59:35.0 | E47: 2013-07-04 17:05:39.0 | F47: 0 | G47: 80.43478260869566 | H47: 79.13043478260869 | I47: 18.723533333333332 | J47: 52.90108333333333 | L47: Polska | M47: Kujawsko-Pomorskie | O47: 87-700 | P47: 18.724733333333333 | Q47: 52.89855 | S47: Polska | T47: Kujawsko-Pomorskie | V47: 87-700 | W47: "" | X47: 364 | Y47: 275 | Z47: 4 | AA47: 0 | AB47: 2.71978021 | AC47: "" | AD47: "" | AE47: "" | AF47: "" | AG47: ""
A48: 111216350 | B48: S-0079 | C48: Obroty | D48: 2013-07-05 07:16:05.0 | E48: "" | F48: 0 | G48: "" | H48: "" | I48: "" | J48: "" | K48: "" | L48: "" | M48: "" | N48: "" | O48: "" | P48: "" | Q48: "" | R48: "" | S48: "" | T48: "" | U48: "" | V48: "" | W48: "" | X48: 0 | Y48: 0 | Z48: 0 | AA48: 0 | AB48: 0.0 | AC48: 10 | AD48: 3 | AE48: 0 | AF48: "" | AG48: ""
A49: 111216351 | B49: S-0079 | C49: Postój | D49: 2013-07-05 07:16:05.0 | E49: 2013-07-05 07:19:17.0 | F49: 0 | G49: 76.52173913043478 | H49: 120.0 | I49: 18.724733333333333 | J49: 52.89856666666667 | L49: Polska | M49: Kujawsko-Pomorskie | O49: 87-700 | P49: 18.724733333333333 | Q49: 52.89856666666667 | S49: Polska | T49: Kujawsko-Pomorskie | V49: 87-700 | W49: "" | X49: 192 | Y49: 0 | Z49: 0 | AA49: 0 | AB49: 0.0 | AC49: "" | AD49: "" | AE49: "" | AF49: "" | AG49: ""
A50: 111216354 | B50: S-0079 | C50: Obroty | D50: 2013-07-05 07:19:17.0 | E50: "" | F50: 0 | G50: "" | H50: "" | I50: "" | J50: "" | K50: "" | L50: "" | M50: "" | N50: "" | O50: "" | P50: "" | Q50: "" | R50: "" | S50: "" | T50: "" | U50: "" | V50: "" | W50: "" | X50: 0 | Y50: 0 | Z50: 0 | AA50: 0 | AB50: 0.0 | AC50: 4 | AD50: 136 | AE50: 236 | AF50: "" | AG50: ""
A51: 111216355 | B51: S-0079 | C51: Jazda | D51: 2013-07-05 07:19:17.0 | E51: 2013-07-05 07:26:54.0 | F51: 0 | G51: 77.82608695652173 | H51: 80.43478260869566 | I51: 18.7247 | J51: 52.8986 | L51: Polska | M51: Kujawsko-Pomorskie | O51: 87-700 | P51: 18.721083333333333 | Q51: 52.900933333333334 | S51: Polska | T51: Kujawsko-Pomorskie | V51: 87-700 | W51: "" | X51: 457 | Y51: 456 | Z51: 5 | AA51: 0 | AB51: 3.59212255 | AC51: "" | AD51: "" | AE51: "" | AF51: "" | AG51: ""
A52: 111216357 | B52: S-0079 | C52: Obroty | D52: 2013-07-05 07:26:54.0 | E52: "" | F52: 0 | G52: "" | H52: "" | I52: "" | J52: "" | K52: "" | L52: "" | M52: "" | N52: "" | O52: "" | P52: "" | Q52: "" | R52: "" | S52: "" | T52: "" | U52: "" | V52: "" | W52: "" | X52: 0 | Y52: 0 | Z52: 0 | AA52: 0 | AB52: 0.0 | AC52: 0 | AD52: 0 | AE52: 3956 | AF52: "" | AG52: ""
A53: 111216358 | B53: S-0079 | C53: Postój | D53: 2013-07-05 07:26:54.0 | E53: 2013-07-05 08:32:52.0 | F53: 0 | G53: 120.0 | H53: 120.0 | I53: 18.720866666666666 | J53: 52.90148333333333 | L53: Polska | M53: Kujawsko-Pomorskie | O53: 87-700 | P53: 18.720866666666666 | Q53: 52.90148333333333 | S53: Polska | T53: Kujawsko-Pomorskie | V53: 87-700 | W53: "" | X53: 3958 | Y53: 0 | Z53: 0 | AA53: 0 | AB53: 0.0 | AC53: "" | AD53: "" | AE53: "" | AF53: "" | AG53: ""
A54: 111216360 | B54: S-0079 | C54: Obroty | D54: 2013-07-05 08:32:52.0 | E54: "" | F54: 0 | G54: "" | H54: "" | I54: "" | J54: "" | K54: "" | L54: "" | M54: "" | N54: "" | O54: "" | P54: "" | Q54: "" | R54: "" | S54: "" | T54: "" | U54: "" | V54: "" | W54: "" | X54: 0 | Y54: 0 | Z54: 0 | AA54: 0 | AB54: 0.0 | AC54: 0 | AD54: 0 | AE54: 402 | AF54: "" | AG54: ""
A55: 111216363 | B55: S-0079 | C55: Jazda | D55: 2013-07-05 08:32:52.0 | E55: 2013-07-05 08:39:34.0 | F55: 0 | G55: 73.91304347826086 | H55: 79.13043478260869 | I55: 18.720816666666668 | J55: 52.90155 | L55: Polska | M55: Kujawsko-Pomorskie | O55: 87-700 | P55: 18.7248 | Q55: 52.89855 | S55: Polska | T55: Kujawsko-Pomorskie | V55: 87-700 | W55: "" | X55: 402 | Y55: 495 | Z55: 6 | AA55: 0 | AB55: 4.43283606 | AC55: "" | AD55: "" | AE55: "" | AF55: "" | AG55: ""
A56: 111216369 | B56: S-0079 | C56: Obroty | D56: 2013-07-05 13:13:29.0 | E56: "" | F56: 0 | G56: "" | H56: "" | I56: "" | J56: "" | K56: "" | L56: "" | M56: "" | N56: "" | O56: "" | P56: "" | Q56: "" | R56: "" | S56: "" | T56: "" | U56: "" | V56: "" | W56: "" | X56: 0 | Y56: 0 | Z56: 0 | AA56: 0 | AB56: 0.0 | AC56: 0 | AD56: 0 | AE56: 339 | AF56: "" | AG56: ""
A57: 111216370 | B57: S-0079 | C57: Jazda | D57: 2013-07-05 13:13:29.0 | E57: 2013-07-05 13:19:08.0 | F57: 0 | G57: 79.13043478260869 | H57: 73.04347826086956 | I57: 18.72475 | J57: 52.89856666666667 | L57: Polska | M57: Kujawsko-Pomorskie | O57: 87-700 | P57: 18.72298333333333 | Q57: 52.90168333333333 | S57: Polska | T57: Kujawsko-Pomorskie | V57: 87-700 | W57: "" | X57: 339 | Y57: 300 | Z57: 6 | AA57: 0 | AB57: 3.18584061 | AC57: "" | AD57: "" | AE57: "" | AF57: "" | AG57: ""
A58: 111216372 | B58: S-0079 | C58: Obroty | D58: 2013-07-05 13:19:08.0 | E58: "" | F58: 0 | G58: "" | H58: "" | I58: "" | J58: "" | K58: "" | L58: "" | M58: "" | N58: "" | O58: "" | P58: "" | Q58: "" | R58: "" | S58: "" | T58: "" | U58: "" | V58: "" | W58: "" | X58: 0 | Y58: 0 | Z58: 0 | AA58: 0 | AB58: 0.0 | AC58: 0 | AD58: 0 | AE58: 186 | AF58: "" | AG58: ""
A59: 111216373 | B59: S-0079 | C59: Postój | D59: 2013-07-05 13:19:08.0 | E59: 2013-07-05 13:22:15.0 | F59: 0 | G59: 120.0 | H59: 120.0 | I59: 18.72335 | J59: 52.90095 | L59: Polska | M59: Kujawsko-Pomorskie | O59: 87-700 | P59: 18.72335 | Q59: 52.90095 | S59: Polska | T59: Kujawsko-Pomorskie | V59: 87-700 | W59: "" | X59: 187 | Y59: 0 | Z59: 0 | AA59: 0 | AB59: 0.0 | AC59: "" | AD59: "" | AE59: "" | AF59: "" | AG59: ""
A60: 111216375 | B60: S-0079 | C60: Obroty | D60: 2013-07-05 13:22:15.0 | E60: "" | F60: 0 | G60: "" | H60: "" | I60: "" | J60: "" | K60: "" | L60: "" | M60: "" | N60: "" | O60: "" | P60: "" | Q60: "" | R60: "" | S60: "" | T60: "" | U60: "" | V60: "" | W60: "" | X60: 0 | Y60: 0 | Z60: 0 | AA60: 0 | AB60: 0.0 | AC60: 0 | AD60: 0 | AE60: 1493 | AF60: "" | AG60: ""
A61: 111216378 | B61: S-0079 | C61: Jazda | D61: 2013-07-05 13:22:15.0 | E61: 2013-07-05 13:47:08.0 | F61: 0 | G61: 70.43478260869566 | H61: 70.43478260869566 | I61: 18.72335 | J61: 52.90091666666667 | L61: Polska | M61: Kujawsko-Pomorskie | O61: 87-700 | P61: 18.723 | Q61: 52.90078333333334 | S61: Polska | T61: Kujawsko-Pomorskie | V61: 87-700 | W61: "" | X61: 1493 | Y61: 406 | Z61: 6 | AA61: 0 | AB61: 0.978968501 | AC61: "" | AD61: "" | AE61: "" | AF61: "" | AG61: ""
A62: 111216384 | B62: S-0079 | C62: Obroty | D62: 2013-07-05 13:54:08.0 | E62: "" | F62: 0 | G62: "" | H62: "" | I62: "" | J62: "" | K62: "" | L62: "" | M62: "" | N62: "" | O62: "" | P62: "" | Q62: "" | R62: "" | S62: "" | T62: "" | U62: "" | V62: "" | W62: "" | X62: 0 | Y62: 0 | Z62: 0 | AA62: 0 | AB62: 0.0 | AC62: 0 | AD62: 0 | AE62: 2543 | AF62: "" | AG62: ""
A63: 111216385 | B63: S-0079 | C63: Jazda | D63: 2013-07-05 13:54:08.0 | E63: 2013-07-05 14:36:31.0 | F63: 0 | G63: 100.0 | H63: 96.08695652173913 | I63: 18.72305 | J63: 52.9008 | L63: Polska | M63: Kujawsko-Pomorskie | O63: 87-700 | P63: 18.722833333333334 | Q63: 52.90218333333333 | S63: Polska | T63: Kujawsko-Pomorskie | V63: 87-700 | W63: "" | X63: 2543 | Y63: 650 | Z63: 5 | AA63: 0 | AB63: 0.920173049 | AC63: "" | AD63: "" | AE63: "" | AF63: "" | AG63: ""
A64: 111216387 | B64: S-0079 | C64: Obroty | D64: 2013-07-05 14:36:31.0 | E64: "" | F64: 0 | G64: "" | H64: "" | I64: "" | J64: "" | K64: "" | L64: "" | M64: "" | N64: "" | O64: "" | P64: "" | Q64: "" | R64: "" | S64: "" | T64: "" | U64: "" | V64: "" | W64: "" | X64: 0 | Y64: 0 | Z64: 0 | AA64: 0 | AB64: 0.0 | AC64: 0 | AD64: 0 | AE64: 267 | AF64: "" | AG64: ""
A65: 111216388 | B65: S-0079 | C65: Postój | D65: 2013-07-05 14:36:31.0 | E65: 2013-07-05 14:40:59.0 | F65: 0 | G65: 120.0 | H65: 120.0 | I65: 18.722733333333334 | J65: 52.90241666666667 | L65: Polska | M65: Kujawsko-Pomorskie | O65: 87-700 | P65: 18.722733333333334 | Q65: 52.90241666666667 | S65: Polska | T65: Kujawsko-Pomorskie | V65: 87-700 | W65: "" | X65: 268 | Y65: 0 | Z65: 0 | AA65: 0 | AB65: 0.0 | AC65: "" | AD65: "" | AE65: "" | AF65: "" | AG65: ""
A66: 111216390 | B66: S-0079 | C66: Obroty | D66: 2013-07-05 14:40:59.0 | E66: "" | F66: 0 | G66: "" | H66: "" | I66: "" | J66: "" | K66: "" | L66: "" | M66: "" | N66: "" | O66: "" | P66: "" | Q66: "" | R66: "" | S66: "" | T66: "" | U66: "" | V66: "" | W66: "" | X66: 0 | Y66: 0 | Z66: 0 | AA66: 0 | AB66: 0.0 | AC66: 0 | AD66: 0 | AE66: 497 | AF66: "" | AG66: ""
A67: 111216393 | B67: S-0079 | C67: Jazda | D67: 2013-07-05 14:40:59.0 | E67: 2013-07-05 14:49:16.0 | F67: 0 | G67: 96.08695652173913 | H67: 100.0 | I67: 18.72295 | J67: 52.902 | L67: Polska | M67: Kujawsko-Pomorskie | O67: 87-700 | P67: 18.724766666666667 | Q67: 52.898516666666666 | S67: Polska | T67: Kujawsko-Pomorskie | V67: 87-700 | W67: "" | X67: 497 | Y67: 620 | Z67: 7 | AA67: 0 | AB67: 4.49094582 | AC67: "" | AD67: "" | AE67: "" | AF67: "" | AG67: ""
A68: 111216399 | B68: S-0079 | C68: Obroty | D68: 2013-07-05 17:23:03.0 | E68: "" | F68: 0 | G68: "" | H68: "" | I68: "" | J68: "" | K68: "" | L68: "" | M68: "" | N68: "" | O68: "" | P68: "" | Q68: "" | R68: "" | S68: "" | T68: "" | U68: "" | V68: "" | W68: "" | X68: 0 | Y68: 0 | Z68: 0 | AA68: 0 | AB68: 0.0 | AC68: 0 | AD68: 0 | AE68: 304 | AF68: "" | AG68: ""
A69: 111216400 | B69: S-0079 | C69: Jazda | D69: 2013-07-05 17:23:03.0 | E69: 2013-07-05 17:28:07.0 | F69: 0 | G69: 100.0 | H69: 96.08695652173913 | I69: 18.72475 | J69: 52.898516666666666 | L69: Polska | M69: Kujawsko-Pomorskie | O69: 87-700 | P69: 18.723116666666666 | Q69: 52.90148333333333 | S69: Polska | T69: Kujawsko-Pomorskie | V69: 87-700 | W69: "" | X69: 304 | Y69: 339 | Z69: 6 | AA69: 0 | AB69: 4.01447392 | AC69: "" | AD69: "" | AE69: "" | AF69: "" | AG69: ""
A70: 111216402 | B70: S-0079 | C70: Obroty | D70: 2013-07-05 17:28:07.0 | E70: "" | F70: 0 | G70: "" | H70: "" | I70: "" | J70: "" | K70: "" | L70: "" | M70: "" | N70: "" | O70: "" | P70: "" | Q70: "" | R70: "" | S70: "" | T70: "" | U70: "" | V70: "" | W70: "" | X70: 0 | Y70: 0 | Z70: 0 | AA70: 0 | AB70: 0.0 | AC70: 0 | AD70: 0 | AE70: 4363 | AF70: "" | AG70: ""
A71: 111216403 | B71: S-0079 | C71: Postój | D71: 2013-07-05 17:28:07.0 | E71: 2013-07-05 18:40:51.0 | F71: 0 | G71: 120.0 | H71: 120.0 | I71: 18.722533333333335 | J71: 52.9026 | L71: Polska | M71: Kujawsko-Pomorskie | O71: 87-700 | P71: 18.722533333333335 | Q71: 52.9026 | S71: Polska | T71: Kujawsko-Pomorskie | V71: 87-700 | W71: "" | X71: 4364 | Y71: 0 | Z71: 0 | AA71: 0 | AB71: 0.0 | AC71: "" | AD71: "" | AE71: "" | AF71: "" | AG71: ""
A72: 111216405 | B72: S-0079 | C72: Obroty | D72: 2013-07-05 18:40:51.0 | E72: "" | F72: 0 | G72: "" | H72: "" | I72: "" | J72: "" | K72: "" | L72: "" | M72: "" | N72: "" | O72: "" | P72: "" | Q72: "" | R72: "" | S72: "" | T72: "" | U72: "" | V72: "" | W72: "" | X72: 0 | Y72: 0 | Z72: 0 | AA72: 0 | AB72: 0.0 | AC72: 0 | AD72: 0 | AE72: 362 | AF72: "" | AG72: ""
A73: 111216408 | B73: S-0079 | C73: Jazda | D73: 2013-07-05 18:40:51.0 | E73: 2013-07-05 18:46:53.0 | F73: 0 | G73: 91.30434782608695 | H73: 90.0 | I73: 18.7235 | J73: 52.9011 | L73: Polska | M73: Kujawsko-Pomorskie | O73: 87-700 | P73: 18.724766666666667 | Q73: 52.89865 | S73: Polska | T73: Kujawsko-Pomorskie | V73: 87-700 | W73: "" | X73: 362 | Y73: 311 | Z73: 6 | AA73: 0 | AB73: 3.09281778 | AC73: "" | AD73: "" | AE73: "" | AF73: "" | AG73: ""
A74: 111321845 | B74: S-0079 | C74: Obroty | D74: 2013-07-06 06:50:45.0 | E74: "" | F74: 0 | G74: "" | H74: "" | I74: "" | J74: "" | K74: "" | L74: "" | M74: "" | N74: "" | O74: "" | P74: "" | Q74: "" | R74: "" | S74: "" | T74: "" | U74: "" | V74: "" | W74: "" | X74: 0 | Y74: 0 | Z74: 0 | AA74: 0 | AB74: 0.0 | AC74: 1 | AD74: 6 | AE74: 6 | AF74: "" | AG74: ""
A75: 111321846 | B75: S-0079 | C75: Postój | D75: 2013-07-06 06:50:45.0 | E75: 2013-07-06 07:04:22.0 | F75: 0 | G75: 88.69565217391305 | H75: 120.0 | I75: 18.72475 | J75: 52.8987 | L75: Polska | M75: Kujawsko-Pomorskie | O75: 87-700 | P75: 18.72475 | Q75: 52.8987 | S75: Polska | T75: Kujawsko-Pomorskie | V75: 87-700 | W75: "" | X75: 817 | Y75: 0 | Z75: 0 | AA75: 0 | AB75: 0.0 | AC75: "" | AD75: "" | AE75: "" | AF75: "" | AG75: ""
A76: 111321849 | B76: S-0079 | C76: Obroty | D76: 2013-07-06 07:04:22.0 | E76: "" | F76: 0 | G76: "" | H76: "" | I76: "" | J76: "" | K76: "" | L76: "" | M76: "" | N76: "" | O76: "" | P76: "" | Q76: "" | R76: "" | S76: "" | T76: "" | U76: "" | V76: "" | W76: "" | X76: 0 | Y76: 0 | Z76: 0 | AA76: 0 | AB76: 0.0 | AC76: 0 | AD76: 0 | AE76: 306 | AF76: "" | AG76: ""
A77: 111321850 | B77: S-0079 | C77: Jazda | D77: 2013-07-06 07:04:22.0 | E77: 2013-07-06 07:09:28.0 | F77: 0 | G77: 86.52173913043478 | H77: 88.69565217391305 | I77: 18.724666666666668 | J77: 52.898666666666664 | L77: Polska | M77: Kujawsko-Pomorskie | O77: 87-700 | P77: 18.721266666666665 | Q77: 52.901066666666665 | S77: Polska | T77: Kujawsko-Pomorskie | V77: 87-700 | W77: "" | X77: 306 | Y77: 411 | Z77: 5 | AA77: 0 | AB77: 4.83529425 | AC77: "" | AD77: "" | AE77: "" | AF77: "" | AG77: ""
A78: 111321851 | B78: S-0079 | C78: Obroty | D78: 2013-07-06 07:09:28.0 | E78: "" | F78: 0 | G78: "" | H78: "" | I78: "" | J78: "" | K78: "" | L78: "" | M78: "" | N78: "" | O78: "" | P78: "" | Q78: "" | R78: "" | S78: "" | T78: "" | U78: "" | V78: "" | W78: "" | X78: 0 | Y78: 0 | Z78: 0 | AA78: 0 | AB78: 0.0 | AC78: 0 | AD78: 0 | AE78: 10436 | AF78: "" | AG78: ""
A79: 111321854 | B79: S-0079 | C79: Postój | D79: 2013-07-06 07:09:28.0 | E79: 2013-07-06 10:03:25.0 | F79: 0 | G79: 120.0 | H79: 70.43478260869566 | I79: 18.7214 | J79: 52.90043333333333 | L79: Polska | M79: Kujawsko-Pomorskie | O79: 87-700 | P79: 18.7214 | Q79: 52.90043333333333 | S79: Polska | T79: Kujawsko-Pomorskie | V79: 87-700 | W79: "" | X79: 10437 | Y79: 0 | Z79: 0 | AA79: 0 | AB79: 0.0 | AC79: "" | AD79: "" | AE79: "" | AF79: "" | AG79: ""
A80: 111321858 | B80: S-0079 | C80: Obroty | D80: 2013-07-06 10:32:43.0 | E80: "" | F80: 0 | G80: "" | H80: "" | I80: "" | J80: "" | K80: "" | L80: "" | M80: "" | N80: "" | O80: "" | P80: "" | Q80: "" | R80: "" | S80: "" | T80: "" | U80: "" | V80: "" | W80: "" | X80: 0 | Y80: 0 | Z80: 0 | AA80: 0 | AB80: 0.0 | AC80: 0 | AD80: 0 | AE80: 3121 | AF80: "" | AG80: ""
A81: 111321859 | B81: S-0079 | C81: Postój | D81: 2013-07-06 10:32:43.0 | E81: 2013-07-06 11:24:45.0 | F81: 0 | G81: 70.43478260869566 | H81: 120.0 | I81: 18.721 | J81: 52.90195 | L81: Polska | M81: Kujawsko-Pomorskie | O81: 87-700 | P81: 18.721 | Q81: 52.90195 | S81: Polska | T81: Kujawsko-Pomorskie | V81: 87-700 | W81: "" | X81: 3122 | Y81: 0 | Z81: 0 | AA81: 0 | AB81: 0.0 | AC81: "" | AD81: "" | AE81: "" | AF81: "" | AG81: ""
A82: 111321862 | B82: S-0079 | C82: Obroty | D82: 2013-07-06 11:24:45.0 | E82: "" | F82: 0 | G82: "" | H82: "" | I82: "" | J82: "" | K82: "" | L82: "" | M82: "" | N82: "" | O82: "" | P82: "" | Q82: "" | R82: "" | S82: "" | T82: "" | U82: "" | V82: "" | W82: "" | X82: 0 | Y82: 0 | Z82: 0 | AA82: 0 | AB82: 0.0 | AC82: 0 | AD82: 0 | AE82: 288 | AF82: "" | AG82: ""
A83: 111321863 | B83: S-0079 | C83: Jazda | D83: 2013-07-06 11:24:45.0 | E83: 2013-07-06 11:29:33.0 | F83: 0 | G83: 67.82608695652173 | H83: 62.17391304347826 | I83: 18.721766666666667 | J83: 52.90173333333333 | L83: Polska | M83: Kujawsko-Pomorskie | O83: 87-700 | P83: 18.724283333333332 | Q83: 52.898833333333336 | S83: Polska | T83: Kujawsko-Pomorskie | V83: 87-700 | W83: "" | X83: 288 | Y83: 392 | Z83: 6 | AA83: 0 | AB83: 4.9000001 | AC83: "" | AD83: "" | AE83: "" | AF83: "" | AG83: ""
A84: 111321865 | B84: S-0079 | C84: Obroty | D84: 2013-07-06 11:29:33.0 | E84: "" | F84: 0 | G84: "" | H84: "" | I84: "" | J84: "" | K84: "" | L84: "" | M84: "" | N84: "" | O84: "" | P84: "" | Q84: "" | R84: "" | S84: "" | T84: "" | U84: "" | V84: "" | W84: "" | X84: 0 | Y84: 0 | Z84: 0 | AA84: 0 | AB84: 0.0 | AC84: 0 | AD84: 0 | AE84: 219 | AF84: "" | AG84: ""
A85: 111321866 | B85: S-0079 | C85: Postój | D85: 2013-07-06 11:29:33.0 | E85: 2013-07-06 11:33:13.0 | F85: 0 | G85: 120.0 | H85: 120.0 | I85: 18.724333333333334 | J85: 52.89885 | L85: Polska | M85: Kujawsko-Pomorskie | O85: 87-700 | P85: 18.724333333333334 | Q85: 52.89885 | S85: Polska | T85: Kujawsko-Pomorskie | V85: 87-700 | W85: "" | X85: 220 | Y85: 0 | Z85: 0 | AA85: 0 | AB85: 0.0 | AC85: "" | AD85: "" | AE85: "" | AF85: "" | AG85: ""
A86: 111321869 | B86: S-0079 | C86: Obroty | D86: 2013-07-06 11:33:13.0 | E86: "" | F86: 0 | G86: "" | H86: "" | I86: "" | J86: "" | K86: "" | L86: "" | M86: "" | N86: "" | O86: "" | P86: "" | Q86: "" | R86: "" | S86: "" | T86: "" | U86: "" | V86: "" | W86: "" | X86: 0 | Y86: 0 | Z86: 0 | AA86: 0 | AB86: 0.0 | AC86: 0 | AD86: 0 | AE86: 177 | AF86: "" | AG86: ""
A87: 111321870 | B87: S-0079 | C87: Jazda | D87: 2013-07-06 11:33:13.0 | E87: 2013-07-06 11:36:10.0 | F87: 0 | G87: 69.1304347826087 | H87: 66.52173913043478 | I87: 18.7243 | J87: 52.898833333333336 | L87: Polska | M87: Kujawsko-Pomorskie | O87: 87-700 | P87: 18.723266666666667 | Q87: 52.90101666666666 | S87: Polska | T87: Kujawsko-Pomorskie | V87: 87-700 | W87: "" | X87: 177 | Y87: 249 | Z87: 6 | AA87: 0 | AB87: 5.06440687 | AC87: "" | AD87: "" | AE87: "" | AF87: "" | AG87: ""
A88: 111321872 | B88: S-0079 | C88: Obroty | D88: 2013-07-06 11:36:10.0 | E88: "" | F88: 0 | G88: "" | H88: "" | I88: "" | J88: "" | K88: "" | L88: "" | M88: "" | N88: "" | O88: "" | P88: "" | Q88: "" | R88: "" | S88: "" | T88: "" | U88: "" | V88: "" | W88: "" | X88: 0 | Y88: 0 | Z88: 0 | AA88: 0 | AB88: 0.0 | AC88: 0 | AD88: 0 | AE88: 1500 | AF88: "" | AG88: ""
A89: 111321873 | B89: S-0079 | C89: Postój | D89: 2013-07-06 11:36:10.0 | E89: 2013-07-06 12:01:11.0 | F89: 0 | G89: 120.0 | H89: 120.0 | I89: 18.722833333333334 | J89: 52.90196666666667 | L89: Polska | M89: Kujawsko-Pomorskie | O89: 87-700 | P89: 18.722833333333334 | Q89: 52.90196666666667 | S89: Polska | T89: Kujawsko-Pomorskie | V89: 87-700 | W89: "" | X89: 1501 | Y89: 0 | Z89: 0 | AA89: 0 | AB89: 0.0 | AC89: "" | AD89: "" | AE89: "" | AF89: "" | AG89: ""
A90: 111321876 | B90: S-0079 | C90: Obroty | D90: 2013-07-06 12:01:11.0 | E90: "" | F90: 0 | G90: "" | H90: "" | I90: "" | J90: "" | K90: "" | L90: "" | M90: "" | N90: "" | O90: "" | P90: "" | Q90: "" | R90: "" | S90: "" | T90: "" | U90: "" | V90: "" | W90: "" | X90: 0 | Y90: 0 | Z90: 0 | AA90: 0 | AB90: 0.0 | AC90: 0 | AD90: 0 | AE90: 261 | AF90: "" | AG90: ""
A91: 111321877 | B91: S-0079 | C91: Jazda | D91: 2013-07-06 12:01:11.0 | E91: 2013-07-06 12:05:32.0 | F91: 0 | G91: 65.65217391304347 | H91: 65.65217391304347 | I91: 18.723 | J91: 52.9009 | L91: Polska | M91: Kujawsko-Pomorskie | O91: 87-700 | P91: 18.72325 | Q91: 52.90111666666667 | S91: Polska | T91: Kujawsko-Pomorskie | V91: 87-700 | W91: "" | X91: 261 | Y91: 49 | Z91: 6 | AA91: 0 | AB91: 0.675862074 | AC91: "" | AD91: "" | AE91: "" | AF91: "" | AG91: ""
A92: 111321879 | B92: S-0079 | C92: Obroty | D92: 2013-07-06 12:05:32.0 | E92: "" | F92: 0 | G92: "" | H92: "" | I92: "" | J92: "" | K92: "" | L92: "" | M92: "" | N92: "" | O92: "" | P92: "" | Q92: "" | R92: "" | S92: "" | T92: "" | U92: "" | V92: "" | W92: "" | X92: 0 | Y92: 0 | Z92: 0 | AA92: 0 | AB92: 0.0 | AC92: 0 | AD92: 0 | AE92: 4094 | AF92: "" | AG92: ""
A93: 111321880 | B93: S-0079 | C93: Postój | D93: 2013-07-06 12:05:32.0 | E93: 2013-07-06 13:13:47.0 | F93: 0 | G93: 120.0 | H93: 120.0 | I93: 18.722783333333332 | J93: 52.902033333333335 | L93: Polska | M93: Kujawsko-Pomorskie | O93: 87-700 | P93: 18.722783333333332 | Q93: 52.902033333333335 | S93: Polska | T93: Kujawsko-Pomorskie | V93: 87-700 | W93: "" | X93: 4095 | Y93: 0 | Z93: 0 | AA93: 0 | AB93: 0.0 | AC93: "" | AD93: "" | AE93: "" | AF93: "" | AG93: ""
A94: 111321883 | B94: S-0079 | C94: Obroty | D94: 2013-07-06 13:13:47.0 | E94: "" | F94: 0 | G94: "" | H94: "" | I94: "" | J94: "" | K94: "" | L94: "" | M94: "" | N94: "" | O94: "" | P94: "" | Q94: "" | R94: "" | S94: "" | T94: "" | U94: "" | V94: "" | W94: "" | X94: 0 | Y94: 0 | Z94: 0 | AA94: 0 | AB94: 0.0 | AC94: 0 | AD94: 0 | AE94: 17 | AF94: "" | AG94: ""
A95: 111321884 | B95: S-0079 | C95: Jazda | D95: 2013-07-06 13:13:47.0 | E95: 2013-07-06 13:14:04.0 | F95: 0 | G95: 59.130434782608695 | H95: 62.17391304347826 | I95: 18.723116666666666 | J95: 52.90125 | L95: Polska | M95: Kujawsko-Pomorskie | O95: 87-700 | P95: 18.723216666666666 | Q95: 52.901066666666665 | S95: Polska | T95: Kujawsko-Pomorskie | V95: 87-700 | W95: "" | X95: 17 | Y95: 20 | Z95: 6 | AA95: 0 | AB95: 4.23529434 | AC95: "" | AD95: "" | AE95: "" | AF95: "" | AG95: ""
A96: 111321886 | B96: S-0079 | C96: Obroty | D96: 2013-07-06 13:14:04.0 | E96: "" | F96: 0 | G96: "" | H96: "" | I96: "" | J96: "" | K96: "" | L96: "" | M96: "" | N96: "" | O96: "" | P96: "" | Q96: "" | R96: "" | S96: "" | T96: "" | U96: "" | V96: "" | W96: "" | X96: 0 | Y96: 0 | Z96: 0 | AA96: 0 | AB96: 0.0 | AC96: 0 | AD96: 0 | AE96: 1802 | AF96: "" | AG96: ""
A97: 111321887 | B97: S-0079 | C97: Postój | D97: 2013-07-06 13:14:04.0 | E97: 2013-07-06 13:44:07.0 | F97: 0 | G97: 120.0 | H97: 120.0 | I97: 18.723233333333333 | J97: 52.901066666666665 | L97: Polska | M97: Kujawsko-Pomorskie | O97: 87-700 | P97: 18.723233333333333 | Q97: 52.901066666666665 | S97: Polska | T97: Kujawsko-Pomorskie | V97: 87-700 | W97: "" | X97: 1803 | Y97: 0 | Z97: 0 | AA97: 0 | AB97: 0.0 | AC97: "" | AD97: "" | AE97: "" | AF97: "" | AG97: ""
A98: 111321889 | B98: S-0079 | C98: Obroty | D98: 2013-07-06 13:44:07.0 | E98: "" | F98: 0 | G98: "" | H98: "" | I98: "" | J98: "" | K98: "" | L98: "" | M98: "" | N98: "" | O98: "" | P98: "" | Q98: "" | R98: "" | S98: "" | T98: "" | U98: "" | V98: "" | W98: "" | X98: 0 | Y98: 0 | Z98: 0 | AA98: 0 | AB98: 0.0 | AC98: 0 | AD98: 0 | AE98: 471 | AF98: "" | AG98: ""
A99: 111321892 | B99: S-0079 | C99: Jazda | D99: 2013-07-06 13:44:07.0 | E99: 2013-07-06 13:51:58.0 | F99: 0 | G99: 59.130434782608695 | H99: 57.826086956521735 | I99: 18.722416666666668 | J99: 52.9028 | L99: Polska | M99: Kujawsko-Pomorskie | O99: 87-700 | P99: 18.72475 | Q99: 52.89861666666667 | S99: Polska | T99: Kujawsko-Pomorskie | V99: 87-700 | W99: "" | X99: 471 | Y99: 496 | Z99: 6 | AA99: 0 | AB99: 3.79108286 | AC99: "" | AD99: "" | AE99: "" | AF99: "" | AG99: ""
A100: 111610510 | B100: S-0079 | C100: Obroty | D100: 2013-07-08 07:03:12.0 | E100: "" | F100: 0 | G100: "" | H100: "" | I100: "" | J100: "" | K100: "" | L100: "" | M100: "" | N100: "" | O100: "" | P100: "" | Q100: "" | R100: "" | S100: "" | T100: "" | U100: "" | V100: "" | W100: "" | X100: 0 | Y100: 0 | Z100: 0 | AA100: 0 | AB100: 0.0 | AC100: 1 | AD100: 7 | AE100: 0 | AF100: "" | AG100: ""
A101: 111610511 | B101: S-0079 | C101: Postój | D101: 2013-07-08 07:03:12.0 | E101: 2013-07-08 07:07:53.0 | F101: 0 | G101: 56.52173913043478 | H101: 120.0 | I101: 18.724733333333333 | J101: 52.898633333333336 | K101: "" | L101: "" | M101: "" | N101: "" | O101: "" | P101: 18.724733333333333 | Q101: 52.898633333333336 | R101: "" | S101: "" | T101: "" | U101: "" | V101: "" | W101: "" | X101: 281 | Y101: 0 | Z101: 0 | AA101: 0 | AB101: 0.0 | AC101: "" | AD101: "" | AE101: "" | AF101: "" | AG101: ""
A102: 111610514 | B102: S-0079 | C102: Obroty | D102: 2013-07-08 07:07:53.0 | E102: "" | F102: 0 | G102: "" | H102: "" | I102: "" | J102: "" | K102: "" | L102: "" | M102: "" | N102: "" | O102: "" | P102: "" | Q102: "" | R102: "" | S102: "" | T102: "" | U102: "" | V102: "" | W102: "" | X102: 0 | Y102: 0 | Z102: 0 | AA102: 0 | AB102: 0.0 | AC102: 0 | AD102: 27 | AE102: 206 | AF102: "" | AG102: ""
A103: 111610515 | B103: S-0079 | C103: Jazda | D103: 2013-07-08 07:07:53.0 | E103: 2013-07-08 07:11:46.0 | F103: 0 | G103: 55.65217391304348 | H103: 52.17391304347826 | I103: 18.72465 | J103: 52.898633333333336 | K103: "" | L103: "" | M103: "" | N103: "" | O103: "" | P103: 18.723316666666665 | Q103: 52.900866666666666 | R103: "" | S103: "" | T103: "" | U103: "" | V103: "" | W103: "" | X103: 233 | Y103: 275 | Z103: 4 | AA103: 0 | AB103: 4.24892712 | AC103: "" | AD103: "" | AE103: "" | AF103: "" | AG103: ""
A104: 111610516 | B104: S-0079 | C104: Obroty | D104: 2013-07-08 07:11:46.0 | E104: "" | F104: 0 | G104: "" | H104: "" | I104: "" | J104: "" | K104: "" | L104: "" | M104: "" | N104: "" | O104: "" | P104: "" | Q104: "" | R104: "" | S104: "" | T104: "" | U104: "" | V104: "" | W104: "" | X104: 0 | Y104: 0 | Z104: 0 | AA104: 0 | AB104: 0.0 | AC104: 2 | AD104: 2 | AE104: 9736 | AF104: "" | AG104: ""
A105: 111610519 | B105: S-0079 | C105: Postój | D105: 2013-07-08 07:11:46.0 | E105: 2013-07-08 09:59:24.0 | F105: 0 | G105: 120.0 | H105: 40.869565217391305 | I105: 18.723300000000002 | J105: 52.90088333333333 | K105: "" | L105: "" | M105: "" | N105: "" | O105: "" | P105: 18.723300000000002 | Q105: 52.90088333333333 | R105: "" | S105: "" | T105: "" | U105: "" | V105: "" | W105: "" | X105: 10058 | Y105: 0 | Z105: 0 | AA105: 0 | AB105: 0.0 | AC105: "" | AD105: "" | AE105: "" | AF105: "" | AG105: ""
A106: 111610523 | B106: S-0079 | C106: Obroty | D106: 2013-07-08 10:12:00.0 | E106: "" | F106: 0 | G106: "" | H106: "" | I106: "" | J106: "" | K106: "" | L106: "" | M106: "" | N106: "" | O106: "" | P106: "" | Q106: "" | R106: "" | S106: "" | T106: "" | U106: "" | V106: "" | W106: "" | X106: 0 | Y106: 0 | Z106: 0 | AA106: 0 | AB106: 0.0 | AC106: 0 | AD106: 0 | AE106: 316 | AF106: "" | AG106: ""
A107: 111610524 | B107: S-0079 | C107: Postój | D107: 2013-07-08 10:12:00.0 | E107: 2013-07-08 10:17:16.0 | F107: 0 | G107: 40.869565217391305 | H107: 120.0 | I107: 18.72325 | J107: 52.90108333333333 | K107: "" | L107: "" | M107: "" | N107: "" | O107: "" | P107: 18.72325 | Q107: 52.90108333333333 | R107: "" | S107: "" | T107: "" | U107: "" | V107: "" | W107: "" | X107: 316 | Y107: 0 | Z107: 0 | AA107: 0 | AB107: 0.0 | AC107: "" | AD107: "" | AE107: "" | AF107: "" | AG107: ""
A108: 111610527 | B108: S-0079 | C108: Obroty | D108: 2013-07-08 10:17:16.0 | E108: "" | F108: 0 | G108: "" | H108: "" | I108: "" | J108: "" | K108: "" | L108: "" | M108: "" | N108: "" | O108: "" | P108: "" | Q108: "" | R108: "" | S108: "" | T108: "" | U108: "" | V108: "" | W108: "" | X108: 0 | Y108: 0 | Z108: 0 | AA108: 0 | AB108: 0.0 | AC108: 0 | AD108: 0 | AE108: 191 | AF108: "" | AG108: ""
A109: 111610528 | B109: S-0079 | C109: Jazda | D109: 2013-07-08 10:17:16.0 | E109: 2013-07-08 10:20:27.0 | F109: 0 | G109: 40.869565217391305 | H109: 42.173913043478265 | I109: 18.723266666666667 | J109: 52.90096666666667 | K109: "" | L109: "" | M109: "" | N109: "" | O109: "" | P109: 18.723283333333335 | Q109: 52.90108333333333 | R109: "" | S109: "" | T109: "" | U109: "" | V109: "" | W109: "" | X109: 191 | Y109: 21 | Z109: 3 | AA109: 0 | AB109: 0.395811528 | AC109: "" | AD109: "" | AE109: "" | AF109: "" | AG109: ""
A110: 111610530 | B110: S-0079 | C110: Obroty | D110: 2013-07-08 10:20:27.0 | E110: "" | F110: 0 | G110: "" | H110: "" | I110: "" | J110: "" | K110: "" | L110: "" | M110: "" | N110: "" | O110: "" | P110: "" | Q110: "" | R110: "" | S110: "" | T110: "" | U110: "" | V110: "" | W110: "" | X110: 0 | Y110: 0 | Z110: 0 | AA110: 0 | AB110: 0.0 | AC110: 0 | AD110: 0 | AE110: 2386 | AF110: "" | AG110: ""
A111: 111610531 | B111: S-0079 | C111: Postój | D111: 2013-07-08 10:20:27.0 | E111: 2013-07-08 11:00:14.0 | F111: 0 | G111: 120.0 | H111: 120.0 | I111: 18.72315 | J111: 52.90091666666667 | K111: "" | L111: "" | M111: "" | N111: "" | O111: "" | P111: 18.72315 | Q111: 52.90091666666667 | R111: "" | S111: "" | T111: "" | U111: "" | V111: "" | W111: "" | X111: 2387 | Y111: 0 | Z111: 0 | AA111: 0 | AB111: 0.0 | AC111: "" | AD111: "" | AE111: "" | AF111: "" | AG111: ""
A112: 111610533 | B112: S-0079 | C112: Obroty | D112: 2013-07-08 11:00:14.0 | E112: "" | F112: 0 | G112: "" | H112: "" | I112: "" | J112: "" | K112: "" | L112: "" | M112: "" | N112: "" | O112: "" | P112: "" | Q112: "" | R112: "" | S112: "" | T112: "" | U112: "" | V112: "" | W112: "" | X112: 0 | Y112: 0 | Z112: 0 | AA112: 0 | AB112: 0.0 | AC112: 0 | AD112: 0 | AE112: 162 | AF112: "" | AG112: ""
A113: 111610536 | B113: S-0079 | C113: Jazda | D113: 2013-07-08 11:00:14.0 | E113: 2013-07-08 11:02:56.0 | F113: 0 | G113: 38.26086956521739 | H113: 35.21739130434783 | I113: 18.722783333333332 | J113: 52.90193333333333 | K113: "" | L113: "" | M113: "" | N113: "" | O113: "" | P113: 18.722966666666668 | Q113: 52.9008 | R113: "" | S113: "" | T113: "" | U113: "" | V113: "" | W113: "" | X113: 162 | Y113: 134 | Z113: 6 | AA113: 0 | AB113: 2.97777772 | AC113: "" | AD113: "" | AE113: "" | AF113: "" | AG113: ""
A114: 111610542 | B114: S-0079 | C114: Obroty | D114: 2013-07-08 11:12:38.0 | E114: "" | F114: 0 | G114: "" | H114: "" | I114: "" | J114: "" | K114: "" | L114: "" | M114: "" | N114: "" | O114: "" | P114: "" | Q114: "" | R114: "" | S114: "" | T114: "" | U114: "" | V114: "" | W114: "" | X114: 0 | Y114: 0 | Z114: 0 | AA114: 0 | AB114: 0.0 | AC114: 0 | AD114: 0 | AE114: 75 | AF114: "" | AG114: ""
A115: 111610543 | B115: S-0079 | C115: Jazda | D115: 2013-07-08 11:12:38.0 | E115: 2013-07-08 11:13:53.0 | F115: 0 | G115: 100.0 | H115: 100.0 | I115: 18.722966666666668 | J115: 52.9008 | K115: "" | L115: "" | M115: "" | N115: "" | O115: "" | P115: 18.723300000000002 | Q115: 52.90103333333333 | R115: "" | S115: "" | T115: "" | U115: "" | V115: "" | W115: "" | X115: 75 | Y115: 48 | Z115: 4 | AA115: 0 | AB115: 2.3039999 | AC115: "" | AD115: "" | AE115: "" | AF115: "" | AG115: ""
A116: 111610545 | B116: S-0079 | C116: Obroty | D116: 2013-07-08 11:13:53.0 | E116: "" | F116: 0 | G116: "" | H116: "" | I116: "" | J116: "" | K116: "" | L116: "" | M116: "" | N116: "" | O116: "" | P116: "" | Q116: "" | R116: "" | S116: "" | T116: "" | U116: "" | V116: "" | W116: "" | X116: 0 | Y116: 0 | Z116: 0 | AA116: 0 | AB116: 0.0 | AC116: 0 | AD116: 0 | AE116: 5159 | AF116: "" | AG116: ""
A117: 111610546 | B117: S-0079 | C117: Postój | D117: 2013-07-08 11:13:53.0 | E117: 2013-07-08 12:39:53.0 | F117: 0 | G117: 120.0 | H117: 120.0 | I117: 18.72298333333333 | J117: 52.90176666666667 | K117: "" | L117: "" | M117: "" | N117: "" | O117: "" | P117: 18.72298333333333 | Q117: 52.90176666666667 | R117: "" | S117: "" | T117: "" | U117: "" | V117: "" | W117: "" | X117: 5160 | Y117: 0 | Z117: 0 | AA117: 0 | AB117: 0.0 | AC117: "" | AD117: "" | AE117: "" | AF117: "" | AG117: ""
A118: 111610549 | B118: S-0079 | C118: Obroty | D118: 2013-07-08 12:39:53.0 | E118: "" | F118: 0 | G118: "" | H118: "" | I118: "" | J118: "" | K118: "" | L118: "" | M118: "" | N118: "" | O118: "" | P118: "" | Q118: "" | R118: "" | S118: "" | T118: "" | U118: "" | V118: "" | W118: "" | X118: 0 | Y118: 0 | Z118: 0 | AA118: 0 | AB118: 0.0 | AC118: 0 | AD118: 0 | AE118: 324 | AF118: "" | AG118: ""
A119: 111610550 | B119: S-0079 | C119: Jazda | D119: 2013-07-08 12:39:53.0 | E119: 2013-07-08 12:45:17.0 | F119: 0 | G119: 96.08695652173913 | H119: 88.69565217391305 | I119: 18.7236 | J119: 52.90115 | K119: "" | L119: "" | M119: "" | N119: "" | O119: "" | P119: 18.723266666666667 | Q119: 52.90101666666666 | R119: "" | S119: "" | T119: "" | U119: "" | V119: "" | W119: "" | X119: 324 | Y119: 128 | Z119: 4 | AA119: 0 | AB119: 1.42222226 | AC119: "" | AD119: "" | AE119: "" | AF119: "" | AG119: ""
A120: 111610552 | B120: S-0079 | C120: Obroty | D120: 2013-07-08 12:45:17.0 | E120: "" | F120: 0 | G120: "" | H120: "" | I120: "" | J120: "" | K120: "" | L120: "" | M120: "" | N120: "" | O120: "" | P120: "" | Q120: "" | R120: "" | S120: "" | T120: "" | U120: "" | V120: "" | W120: "" | X120: 0 | Y120: 0 | Z120: 0 | AA120: 0 | AB120: 0.0 | AC120: 0 | AD120: 0 | AE120: 369 | AF120: "" | AG120: ""
A121: 111610553 | B121: S-0079 | C121: Postój | D121: 2013-07-08 12:45:17.0 | E121: 2013-07-08 12:51:27.0 | F121: 0 | G121: 120.0 | H121: 120.0 | I121: 18.72285 | J121: 52.90196666666667 | K121: "" | L121: "" | M121: "" | N121: "" | O121: "" | P121: 18.72285 | Q121: 52.90196666666667 | R121: "" | S121: "" | T121: "" | U121: "" | V121: "" | W121: "" | X121: 370 | Y121: 0 | Z121: 0 | AA121: 0 | AB121: 0.0 | AC121: "" | AD121: "" | AE121: "" | AF121: "" | AG121: ""
A122: 111610556 | B122: S-0079 | C122: Obroty | D122: 2013-07-08 12:51:27.0 | E122: "" | F122: 0 | G122: "" | H122: "" | I122: "" | J122: "" | K122: "" | L122: "" | M122: "" | N122: "" | O122: "" | P122: "" | Q122: "" | R122: "" | S122: "" | T122: "" | U122: "" | V122: "" | W122: "" | X122: 0 | Y122: 0 | Z122: 0 | AA122: 0 | AB122: 0.0 | AC122: 0 | AD122: 0 | AE122: 15 | AF122: "" | AG122: ""
A123: 111610557 | B123: S-0079 | C123: Jazda | D123: 2013-07-08 12:51:27.0 | E123: 2013-07-08 12:51:42.0 | F123: 0 | G123: 94.78260869565217 | H123: 94.78260869565217 | I123: 18.722383333333333 | J123: 52.9029 | K123: "" | L123: "" | M123: "" | N123: "" | O123: "" | P123: 18.722416666666668 | Q123: 52.902766666666665 | R123: "" | S123: "" | T123: "" | U123: "" | V123: "" | W123: "" | X123: 15 | Y123: 15 | Z123: 4 | AA123: 0 | AB123: 3.5999999 | AC123: "" | AD123: "" | AE123: "" | AF123: "" | AG123: ""
A124: 111610559 | B124: S-0079 | C124: Obroty | D124: 2013-07-08 12:51:42.0 | E124: "" | F124: 0 | G124: "" | H124: "" | I124: "" | J124: "" | K124: "" | L124: "" | M124: "" | N124: "" | O124: "" | P124: "" | Q124: "" | R124: "" | S124: "" | T124: "" | U124: "" | V124: "" | W124: "" | X124: 0 | Y124: 0 | Z124: 0 | AA124: 0 | AB124: 0.0 | AC124: 0 | AD124: 0 | AE124: 261 | AF124: "" | AG124: ""
A125: 111610560 | B125: S-0079 | C125: Postój | D125: 2013-07-08 12:51:42.0 | E125: 2013-07-08 12:56:04.0 | F125: 0 | G125: 120.0 | H125: 120.0 | I125: 18.72295 | J125: 52.90168333333333 | K125: "" | L125: "" | M125: "" | N125: "" | O125: "" | P125: 18.72295 | Q125: 52.90168333333333 | R125: "" | S125: "" | T125: "" | U125: "" | V125: "" | W125: "" | X125: 262 | Y125: 0 | Z125: 0 | AA125: 0 | AB125: 0.0 | AC125: "" | AD125: "" | AE125: "" | AF125: "" | AG125: ""
A126: 111610562 | B126: S-0079 | C126: Obroty | D126: 2013-07-08 12:56:04.0 | E126: "" | F126: 0 | G126: "" | H126: "" | I126: "" | J126: "" | K126: "" | L126: "" | M126: "" | N126: "" | O126: "" | P126: "" | Q126: "" | R126: "" | S126: "" | T126: "" | U126: "" | V126: "" | W126: "" | X126: 0 | Y126: 0 | Z126: 0 | AA126: 0 | AB126: 0.0 | AC126: 0 | AD126: 0 | AE126: 272 | AF126: "" | AG126: ""
A127: 111610565 | B127: S-0079 | C127: Jazda | D127: 2013-07-08 12:56:04.0 | E127: 2013-07-08 13:00:36.0 | F127: 0 | G127: 93.47826086956522 | H127: 92.6086956521739 | I127: 18.723183333333335 | J127: 52.901183333333336 | K127: "" | L127: "" | M127: "" | N127: "" | O127: "" | P127: 18.724666666666668 | Q127: 52.89861666666667 | R127: "" | S127: "" | T127: "" | U127: "" | V127: "" | W127: "" | X127: 272 | Y127: 296 | Z127: 6 | AA127: 0 | AB127: 3.91764712 | AC127: "" | AD127: "" | AE127: "" | AF127: "" | AG127: ""
A128: 111610571 | B128: S-0079 | C128: Obroty | D128: 2013-07-08 13:15:50.0 | E128: "" | F128: 0 | G128: "" | H128: "" | I128: "" | J128: "" | K128: "" | L128: "" | M128: "" | N128: "" | O128: "" | P128: "" | Q128: "" | R128: "" | S128: "" | T128: "" | U128: "" | V128: "" | W128: "" | X128: 0 | Y128: 0 | Z128: 0 | AA128: 0 | AB128: 0.0 | AC128: 0 | AD128: 0 | AE128: 1060 | AF128: "" | AG128: ""
A129: 111610572 | B129: S-0079 | C129: Jazda | D129: 2013-07-08 13:15:50.0 | E129: 2013-07-08 13:33:30.0 | F129: 0 | G129: 92.6086956521739 | H129: 92.6086956521739 | I129: 18.724716666666666 | J129: 52.898633333333336 | K129: "" | L129: "" | M129: "" | N129: "" | O129: "" | P129: 18.72355 | Q129: 52.901133333333334 | R129: "" | S129: "" | T129: "" | U129: "" | V129: "" | W129: "" | X129: 1060 | Y129: 317 | Z129: 6 | AA129: 0 | AB129: 1.07660377 | AC129: "" | AD129: "" | AE129: "" | AF129: "" | AG129: ""
A130: 111610574 | B130: S-0079 | C130: Obroty | D130: 2013-07-08 13:33:30.0 | E130: "" | F130: 0 | G130: "" | H130: "" | I130: "" | J130: "" | K130: "" | L130: "" | M130: "" | N130: "" | O130: "" | P130: "" | Q130: "" | R130: "" | S130: "" | T130: "" | U130: "" | V130: "" | W130: "" | X130: 0 | Y130: 0 | Z130: 0 | AA130: 0 | AB130: 0.0 | AC130: 0 | AD130: 0 | AE130: 5489 | AF130: "" | AG130: ""
A131: 111610575 | B131: S-0079 | C131: Postój | D131: 2013-07-08 13:33:30.0 | E131: 2013-07-08 15:05:00.0 | F131: 0 | G131: 120.0 | H131: 120.0 | I131: 18.723633333333332 | J131: 52.90115 | K131: "" | L131: "" | M131: "" | N131: "" | O131: "" | P131: 18.723633333333332 | Q131: 52.90115 | R131: "" | S131: "" | T131: "" | U131: "" | V131: "" | W131: "" | X131: 5490 | Y131: 0 | Z131: 0 | AA131: 0 | AB131: 0.0 | AC131: "" | AD131: "" | AE131: "" | AF131: "" | AG131: ""
A132: 111610578 | B132: S-0079 | C132: Obroty | D132: 2013-07-08 15:05:00.0 | E132: "" | F132: 0 | G132: "" | H132: "" | I132: "" | J132: "" | K132: "" | L132: "" | M132: "" | N132: "" | O132: "" | P132: "" | Q132: "" | R132: "" | S132: "" | T132: "" | U132: "" | V132: "" | W132: "" | X132: 0 | Y132: 0 | Z132: 0 | AA132: 0 | AB132: 0.0 | AC132: 0 | AD132: 0 | AE132: 41 | AF132: "" | AG132: ""
A133: 111610579 | B133: S-0079 | C133: Jazda | D133: 2013-07-08 15:05:00.0 | E133: 2013-07-08 15:05:41.0 | F133: 0 | G133: 85.21739130434783 | H133: 82.6086956521739 | I133: 18.723266666666667 | J133: 52.9015 | K133: "" | L133: "" | M133: "" | N133: "" | O133: "" | P133: 18.723233333333333 | Q133: 52.90155 | R133: "" | S133: "" | T133: "" | U133: "" | V133: "" | W133: "" | X133: 41 | Y133: 38 | Z133: 6 | AA133: 0 | AB133: 3.33658528 | AC133: "" | AD133: "" | AE133: "" | AF133: "" | AG133: ""
A134: 111610581 | B134: S-0079 | C134: Obroty | D134: 2013-07-08 15:05:41.0 | E134: "" | F134: 0 | G134: "" | H134: "" | I134: "" | J134: "" | K134: "" | L134: "" | M134: "" | N134: "" | O134: "" | P134: "" | Q134: "" | R134: "" | S134: "" | T134: "" | U134: "" | V134: "" | W134: "" | X134: 0 | Y134: 0 | Z134: 0 | AA134: 0 | AB134: 0.0 | AC134: 0 | AD134: 0 | AE134: 11800 | AF134: "" | AG134: ""
A135: 111610582 | B135: S-0079 | C135: Postój | D135: 2013-07-08 15:05:41.0 | E135: 2013-07-08 18:22:22.0 | F135: 0 | G135: 120.0 | H135: 120.0 | I135: 18.723333333333333 | J135: 52.90133333333333 | K135: "" | L135: "" | M135: "" | N135: "" | O135: "" | P135: 18.723333333333333 | Q135: 52.90133333333333 | R135: "" | S135: "" | T135: "" | U135: "" | V135: "" | W135: "" | X135: 11801 | Y135: 0 | Z135: 0 | AA135: 0 | AB135: 0.0 | AC135: "" | AD135: "" | AE135: "" | AF135: "" | AG135: ""
A136: 111610584 | B136: S-0079 | C136: Obroty | D136: 2013-07-08 18:22:22.0 | E136: "" | F136: 0 | G136: "" | H136: "" | I136: "" | J136: "" | K136: "" | L136: "" | M136: "" | N136: "" | O136: "" | P136: "" | Q136: "" | R136: "" | S136: "" | T136: "" | U136: "" | V136: "" | W136: "" | X136: 0 | Y136: 0 | Z136: 0 | AA136: 0 | AB136: 0.0 | AC136: 0 | AD136: 0 | AE136: 707 | AF136: "" | AG136: ""
A137: 111610587 | B137: S-0079 | C137: Jazda | D137: 2013-07-08 18:22:22.0 | E137: 2013-07-08 18:34:09.0 | F137: 0 | G137: 69.1304347826087 | H137: 73.91304347826086 | I137: 18.72298333333333 | J137: 52.901916666666665 | K137: "" | L137: "" | M137: "" | N137: "" | O137: "" | P137: 18.724766666666667 | Q137: 52.89853333333333 | R137: "" | S137: "" | T137: "" | U137: "" | V137: "" | W137: "" | X137: 707 | Y137: 419 | Z137: 6 | AA137: 0 | AB137: 2.13352203 | AC137: "" | AD137: "" | AE137: "" | AF137: "" | AG137: ""
A138: 111779853 | B138: S-0079 | C138: Obroty | D138: 2013-07-09 07:11:11.0 | E138: "" | F138: 0 | G138: "" | H138: "" | I138: "" | J138: "" | K138: "" | L138: "" | M138: "" | N138: "" | O138: "" | P138: "" | Q138: "" | R138: "" | S138: "" | T138: "" | U138: "" | V138: "" | W138: "" | X138: 0 | Y138: 0 | Z138: 0 | AA138: 0 | AB138: 0.0 | AC138: 38 | AD138: 49 | AE138: 265 | AF138: "" | AG138: ""
A139: 111779854 | B139: S-0079 | C139: Jazda | D139: 2013-07-09 07:11:11.0 | E139: 2013-07-09 07:17:41.0 | F139: 0 | G139: 71.73913043478261 | H139: 63.04347826086957 | I139: 18.72475 | J139: 52.89853333333333 | K139: "" | L139: "" | M139: "" | N139: "" | O139: "" | P139: 18.72325 | Q139: 52.90173333333333 | R139: "" | S139: "" | T139: "" | U139: "" | V139: "" | W139: "" | X139: 390 | Y139: 428 | Z139: 6 | AA139: 0 | AB139: 3.95076919 | AC139: "" | AD139: "" | AE139: "" | AF139: "" | AG139: ""
A140: 111779856 | B140: S-0079 | C140: Obroty | D140: 2013-07-09 07:17:41.0 | E140: "" | F140: 0 | G140: "" | H140: "" | I140: "" | J140: "" | K140: "" | L140: "" | M140: "" | N140: "" | O140: "" | P140: "" | Q140: "" | R140: "" | S140: "" | T140: "" | U140: "" | V140: "" | W140: "" | X140: 0 | Y140: 0 | Z140: 0 | AA140: 0 | AB140: 0.0 | AC140: 5 | AD140: 3 | AE140: 15943 | AF140: "" | AG140: ""
A141: 111779857 | B141: S-0079 | C141: Postój | D141: 2013-07-09 07:17:41.0 | E141: 2013-07-09 11:48:09.0 | F141: 0 | G141: 120.0 | H141: 120.0 | I141: 18.723300000000002 | J141: 52.901666666666664 | K141: "" | L141: "" | M141: "" | N141: "" | O141: "" | P141: 18.723300000000002 | Q141: 52.901666666666664 | R141: "" | S141: "" | T141: "" | U141: "" | V141: "" | W141: "" | X141: 16228 | Y141: 0 | Z141: 0 | AA141: 0 | AB141: 0.0 | AC141: "" | AD141: "" | AE141: "" | AF141: "" | AG141: ""
A142: 111779859 | B142: S-0079 | C142: Obroty | D142: 2013-07-09 11:48:09.0 | E142: "" | F142: 0 | G142: "" | H142: "" | I142: "" | J142: "" | K142: "" | L142: "" | M142: "" | N142: "" | O142: "" | P142: "" | Q142: "" | R142: "" | S142: "" | T142: "" | U142: "" | V142: "" | W142: "" | X142: 0 | Y142: 0 | Z142: 0 | AA142: 0 | AB142: 0.0 | AC142: 0 | AD142: 0 | AE142: 380 | AF142: "" | AG142: ""
A143: 111779862 | B143: S-0079 | C143: Jazda | D143: 2013-07-09 11:48:09.0 | E143: 2013-07-09 11:54:29.0 | F143: 0 | G143: 43.04347826086957 | H143: 46.95652173913044 | I143: 18.72325 | J143: 52.90115 | K143: "" | L143: "" | M143: "" | N143: "" | O143: "" | P143: 18.724783333333335 | Q143: 52.89853333333333 | R143: "" | S143: "" | T143: "" | U143: "" | V143: "" | W143: "" | X143: 380 | Y143: 315 | Z143: 6 | AA143: 0 | AB143: 2.98421049 | AC143: "" | AD143: "" | AE143: "" | AF143: "" | AG143: ""
A144: 111779867 | B144: S-0079 | C144: Obroty | D144: 2013-07-09 13:39:05.0 | E144: "" | F144: 0 | G144: "" | H144: "" | I144: "" | J144: "" | K144: "" | L144: "" | M144: "" | N144: "" | O144: "" | P144: "" | Q144: "" | R144: "" | S144: "" | T144: "" | U144: "" | V144: "" | W144: "" | X144: 0 | Y144: 0 | Z144: 0 | AA144: 0 | AB144: 0.0 | AC144: 0 | AD144: 0 | AE144: 426 | AF144: "" | AG144: ""
A145: 111779870 | B145: S-0079 | C145: Jazda | D145: 2013-07-09 13:39:05.0 | E145: 2013-07-09 13:46:11.0 | F145: 0 | G145: 46.95652173913044 | H145: 40.869565217391305 | I145: 18.7248 | J145: 52.898516666666666 | K145: "" | L145: "" | M145: "" | N145: "" | O145: "" | P145: 18.723333333333333 | Q145: 52.90105 | R145: "" | S145: "" | T145: "" | U145: "" | V145: "" | W145: "" | X145: 426 | Y145: 348 | Z145: 6 | AA145: 0 | AB145: 2.94084501 | AC145: "" | AD145: "" | AE145: "" | AF145: "" | AG145: ""
A146: 111779874 | B146: S-0079 | C146: Obroty | D146: 2013-07-09 14:02:47.0 | E146: "" | F146: 0 | G146: "" | H146: "" | I146: "" | J146: "" | K146: "" | L146: "" | M146: "" | N146: "" | O146: "" | P146: "" | Q146: "" | R146: "" | S146: "" | T146: "" | U146: "" | V146: "" | W146: "" | X146: 0 | Y146: 0 | Z146: 0 | AA146: 0 | AB146: 0.0 | AC146: 0 | AD146: 0 | AE146: 1145 | AF146: "" | AG146: ""
A147: 111779875 | B147: S-0079 | C147: Postój | D147: 2013-07-09 14:02:47.0 | E147: 2013-07-09 14:21:52.0 | F147: 0 | G147: 40.869565217391305 | H147: 120.0 | I147: 18.723316666666665 | J147: 52.90103333333333 | K147: "" | L147: "" | M147: "" | N147: "" | O147: "" | P147: 18.723316666666665 | Q147: 52.90103333333333 | R147: "" | S147: "" | T147: "" | U147: "" | V147: "" | W147: "" | X147: 1145 | Y147: 0 | Z147: 0 | AA147: 0 | AB147: 0.0 | AC147: "" | AD147: "" | AE147: "" | AF147: "" | AG147: ""
A148: 111779878 | B148: S-0079 | C148: Obroty | D148: 2013-07-09 14:21:52.0 | E148: "" | F148: 0 | G148: "" | H148: "" | I148: "" | J148: "" | K148: "" | L148: "" | M148: "" | N148: "" | O148: "" | P148: "" | Q148: "" | R148: "" | S148: "" | T148: "" | U148: "" | V148: "" | W148: "" | X148: 0 | Y148: 0 | Z148: 0 | AA148: 0 | AB148: 0.0 | AC148: 0 | AD148: 0 | AE148: 43 | AF148: "" | AG148: ""
A149: 111779879 | B149: S-0079 | C149: Jazda | D149: 2013-07-09 14:21:52.0 | E149: 2013-07-09 14:22:35.0 | F149: 0 | G149: 36.08695652173913 | H149: 38.26086956521739 | I149: 18.722166666666666 | J149: 52.90311666666667 | K149: "" | L149: "" | M149: "" | N149: "" | O149: "" | P149: 18.72245 | Q149: 52.902833333333334 | R149: "" | S149: "" | T149: "" | U149: "" | V149: "" | W149: "" | X149: 43 | Y149: 14 | Z149: 3 | AA149: 0 | AB149: 1.17209303 | AC149: "" | AD149: "" | AE149: "" | AF149: "" | AG149: ""
A150: 111779881 | B150: S-0079 | C150: Obroty | D150: 2013-07-09 14:22:35.0 | E150: "" | F150: 0 | G150: "" | H150: "" | I150: "" | J150: "" | K150: "" | L150: "" | M150: "" | N150: "" | O150: "" | P150: "" | Q150: "" | R150: "" | S150: "" | T150: "" | U150: "" | V150: "" | W150: "" | X150: 0 | Y150: 0 | Z150: 0 | AA150: 0 | AB150: 0.0 | AC150: 0 | AD150: 0 | AE150: 1858 | AF150: "" | AG150: ""
A151: 111779882 | B151: S-0079 | C151: Postój | D151: 2013-07-09 14:22:35.0 | E151: 2013-07-09 14:53:34.0 | F151: 0 | G151: 120.0 | H151: 120.0 | I151: 18.723 | J151: 52.901716666666665 | K151: "" | L151: "" | M151: "" | N151: "" | O151: "" | P151: 18.723 | Q151: 52.901716666666665 | R151: "" | S151: "" | T151: "" | U151: "" | V151: "" | W151: "" | X151: 1859 | Y151: 0 | Z151: 0 | AA151: 0 | AB151: 0.0 | AC151: "" | AD151: "" | AE151: "" | AF151: "" | AG151: ""
A152: 111779885 | B152: S-0079 | C152: Obroty | D152: 2013-07-09 14:53:34.0 | E152: "" | F152: 0 | G152: "" | H152: "" | I152: "" | J152: "" | K152: "" | L152: "" | M152: "" | N152: "" | O152: "" | P152: "" | Q152: "" | R152: "" | S152: "" | T152: "" | U152: "" | V152: "" | W152: "" | X152: 0 | Y152: 0 | Z152: 0 | AA152: 0 | AB152: 0.0 | AC152: 0 | AD152: 0 | AE152: 572 | AF152: "" | AG152: ""
A153: 111779886 | B153: S-0079 | C153: Jazda | D153: 2013-07-09 14:53:34.0 | E153: 2013-07-09 15:03:06.0 | F153: 0 | G153: 33.04347826086956 | H153: 35.21739130434783 | I153: 18.723283333333335 | J153: 52.9015 | K153: "" | L153: "" | M153: "" | N153: "" | O153: "" | P153: 18.722183333333334 | Q153: 52.90311666666667 | R153: "" | S153: "" | T153: "" | U153: "" | V153: "" | W153: "" | X153: 572 | Y153: 601 | Z153: 5 | AA153: 0 | AB153: 3.78251743 | AC153: "" | AD153: "" | AE153: "" | AF153: "" | AG153: ""
A154: 111779888 | B154: S-0079 | C154: Obroty | D154: 2013-07-09 15:03:06.0 | E154: "" | F154: 0 | G154: "" | H154: "" | I154: "" | J154: "" | K154: "" | L154: "" | M154: "" | N154: "" | O154: "" | P154: "" | Q154: "" | R154: "" | S154: "" | T154: "" | U154: "" | V154: "" | W154: "" | X154: 0 | Y154: 0 | Z154: 0 | AA154: 0 | AB154: 0.0 | AC154: 0 | AD154: 0 | AE154: 263 | AF154: "" | AG154: ""
A155: 111779889 | B155: S-0079 | C155: Postój | D155: 2013-07-09 15:03:06.0 | E155: 2013-07-09 15:07:30.0 | F155: 0 | G155: 120.0 | H155: 120.0 | I155: 18.7222 | J155: 52.90313333333334 | K155: "" | L155: "" | M155: "" | N155: "" | O155: "" | P155: 18.7222 | Q155: 52.90313333333334 | R155: "" | S155: "" | T155: "" | U155: "" | V155: "" | W155: "" | X155: 264 | Y155: 0 | Z155: 0 | AA155: 0 | AB155: 0.0 | AC155: "" | AD155: "" | AE155: "" | AF155: "" | AG155: ""
A156: 111779892 | B156: S-0079 | C156: Obroty | D156: 2013-07-09 15:07:30.0 | E156: "" | F156: 0 | G156: "" | H156: "" | I156: "" | J156: "" | K156: "" | L156: "" | M156: "" | N156: "" | O156: "" | P156: "" | Q156: "" | R156: "" | S156: "" | T156: "" | U156: "" | V156: "" | W156: "" | X156: 0 | Y156: 0 | Z156: 0 | AA156: 0 | AB156: 0.0 | AC156: 0 | AD156: 0 | AE156: 275 | AF156: "" | AG156: ""
A157: 111779893 | B157: S-0079 | C157: Jazda | D157: 2013-07-09 15:07:30.0 | E157: 2013-07-09 15:12:05.0 | F157: 0 | G157: 37.391304347826086 | H157: 35.21739130434783 | I157: 18.7222 | J157: 52.90311666666667 | K157: "" | L157: "" | M157: "" | N157: "" | O157: "" | P157: 18.72335 | Q157: 52.90115 | R157: "" | S157: "" | T157: "" | U157: "" | V157: "" | W157: "" | X157: 275 | Y157: 209 | Z157: 5 | AA157: 0 | AB157: 2.73600006 | AC157: "" | AD157: "" | AE157: "" | AF157: "" | AG157: ""
A158: 111779895 | B158: S-0079 | C158: Obroty | D158: 2013-07-09 15:12:05.0 | E158: "" | F158: 0 | G158: "" | H158: "" | I158: "" | J158: "" | K158: "" | L158: "" | M158: "" | N158: "" | O158: "" | P158: "" | Q158: "" | R158: "" | S158: "" | T158: "" | U158: "" | V158: "" | W158: "" | X158: 0 | Y158: 0 | Z158: 0 | AA158: 0 | AB158: 0.0 | AC158: 0 | AD158: 0 | AE158: 939 | AF158: "" | AG158: ""
A159: 111779896 | B159: S-0079 | C159: Postój | D159: 2013-07-09 15:12:05.0 | E159: 2013-07-09 15:27:45.0 | F159: 0 | G159: 120.0 | H159: 120.0 | I159: 18.723366666666667 | J159: 52.901133333333334 | K159: "" | L159: "" | M159: "" | N159: "" | O159: "" | P159: 18.723366666666667 | Q159: 52.901133333333334 | R159: "" | S159: "" | T159: "" | U159: "" | V159: "" | W159: "" | X159: 940 | Y159: 0 | Z159: 0 | AA159: 0 | AB159: 0.0 | AC159: "" | AD159: "" | AE159: "" | AF159: "" | AG159: ""
A160: 111779899 | B160: S-0079 | C160: Obroty | D160: 2013-07-09 15:27:45.0 | E160: "" | F160: 0 | G160: "" | H160: "" | I160: "" | J160: "" | K160: "" | L160: "" | M160: "" | N160: "" | O160: "" | P160: "" | Q160: "" | R160: "" | S160: "" | T160: "" | U160: "" | V160: "" | W160: "" | X160: 0 | Y160: 0 | Z160: 0 | AA160: 0 | AB160: 0.0 | AC160: 0 | AD160: 0 | AE160: 389 | AF160: "" | AG160: ""
A161: 111779900 | B161: S-0079 | C161: Jazda | D161: 2013-07-09 15:27:45.0 | E161: 2013-07-09 15:34:14.0 | F161: 0 | G161: 33.91304347826087 | H161: 35.21739130434783 | I161: 18.723366666666667 | J161: 52.901133333333334 | K161: "" | L161: "" | M161: "" | N161: "" | O161: "" | P161: 18.723483333333334 | Q161: 52.9012 | R161: "" | S161: "" | T161: "" | U161: "" | V161: "" | W161: "" | X161: 389 | Y161: 277 | Z161: 7 | AA161: 0 | AB161: 2.56349611 | AC161: "" | AD161: "" | AE161: "" | AF161: "" | AG161: ""
A162: 111779902 | B162: S-0079 | C162: Obroty | D162: 2013-07-09 15:34:14.0 | E162: "" | F162: 0 | G162: "" | H162: "" | I162: "" | J162: "" | K162: "" | L162: "" | M162: "" | N162: "" | O162: "" | P162: "" | Q162: "" | R162: "" | S162: "" | T162: "" | U162: "" | V162: "" | W162: "" | X162: 0 | Y162: 0 | Z162: 0 | AA162: 0 | AB162: 0.0 | AC162: 0 | AD162: 0 | AE162: 331 | AF162: "" | AG162: ""
A163: 111779903 | B163: S-0079 | C163: Postój | D163: 2013-07-09 15:34:14.0 | E163: 2013-07-09 15:39:46.0 | F163: 0 | G163: 120.0 | H163: 120.0 | I163: 18.723483333333334 | J163: 52.901183333333336 | K163: "" | L163: "" | M163: "" | N163: "" | O163: "" | P163: 18.723483333333334 | Q163: 52.901183333333336 | R163: "" | S163: "" | T163: "" | U163: "" | V163: "" | W163: "" | X163: 332 | Y163: 0 | Z163: 0 | AA163: 0 | AB163: 0.0 | AC163: "" | AD163: "" | AE163: "" | AF163: "" | AG163: ""
A164: 111779906 | B164: S-0079 | C164: Obroty | D164: 2013-07-09 15:39:46.0 | E164: "" | F164: 0 | G164: "" | H164: "" | I164: "" | J164: "" | K164: "" | L164: "" | M164: "" | N164: "" | O164: "" | P164: "" | Q164: "" | R164: "" | S164: "" | T164: "" | U164: "" | V164: "" | W164: "" | X164: 0 | Y164: 0 | Z164: 0 | AA164: 0 | AB164: 0.0 | AC164: 0 | AD164: 0 | AE164: 245 | AF164: "" | AG164: ""
A165: 111779907 | B165: S-0079 | C165: Jazda | D165: 2013-07-09 15:39:46.0 | E165: 2013-07-09 15:43:51.0 | F165: 0 | G165: 35.21739130434783 | H165: 33.91304347826087 | I165: 18.723383333333334 | J165: 52.90141666666667 | K165: "" | L165: "" | M165: "" | N165: "" | O165: "" | P165: 18.723433333333332 | Q165: 52.901133333333334 | R165: "" | S165: "" | T165: "" | U165: "" | V165: "" | W165: "" | X165: 245 | Y165: 40 | Z165: 7 | AA165: 0 | AB165: 0.587755084 | AC165: "" | AD165: "" | AE165: "" | AF165: "" | AG165: ""
A166: 111779909 | B166: S-0079 | C166: Obroty | D166: 2013-07-09 15:43:51.0 | E166: "" | F166: 0 | G166: "" | H166: "" | I166: "" | J166: "" | K166: "" | L166: "" | M166: "" | N166: "" | O166: "" | P166: "" | Q166: "" | R166: "" | S166: "" | T166: "" | U166: "" | V166: "" | W166: "" | X166: 0 | Y166: 0 | Z166: 0 | AA166: 0 | AB166: 0.0 | AC166: 0 | AD166: 0 | AE166: 217 | AF166: "" | AG166: ""
A167: 111779910 | B167: S-0079 | C167: Postój | D167: 2013-07-09 15:43:51.0 | E167: 2013-07-09 15:47:29.0 | F167: 0 | G167: 120.0 | H167: 120.0 | I167: 18.72325 | J167: 52.90148333333333 | K167: "" | L167: "" | M167: "" | N167: "" | O167: "" | P167: 18.72325 | Q167: 52.90148333333333 | R167: "" | S167: "" | T167: "" | U167: "" | V167: "" | W167: "" | X167: 218 | Y167: 0 | Z167: 0 | AA167: 0 | AB167: 0.0 | AC167: "" | AD167: "" | AE167: "" | AF167: "" | AG167: ""
A168: 111779913 | B168: S-0079 | C168: Obroty | D168: 2013-07-09 15:47:29.0 | E168: "" | F168: 0 | G168: "" | H168: "" | I168: "" | J168: "" | K168: "" | L168: "" | M168: "" | N168: "" | O168: "" | P168: "" | Q168: "" | R168: "" | S168: "" | T168: "" | U168: "" | V168: "" | W168: "" | X168: 0 | Y168: 0 | Z168: 0 | AA168: 0 | AB168: 0.0 | AC168: 0 | AD168: 0 | AE168: 2368 | AF168: "" | AG168: ""
A169: 111779914 | B169: S-0079 | C169: Jazda | D169: 2013-07-09 15:47:29.0 | E169: 2013-07-09 16:26:57.0 | F169: 0 | G169: 33.91304347826087 | H169: 28.695652173913043 | I169: 18.723166666666668 | J169: 52.90165 | K169: "" | L169: "" | M169: "" | N169: "" | O169: "" | P169: 18.7211 | Q169: 52.90095 | R169: "" | S169: "" | T169: "" | U169: "" | V169: "" | W169: "" | X169: 2368 | Y169: 1824 | Z169: 7 | AA169: 0 | AB169: 2.77297306 | AC169: "" | AD169: "" | AE169: "" | AF169: "" | AG169: ""
A170: 111779916 | B170: S-0079 | C170: Obroty | D170: 2013-07-09 16:26:57.0 | E170: "" | F170: 0 | G170: "" | H170: "" | I170: "" | J170: "" | K170: "" | L170: "" | M170: "" | N170: "" | O170: "" | P170: "" | Q170: "" | R170: "" | S170: "" | T170: "" | U170: "" | V170: "" | W170: "" | X170: 0 | Y170: 0 | Z170: 0 | AA170: 0 | AB170: 0.0 | AC170: 0 | AD170: 0 | AE170: 4909 | AF170: "" | AG170: ""
A171: 111779917 | B171: S-0079 | C171: Postój | D171: 2013-07-09 16:26:57.0 | E171: 2013-07-09 17:48:48.0 | F171: 0 | G171: 120.0 | H171: 120.0 | I171: 18.721066666666665 | J171: 52.90195 | K171: "" | L171: "" | M171: "" | N171: "" | O171: "" | P171: 18.721066666666665 | Q171: 52.90195 | R171: "" | S171: "" | T171: "" | U171: "" | V171: "" | W171: "" | X171: 4911 | Y171: 0 | Z171: 0 | AA171: 0 | AB171: 0.0 | AC171: "" | AD171: "" | AE171: "" | AF171: "" | AG171: ""
A172: 111779920 | B172: S-0079 | C172: Obroty | D172: 2013-07-09 17:48:48.0 | E172: "" | F172: 0 | G172: "" | H172: "" | I172: "" | J172: "" | K172: "" | L172: "" | M172: "" | N172: "" | O172: "" | P172: "" | Q172: "" | R172: "" | S172: "" | T172: "" | U172: "" | V172: "" | W172: "" | X172: 0 | Y172: 0 | Z172: 0 | AA172: 0 | AB172: 0.0 | AC172: 0 | AD172: 0 | AE172: 37 | AF172: "" | AG172: ""
A173: 111779921 | B173: S-0079 | C173: Jazda | D173: 2013-07-09 17:48:48.0 | E173: 2013-07-09 17:49:25.0 | F173: 0 | G173: 23.91304347826087 | H173: 20.869565217391305 | I173: 18.721183333333332 | J173: 52.900733333333335 | K173: "" | L173: "" | M173: "" | N173: "" | O173: "" | P173: 18.721183333333332 | Q173: 52.90101666666666 | R173: "" | S173: "" | T173: "" | U173: "" | V173: "" | W173: "" | X173: 37 | Y173: 34 | Z173: 7 | AA173: 0 | AB173: 3.30810809 | AC173: "" | AD173: "" | AE173: "" | AF173: "" | AG173: ""
A174: 111779923 | B174: S-0079 | C174: Obroty | D174: 2013-07-09 17:49:25.0 | E174: "" | F174: 0 | G174: "" | H174: "" | I174: "" | J174: "" | K174: "" | L174: "" | M174: "" | N174: "" | O174: "" | P174: "" | Q174: "" | R174: "" | S174: "" | T174: "" | U174: "" | V174: "" | W174: "" | X174: 0 | Y174: 0 | Z174: 0 | AA174: 0 | AB174: 0.0 | AC174: 0 | AD174: 0 | AE174: 2876 | AF174: "" | AG174: ""
A175: 111779924 | B175: S-0079 | C175: Postój | D175: 2013-07-09 17:49:25.0 | E175: 2013-07-09 18:37:24.0 | F175: 0 | G175: 120.0 | H175: 120.0 | I175: 18.721233333333334 | J175: 52.90101666666666 | K175: "" | L175: "" | M175: "" | N175: "" | O175: "" | P175: 18.721233333333334 | Q175: 52.90101666666666 | R175: "" | S175: "" | T175: "" | U175: "" | V175: "" | W175: "" | X175: 2879 | Y175: 0 | Z175: 0 | AA175: 0 | AB175: 0.0 | AC175: "" | AD175: "" | AE175: "" | AF175: "" | AG175: ""
A176: 111779927 | B176: S-0079 | C176: Obroty | D176: 2013-07-09 18:37:24.0 | E176: "" | F176: 0 | G176: "" | H176: "" | I176: "" | J176: "" | K176: "" | L176: "" | M176: "" | N176: "" | O176: "" | P176: "" | Q176: "" | R176: "" | S176: "" | T176: "" | U176: "" | V176: "" | W176: "" | X176: 0 | Y176: 0 | Z176: 0 | AA176: 0 | AB176: 0.0 | AC176: 0 | AD176: 0 | AE176: 674 | AF176: "" | AG176: ""
A177: 111779928 | B177: S-0079 | C177: Jazda | D177: 2013-07-09 18:37:24.0 | E177: 2013-07-09 18:48:38.0 | F177: 0 | G177: 18.26086956521739 | H177: 16.52173913043478 | I177: 18.72135 | J177: 52.90046666666667 | K177: "" | L177: "" | M177: "" | N177: "" | O177: "" | P177: 18.724666666666668 | Q177: 52.8986 | R177: "" | S177: "" | T177: "" | U177: "" | V177: "" | W177: "" | X177: 674 | Y177: 496 | Z177: 7 | AA177: 0 | AB177: 2.64925814 | AC177: "" | AD177: "" | AE177: "" | AF177: "" | AG177: ""
A178: 111779929 | B178: S-0079 | C178: Obroty | D178: 2013-07-09 18:48:38.0 | E178: "" | F178: 0 | G178: "" | H178: "" | I178: "" | J178: "" | K178: "" | L178: "" | M178: "" | N178: "" | O178: "" | P178: "" | Q178: "" | R178: "" | S178: "" | T178: "" | U178: "" | V178: "" | W178: "" | X178: 0 | Y178: 0 | Z178: 0 | AA178: 0 | AB178: 0.0 | AC178: 0 | AD178: 0 | AE178: 238 | AF178: "" | AG178: ""
A179: 111779932 | B179: S-0079 | C179: Postój | D179: 2013-07-09 18:48:38.0 | E179: 2013-07-09 18:52:37.0 | F179: 0 | G179: 120.0 | H179: 18.26086956521739 | I179: 18.724683333333335 | J179: 52.8986 | K179: "" | L179: "" | M179: "" | N179: "" | O179: "" | P179: 18.724683333333335 | Q179: 52.8986 | R179: "" | S179: "" | T179: "" | U179: "" | V179: "" | W179: "" | X179: 239 | Y179: 0 | Z179: 0 | AA179: 0 | AB179: 0.0 | AC179: "" | AD179: "" | AE179: "" | AF179: "" | AG179: ""
A180: 110514338 | B180: S-0112 | C180: Obroty | D180: 2013-07-02 06:48:59.0 | E180: "" | F180: 0 | G180: "" | H180: "" | I180: "" | J180: "" | K180: "" | L180: "" | M180: "" | N180: "" | O180: "" | P180: "" | Q180: "" | R180: "" | S180: "" | T180: "" | U180: "" | V180: "" | W180: "" | X180: 0 | Y180: 0 | Z180: 0 | AA180: 0 | AB180: 0.0 | AC180: 0 | AD180: 0 | AE180: 1174 | AF180: "" | AG180: ""
A181: 110514340 | B181: S-0112 | C181: Postój | D181: 2013-07-02 06:48:59.0 | E181: 2013-07-02 07:08:33.0 | F181: 0 | G181: 97.86562849022896 | H181: 97.86562849022896 | I181: 18.675933333333333 | J181: 52.883383333333335 | L181: Polska | M181: Kujawsko-Pomorskie | O181: 87-700 | P181: 18.675933333333333 | Q181: 52.883383333333335 | S181: Polska | T181: Kujawsko-Pomorskie | V181: 87-700 | W181: "" | X181: 1174 | Y181: 0 | Z181: 0 | AA181: 0 | AB181: 0.0 | AC181: "" | AD181: "" | AE181: "" | AF181: "" | AG181: ""
A182: 110514342 | B182: S-0112 | C182: Obroty | D182: 2013-07-02 07:25:55.0 | E182: "" | F182: 0 | G182: "" | H182: "" | I182: "" | J182: "" | K182: "" | L182: "" | M182: "" | N182: "" | O182: "" | P182: "" | Q182: "" | R182: "" | S182: "" | T182: "" | U182: "" | V182: "" | W182: "" | X182: 0 | Y182: 0 | Z182: 0 | AA182: 0 | AB182: 0.0 | AC182: 0 | AD182: 0 | AE182: 969 | AF182: "" | AG182: ""
A183: 110514343 | B183: S-0112 | C183: Postój | D183: 2013-07-02 07:25:55.0 | E183: 2013-07-02 07:42:04.0 | F183: 0 | G183: 97.86562849022896 | H183: 97.86562849022896 | I183: 18.675983333333335 | J183: 52.88333333333333 | L183: Polska | M183: Kujawsko-Pomorskie | O183: 87-700 | P183: 18.675983333333335 | Q183: 52.88333333333333 | S183: Polska | T183: Kujawsko-Pomorskie | V183: 87-700 | W183: "" | X183: 969 | Y183: 0 | Z183: 0 | AA183: 0 | AB183: 0.0 | AC183: "" | AD183: "" | AE183: "" | AF183: "" | AG183: ""
A184: 110514345 | B184: S-0112 | C184: Obroty | D184: 2013-07-02 07:42:04.0 | E184: "" | F184: 0 | G184: "" | H184: "" | I184: "" | J184: "" | K184: "" | L184: "" | M184: "" | N184: "" | O184: "" | P184: "" | Q184: "" | R184: "" | S184: "" | T184: "" | U184: "" | V184: "" | W184: "" | X184: 0 | Y184: 0 | Z184: 0 | AA184: 0 | AB184: 0.0 | AC184: 0 | AD184: 0 | AE184: 582 | AF184: "" | AG184: ""
A185: 110514347 | B185: S-0112 | C185: Jazda | D185: 2013-07-02 07:42:04.0 | E185: 2013-07-02 07:51:46.0 | F185: 0 | G185: 97.86562849022896 | H185: 97.86562849022896 | I185: 18.675416666666667 | J185: 52.88381666666667 | L185: Polska | M185: Kujawsko-Pomorskie | O185: 87-700 | P185: 18.67425 | Q185: 52.885 | S185: Polska | T185: Kujawsko-Pomorskie | V185: 87-700 | W185: "" | X185: 582 | Y185: 258 | Z185: 4 | AA185: 0 | AB185: 1.59587634 | AC185: "" | AD185: "" | AE185: "" | AF185: "" | AG185: ""
A186: 110689302 | B186: S-0112 | C186: Obroty | D186: 2013-07-02 07:51:47.0 | E186: "" | F186: 0 | G186: "" | H186: "" | I186: "" | J186: "" | K186: "" | L186: "" | M186: "" | N186: "" | O186: "" | P186: "" | Q186: "" | R186: "" | S186: "" | T186: "" | U186: "" | V186: "" | W186: "" | X186: 0 | Y186: 0 | Z186: 0 | AA186: 0 | AB186: 0.0 | AC186: 0 | AD186: 0 | AE186: 3252 | AF186: "" | AG186: ""
A187: 110689303 | B187: S-0112 | C187: Jazda | D187: 2013-07-02 07:51:47.0 | E187: 2013-07-02 08:45:59.0 | F187: 0 | G187: 97.86562849022896 | H187: 97.86562849022896 | I187: 18.674266666666668 | J187: 52.885 | L187: Polska | M187: Kujawsko-Pomorskie | O187: 87-700 | P187: 18.6727 | Q187: 52.8852 | S187: Polska | T187: Kujawsko-Pomorskie | V187: 87-700 | W187: "" | X187: 3252 | Y187: 1893 | Z187: 9 | AA187: 0 | AB187: 2.09557199 | AC187: "" | AD187: "" | AE187: "" | AF187: "" | AG187: ""
A188: 110689305 | B188: S-0112 | C188: Obroty | D188: 2013-07-02 08:45:59.0 | E188: "" | F188: 0 | G188: "" | H188: "" | I188: "" | J188: "" | K188: "" | L188: "" | M188: "" | N188: "" | O188: "" | P188: "" | Q188: "" | R188: "" | S188: "" | T188: "" | U188: "" | V188: "" | W188: "" | X188: 0 | Y188: 0 | Z188: 0 | AA188: 0 | AB188: 0.0 | AC188: 0 | AD188: 0 | AE188: 726 | AF188: "" | AG188: ""
A189: 110689306 | B189: S-0112 | C189: Postój | D189: 2013-07-02 08:45:59.0 | E189: 2013-07-02 08:58:06.0 | F189: 0 | G189: 97.86562849022896 | H189: 97.86562849022896 | I189: 18.67268333333333 | J189: 52.8851 | L189: Polska | M189: Kujawsko-Pomorskie | O189: 87-700 | P189: 18.67268333333333 | Q189: 52.8851 | S189: Polska | T189: Kujawsko-Pomorskie | V189: 87-700 | W189: "" | X189: 727 | Y189: 0 | Z189: 0 | AA189: 0 | AB189: 0.0 | AC189: "" | AD189: "" | AE189: "" | AF189: "" | AG189: ""
A190: 110689308 | B190: S-0112 | C190: Obroty | D190: 2013-07-02 08:58:06.0 | E190: "" | F190: 0 | G190: "" | H190: "" | I190: "" | J190: "" | K190: "" | L190: "" | M190: "" | N190: "" | O190: "" | P190: "" | Q190: "" | R190: "" | S190: "" | T190: "" | U190: "" | V190: "" | W190: "" | X190: 0 | Y190: 0 | Z190: 0 | AA190: 0 | AB190: 0.0 | AC190: 0 | AD190: 0 | AE190: 49 | AF190: "" | AG190: ""
A191: 110689311 | B191: S-0112 | C191: Jazda | D191: 2013-07-02 08:58:06.0 | E191: 2013-07-02 08:58:55.0 | F191: 0 | G191: 97.86562849022896 | H191: 97.86562849022896 | I191: 18.67268333333333 | J191: 52.8852 | L191: Polska | M191: Kujawsko-Pomorskie | O191: 87-700 | P191: 18.6726 | Q191: 52.88535 | S191: Polska | T191: Kujawsko-Pomorskie | V191: 87-700 | W191: "" | X191: 49 | Y191: 29 | Z191: 9 | AA191: 0 | AB191: 2.13061213 | AC191: "" | AD191: "" | AE191: "" | AF191: "" | AG191: ""
A192: 110689313 | B192: S-0112 | C192: Obroty | D192: 2013-07-02 09:28:55.0 | E192: "" | F192: 0 | G192: "" | H192: "" | I192: "" | J192: "" | K192: "" | L192: "" | M192: "" | N192: "" | O192: "" | P192: "" | Q192: "" | R192: "" | S192: "" | T192: "" | U192: "" | V192: "" | W192: "" | X192: 0 | Y192: 0 | Z192: 0 | AA192: 0 | AB192: 0.0 | AC192: 0 | AD192: 0 | AE192: 6071 | AF192: "" | AG192: ""
A193: 110689314 | B193: S-0112 | C193: Postój | D193: 2013-07-02 09:28:55.0 | E193: 2013-07-02 11:10:06.0 | F193: 0 | G193: 97.86562849022896 | H193: 97.86562849022896 | I193: 18.67255 | J193: 52.88535 | L193: Polska | M193: Kujawsko-Pomorskie | O193: 87-700 | P193: 18.67255 | Q193: 52.88535 | S193: Polska | T193: Kujawsko-Pomorskie | V193: 87-700 | W193: "" | X193: 6071 | Y193: 0 | Z193: 0 | AA193: 0 | AB193: 0.0 | AC193: "" | AD193: "" | AE193: "" | AF193: "" | AG193: ""
A194: 110689317 | B194: S-0112 | C194: Obroty | D194: 2013-07-02 11:10:06.0 | E194: "" | F194: 0 | G194: "" | H194: "" | I194: "" | J194: "" | K194: "" | L194: "" | M194: "" | N194: "" | O194: "" | P194: "" | Q194: "" | R194: "" | S194: "" | T194: "" | U194: "" | V194: "" | W194: "" | X194: 0 | Y194: 0 | Z194: 0 | AA194: 0 | AB194: 0.0 | AC194: 0 | AD194: 0 | AE194: 165 | AF194: "" | AG194: ""
A195: 110689318 | B195: S-0112 | C195: Jazda | D195: 2013-07-02 11:10:06.0 | E195: 2013-07-02 11:12:51.0 | F195: 0 | G195: 97.86562849022896 | H195: 97.86562849022896 | I195: 18.672633333333334 | J195: 52.88536666666667 | L195: Polska | M195: Kujawsko-Pomorskie | O195: 87-700 | P195: 18.675266666666666 | Q195: 52.884816666666666 | S195: Polska | T195: Kujawsko-Pomorskie | V195: 87-700 | W195: "" | X195: 165 | Y195: 186 | Z195: 4 | AA195: 0 | AB195: 4.05818176 | AC195: "" | AD195: "" | AE195: "" | AF195: "" | AG195: ""
A196: 110689320 | B196: S-0112 | C196: Obroty | D196: 2013-07-02 11:12:51.0 | E196: "" | F196: 0 | G196: "" | H196: "" | I196: "" | J196: "" | K196: "" | L196: "" | M196: "" | N196: "" | O196: "" | P196: "" | Q196: "" | R196: "" | S196: "" | T196: "" | U196: "" | V196: "" | W196: "" | X196: 0 | Y196: 0 | Z196: 0 | AA196: 0 | AB196: 0.0 | AC196: 0 | AD196: 0 | AE196: 370 | AF196: "" | AG196: ""
A197: 110689321 | B197: S-0112 | C197: Postój | D197: 2013-07-02 11:12:51.0 | E197: 2013-07-02 11:19:02.0 | F197: 0 | G197: 97.86562849022896 | H197: 97.86562849022896 | I197: 18.675466666666665 | J197: 52.88473333333334 | L197: Polska | M197: Kujawsko-Pomorskie | O197: 87-700 | P197: 18.675466666666665 | Q197: 52.88473333333334 | S197: Polska | T197: Kujawsko-Pomorskie | V197: 87-700 | W197: "" | X197: 371 | Y197: 0 | Z197: 0 | AA197: 0 | AB197: 0.0 | AC197: "" | AD197: "" | AE197: "" | AF197: "" | AG197: ""
A198: 110689324 | B198: S-0112 | C198: Obroty | D198: 2013-07-02 11:19:02.0 | E198: "" | F198: 0 | G198: "" | H198: "" | I198: "" | J198: "" | K198: "" | L198: "" | M198: "" | N198: "" | O198: "" | P198: "" | Q198: "" | R198: "" | S198: "" | T198: "" | U198: "" | V198: "" | W198: "" | X198: 0 | Y198: 0 | Z198: 0 | AA198: 0 | AB198: 0.0 | AC198: 0 | AD198: 0 | AE198: 192 | AF198: "" | AG198: ""
A199: 110689325 | B199: S-0112 | C199: Jazda | D199: 2013-07-02 11:19:02.0 | E199: 2013-07-02 11:22:14.0 | F199: 0 | G199: 97.86562849022896 | H199: 97.86562849022896 | I199: 18.674533333333333 | J199: 52.88495 | L199: Polska | M199: Kujawsko-Pomorskie | O199: 87-700 | P199: 18.6726 | Q199: 52.88535 | S199: Polska | T199: Kujawsko-Pomorskie | V199: 87-700 | W199: "" | X199: 192 | Y199: 175 | Z199: 5 | AA199: 0 | AB199: 3.28125 | AC199: "" | AD199: "" | AE199: "" | AF199: "" | AG199: ""
A200: 110689327 | B200: S-0112 | C200: Obroty | D200: 2013-07-02 11:22:14.0 | E200: "" | F200: 0 | G200: "" | H200: "" | I200: "" | J200: "" | K200: "" | L200: "" | M200: "" | N200: "" | O200: "" | P200: "" | Q200: "" | R200: "" | S200: "" | T200: "" | U200: "" | V200: "" | W200: "" | X200: 0 | Y200: 0 | Z200: 0 | AA200: 0 | AB200: 0.0 | AC200: 0 | AD200: 0 | AE200: 1067 | AF200: "" | AG200: ""
... 2050 more rows

Sheet _Ustawienia (hidden)
A1: Login komputera: | B1: Login użytkownika:
